Workbook

Sheet RESUMEN (hidden)
A1: ENTIDAD RESPONSABLE | B1: NO, DE PROYECTOS | C1: PEI | D1: VDR | E1: TOTAL INVERSION | F1: 1 | G1: 2 | H1: 3 | I1: 4 | J1: 5 | K1: 6 | L1: 7
A2: MINISTERIO DE VIVIENDA. CIUDAD Y TERRITORIO; MINISTERIO DE IGUALDAD Y EQUIDAD | B2: =COUNTA('VIVIENDA 5'!A4:A13) -> 5 | C2: =+B2-D2 -> 5 | D2: 0 | E2: =+'VIVIENDA 5'!T9 -> 120791369619 | F2: 5 | G2: 0 | H2: 0 | I2: 0 | J2: 0 | K2: 0 | L2: 0 | M2: =SUM(F2:L2) -> 5
A3: MINISTERIO DE IGUALDAD Y EQUIDAD | B3: =COUNTA('IGUALDAD-FTSP 4'!A4:A12) -> 4 | C3: 4 | D3: 0 | E3: =+'IGUALDAD-FTSP 4'!T8 -> 0 | F3: 4 | G3: 0 | H3: 0 | I3: 0 | J3: 0 | K3: 0 | L3: 0 | M3: =SUM(F3:L3) -> 4
A4: MINISTERIO DE EDUCACIÓN NACIONAL | B4: =COUNTA('EDUCACIÓN 9'!A4:A14)-1 -> 9 | C4: =+B4-D4 -> 8 | D4: 1 | E4: =+'EDUCACIÓN 9'!X14 -> 1.978113113e+11 | F4: 0 | G4: 8 | H4: 0 | I4: 0 | J4: 0 | K4: 0 | L4: 0 | M4: =SUM(F4:L4) -> 8
A5: ICBF | B5: =COUNTA('ICBF 1'!A4:A11) -> 1 | C5: =+B5-D5 -> 1 | D5: 0 | E5: =+'ICBF 1'!T5 -> 218578800 | F5: 0 | G5: 1 | H5: 0 | I5: 0 | J5: 0 | K5: 0 | L5: 0 | M5: 1
A6: MINISTERIO DE TECNOLOGÍAS DE LA INFORMACIÓN Y COMUNICACIONES | B6: =COUNTA('TICs 4'!B4:B8) -> 4 | C6: 4 | D6: 0 | E6: =+'TICs 4'!W8 -> 1.850762798e+10 | F6: 0 | G6: 1 | H6: 1 | I6: 2 | M6: 4
A7: Alcaldía de Jamundí | B7: =COUNTA('JAMUNDÍ 1+'!B4:B6) -> 2 | C7: 1 | D7: 1 | E7: =+'JAMUNDÍ 1+'!T6 -> 0 | F7: 0 | G7: 1 | H7: 0 | I7: 0 | J7: 0 | K7: 0 | L7: 0 | M7: 1
A8: DSCI - DIRECCIÓN DE SUSTITUCIÓN DE CULTIVOS DE USO ILICITO | B8: =COUNTA('DSCI 3'!B4:B6) -> 2 | C8: =+B8-D8 -> 2 | D8: 0 | E8: =+'DSCI 3'!T6 -> 43487265114 | F8: 0 | G8: 0 | H8: 2 | I8: 1 | J8: 0 | K8: 0 | L8: 0 | M8: =SUM(F8:L8) -> 3
A9: MINISTERIO DEL INTERIOR | B9: =COUNTA('INTERIOR 2'!A4:A6) -> 2 | C9: 2 | D9: 0 | E9: =+'INTERIOR 2'!V6 -> 17675947175 | F9: 0 | G9: 0 | H9: 2 | I9: 0 | J9: 0 | K9: 0 | L9: 0 | M9: 2
A10: MINISTERIO DE LAS Culturas, las Artes y los Saberes | B10: =COUNTA('CULTURA 3'!A4:A7) -> 3 | C10: =+B10-D10 -> 3 | D10: 0 | E10: =+'CULTURA 3'!U7 -> 3518834616 | F10: 0 | G10: 0 | H10: 3 | I10: 0 | J10: 0 | K10: 0 | L10: 0 | M10: 3
A11: PRESIDENCIA/DAPRE - Fondo de Programas Especiales para la Paz | B11: =COUNTA(PRESIDENCIA!A4:A6) -> 2 | C11: 2 | D11: 0 | E11: =+PRESIDENCIA!T6 -> 0 | F11: 0 | G11: 0 | H11: 2 | M11: 2
A12: ART - AGENCIA DE RENOVACIÓN DEL TERRITORIO | B12: =COUNTA('ART 1'!A5:A6) -> 0 | C12: 0 | E12: =+'ART 1'!T5 -> 1.230438826e+10 | F12: 0 | G12: 0 | H12: 0 | I12: 1 | M12: 1
A13: ADR - AGENCIA DE DESARROLLO RURAL | B13: =COUNTA('ADR 8+'!A4:A13) -> 9 | C13: 8 | D13: 1 | E13: =+'ADR 8+'!T13 -> 82325066976 | F13: 0 | G13: 0 | H13: 0 | I13: 8 | J13: 0 | K13: 0 | L13: 0 | M13: 8
A14: MinCIT | B14: =COUNTA('MCIT 7'!A4:A11) -> 7 | C14: 7 | E14: =+'MCIT 7'!W11 -> 48806480967 | F14: 0 | G14: 0 | H14: 0 | I14: 7 | J14: 0 | K14: 0 | L14: 0 | M14: 7
A15: DPS - DEPARTAMENTO PARA LA PROSPERIDAD SOCIAL | B15: =COUNTA('DPS 23'!A4:A27) -> 23 | C15: 23 | E15: =+'DPS 23'!T27 -> 0 | F15: 0 | G15: 0 | H15: 0 | I15: 22 | J15: 0 | K15: 0 | L15: 1 | M15: 23
A16: IGAC | B16: =COUNTA('IGAC 13'!B4:B17) -> 13 | C16: 13 | E16: =+'IGAC 13'!T17 -> 0 | F16: 0 | G16: 0 | H16: 0 | I16: 13 | J16: 0 | K16: 0 | L16: 0 | M16: 13
A17: MINISTERIO DE AGRICULTURA Y DESARROLLO RURAL | B17: 1 | C17: 1 | E17: =+'MADR 1'!S4 -> 0 | F17: 0 | G17: 0 | H17: 0 | I17: 1 | J17: 0 | K17: 0 | L17: 0 | M17: 1
A18: MINISTERIO DE SALUD Y PROTECCIÓN SOCIAL | B18: =COUNTA('SALUD 10+'!B4:B13) -> 10 | C18: 10 | E18: =+'SALUD 10+'!X15 -> 266019410166 | F18: 0 | G18: 0 | H18: 0 | I18: 0 | J18: 10 | K18: 0 | L18: 0 | M18: 10
A19: MINISTERIO DE MINAS Y ENERGÍA | B19: =COUNTA('MINAS 6+'!B4:B14)+2 -> 12 | C19: 6 | D19: 6 | E19: =+'MINAS 6+'!T14 -> 1.010314861e+11 | F19: 0 | G19: 0 | H19: 0 | I19: 0 | J19: 0 | K19: 6 | L19: 0 | M19: 6
A20: MINISTERIO DE TRANSPORTE - INVIAS - AEROCIVIL | B20: =COUNTA('TRANSPORTE 12+1'!B4:B17) -> 13 | C20: =+B20-D20 -> 12 | D20: 1 | E20: =+#REF! ->  | F20: 0 | G20: 0 | H20: 0 | I20: 0 | J20: 0 | K20: 0 | L20: 0 | M20: =SUM(F20:L20) -> 0
A21: MINISTERIO DE AMBIENTE Y DESARROLLO SOSTENIBLE | B21: =COUNTA(#REF!) -> 1 | C21: =+B21-D21 -> 1 | E21: =+#REF! ->  | M21: =SUM(F21:L21) -> 0
A22: Gobernación del Cauca | B22: =COUNTA('GOBERNACIÓN 2+<>'!B4:B7)-1 -> 3 | C22: -1 | D22: 4 | E22: =+#REF! ->  | M22: 0
A23: Alcaldía López de Micay | B23: 1 | C23: 0 | D23: 1
A24: Total de Proyectos: | B24: =SUM(B2:B22) -> 126 | C24: 112 | D24: =SUM(D2:D23) -> 15 | F24: 9 | G24: 11 | H24: 10 | I24: 55 | J24: 10 | K24: 6 | L24: 1 | M24: 102

Sheet Formato PAS
A1: PLAN DE ACCIÓN Y SEGUIMIENTO 2026 PACTO TERRITORIAL CUCA "POR LA TRANSFORMACIÓN TERRITORIAL Y CONSOLIDACIÓN DE LA PAZ TOTAL" Fecha de aprobación: 29 /04/ 2026
A3: 1. OBJETIVO
A4: Articular entre la Nación, el Departamento del Cauca, y los municipios signatarios del Pacto, las políticas, planes y programas orientados a generar condiciones para la transformación territorial y la consolidación de La Paz, mediante la priorización e impulso de inversiones de alto impacto para el desarrollo subregional, local, y el cierre de brechas territoriales en: vivienda digna, agua potable y saneamiento básico; infraestructura de transporte; salud; educación integral; transición energética; paz y reconciliación; desarrollo rural y transformación productiva.
A5: 2. INFORMACIÓN GENERAL
A6: Ámbito de Aplicación: EI Pacto se suscriben en el marco de lo establecido en el articulo 279 de la ley 2294 de 2023, Plan Nacional de Desarrollo 2022 - 2026 "Colombia Potencia Mundial de la Vida", en la ley 1454 de 2011, Ley Organica de Ordenamiento Territorial y en las normas que las modifiquen o sustituyan, como una estrategia de articulación entre los diferentes niveles de Gobierno.
A7: Fecha de suscripción | F7: 11 de septiembre de 2025
A8: Plazo de ejecución | F8: 10 años
A9: Suscribientes del Pacto Territorial | F9: Departamento Nacional de Planeación; la Gobernación del Departamento del Cauca y las Alcaldías de los municipios de Popayán, Almaguer, Argelia, Balboa, Bolívar, Buenos Aires, Cajibío, Caldono, Caloto, Corinto, El Tambo, Florencia, Guachené, Guapi, Inzá, Jambaló, Jamundí, La Sierra, La Vega, López de Micay, Mercaderes, Miranda, Morales, Padilla, Páez, Patía, Piamonte, Piendamó, Puerto Tejada, Puracé, Rosas, San Sebastián, Santander de Quilichao, Santa Rosa, Silvia, Sotará, Suárez, Sucre, Timbío, Timbiquí, Toribío, Totoró y Villa Rica.
A11: Otro sí (cuando aplique) con su fecha de suscripción | F11: N/A
A13: 3. EJES O LÍNEAS ESTRATÉGICAS
A14: 1. Vivienda Digna y Agua Potable y Saneamiento Bàsico 2. Educación Integral 3. Paz y Reconciliación 4. Desarrollo Rural y Transformación Productiva 5. Salud 6. Transición Energética 7. Infraestructura de Transporte
A15: 4. INICIATIVAS DEL PLAN DE ACCIÓN Y SEGUIMIENTO
A16: En el siguiente cuadro se registra el número de iniciativas estratégicas que fueron priorizadas por ejes o líneas estratégicas para ser implementadas en la vigencia del Plan de Acción y Seguimiento -PAS, en el que se especifican las diferentes fuentes de financiación; así mismo.
A17: Eje o Línea Estratégica | D17: Nº Iniciativas | G17: Aporte Nación | J17: Aporte Territorio /Otros | M17: Inversión Total
A18: 1. Vivienda Digna y Agua Potable y Saneamiento Básico | D18: =+B40 -> 9 | G18: =+E40+F40 -> 246103101132 | J18: =+G40+H40+I40+J40 -> 12934800000 | M18: =+G18+J18 -> 259037901132
A19: 2. Educación Integral | D19: =+B57 -> 11 | G19: =+E57+F57 -> 215989280000 | J19: =+G57+H57+I57+J57 -> 2200000000 | M19: =+G19+J19 -> 218189280000
A20: 3. Paz y Reconciliación | D20: =+B73 -> 10 | G20: =SUM(E73:F73) -> 105960649555 | J20: =SUM(G73:J73) -> 0 | M20: 105960649555
A21: 4. Desarrollo Rural y Transformación Productiva | D21: =+B136 -> 57 | G21: =SUM(E136:F136) -> 349051529113 | J21: =SUM(G136:J136) -> 30392925215 | M21: 379444454328
A22: 5. Salud | D22: =+B153 -> 11 | G22: =SUM(E153:F153) -> 170039036579 | J22: =SUM(G153:J153) -> 41895891663 | M22: 211934928242
A23: 6. Transición Energética | D23: =+B165 -> 6 | G23: =SUM(E165:F165) -> 77542571428 | J23: =SUM(G165:J165) -> 0 | M23: 77542571428
A24: 7. Infraestructura de Transporte | D24: =+B184 -> 13 | G24: =SUM(E184:F184) -> 2.226227565e+13 | J24: =SUM(G184:J184) -> 22000000000 | M24: 2.228427565e+13
A25: Total Plan de Acción y Seguimiento | D25: =SUM(D18:F24) -> 117 | G25: =SUM(G18:I24) -> 2.342696182e+13 | J25: =SUM(J18:L24) -> 109423616878 | M25: =SUM(M18:M24) -> 2.353638544e+13
A26: Cifras expresadas en pesos.
A27: Las iniciativas incluidas en el Plan de Acción y Seguimiento - PAS - se relacionan en la siguiente tabla, en la que se incluye la información por Sector, Eje o línea estratégica, valor total y la distribución indicativa de recursos de las fuentes de financiación.
A28: 1. Vivienda Digna y Agua Potable y Saneamiento Básico
A29: Sector | B29: Nombre de la Iniciativa | C29: Etapa del Proyecto * | D29: Fase del Proyecto * | E29: Aporte Nación | G29: Aporte Territorio | J29: Otros recursos | K29: Inversión Total | L29: Entidad Responsable* | M29: Observaciones / Acciones | N29: Actividades a ejecutar
E30: DNP | F30: Sector | G30: Propios | H30: SGR | I30: Otros | N30: Trimestre 2 -2026 | O30: Trimestre 3 - 2026 | P30: Trimestre 4 -2026 | Q30: Trimestre 1 -2027 | R30: Actividad Principal
A31: Vivienda, Ciudad y Territorio | B31: Conexiones- 872 conexiones intradomiciliarias para el municipio de Puerto Tejada | C31: =+'VIVIENDA 5'!D4 -> Inversión | D31: =+'VIVIENDA 5'!E4 -> Ejecución | E31: 0 | F31: 5804480331 | G31: 0 | H31: 0 | I31: 0 | J31: 0 | K31: =SUM(E31:J31) -> 5804480331 | L31: Ministerio de Vivienda, Ciudad y Territorio | M31: =+'VIVIENDA 5'!V4 -> 27/04/2026. $5.804.480.331. Ejecución. Proyecto viabilizado en el año 2023, con recursos PGN, por valor de $5.804.480.331, proyecto que es esta ejecutando en el marco del Contrato Interadministrativo de Gerencia de Proyectos No 1632 de 2023. Trimestre 3-2026: Entregar 160 conexiones intradomiciliarias. Trimestre 4-2026: Entregar 427 conexiones intradomiciliarias | N31: Reporte de avance de ejecución con soportes | O31: Reporte de avance de ejecución con soportes | P31: Reporte de avance de ejecución con soportes | Q31: Finalización, liquidación, | R31: =+N31 -> Reporte de avance de ejecución con soportes
A32: Vivienda, Ciudad y Territorio | B32: Construcción unidades sanitarias con saneamiento básico para vivienda rural dispersa en el municipio de López de Micay | C32: =+'VIVIENDA 5'!D5 -> Inversión | D32: =+'VIVIENDA 5'!E5 -> Ejecución | E32: 0 | F32: 6015778891 | G32: 0 | H32: 0 | I32: 0 | J32: 0 | K32: =SUM(E32:J32) -> 6015778891 | L32: Ministerio de Vivienda, Ciudad y Territorio | M32: =+'VIVIENDA 5'!V5 -> 27/04/2026. $6.015.778.891. Ejecución. Proyecto con recursos de la Nación de 2024 $6.015.778.891 Trimestre 2 -2026: está revisando y tramitando la solicitud de suspensión de los contratos derivados, ajustes en cantidades Trimestre 3 – 2026: prórroga contratación derivada Trimestre 4 -2026: prórroga al lconvenio de uso de recursos Trimestre 1 -2027: entrega 100% | N32: Reporte de avance de ejecución con soportes | O32: Reporte de avance de ejecución con soportes | P32: Reporte de avance de ejecución con soportes | Q32: Finalización, liquidación, | R32: Reporte de avance de ejecución con soportes
A33: Vivienda, Ciudad y Territorio | B33: Construcción Etapa II línea de conducción Río Palace y planta de tratamiento de agua potable Palace, municipio de Popayán | C33: =+'VIVIENDA 5'!D6 -> Inversión | D33: =+'VIVIENDA 5'!E6 -> Ejecución, Contratación | E33: 0 | F33: 89137132435 | G33: 0 | H33: 0 | I33: 0 | J33: 0 | K33: 89137132435 | L33: Ministerio de Vivienda, Ciudad y Territorio | M33: =+'VIVIENDA 5'!V6 -> 27/04/2026. $90.679 millones. Ejecución-Contratación. En proceso de contratación derivada | N33: Tramites para la suscripción de convenios, , Inicio de Actividades, | O33: Reporte de avance de ejecución con soportes | P33: Reporte de avance de ejecución con soportes | Q33: Reporte de avance de ejecución con soportes | R33: Tramites para la suscripción de convenios, , Inicio de Actividades,
A34: Vivienda, Ciudad y Territorio | B34: Mejoramiento de 320 viviendas en El Tambo, López de Micay y Timbiquí | C34: =+'VIVIENDA 5'!D7 -> Inversión | D34: =+'VIVIENDA 5'!E7 -> Ejecución | E34: 0 | F34: 6743459012 | G34: 0 | H34: 0 | I34: 0 | J34: 0 | K34: 6743459012 | L34: Ministerio de Vivienda, Ciudad y Territorio | M34: =+'VIVIENDA 5'!V7 -> 27/04/2026. $8.469.031.617. Ejecución. -El Tambo: 213 cupos en zona (90) urbana y (123) rural con una inversión de $5.187 millones de pesos. - Lopez de Micay: 71 cupos en zona urbana (4) y (67) rural con una inversión de $1.799 millones de pesos. - Timbiquí: 90 cupos, en zona urbana (78) y (12) rural con una inversión de $1.483 millones de pesos. -Total de cupos asignados: 374 cupos (172 urbanos y 202 rurales) -Del total de cupos se han asignado 243 subsidios, de los cuales 211 ya estan terminados. -Se tiene en gestión 163 mejoramientos de vivienda. Trimestre 2 -2026: Alistamiento - convocatorias, acuerdos sociales Trimestre 3 – 2026: proyecto arquitectonico - convocatorias, acuerdos sociales Trimestre 4 -2026: ejecución - convocatorias, acuerdos sociales Trimestre 1 -2027: ejecución acuerdos sociales El valor total de una inversión asciende a la suma de $8.469.031.617 MCTE, de los cuales se encuentran distibuidos en las vigencias así: 2022-2023: $4.054.661.657 MCTE 2024:$2.072.200.000 MCTE 2025: $1.235.598.000 MCTE 2026: $1.106.571.960 MCTE | N34: Reporte de avance de ejecución con soportes | O34: Reporte de avance de ejecución con soportes | P34: Reporte de avance de ejecución con soportes | Q34: Reporte de avance de ejecución con soportes | R34: Reporte de avance de ejecución con soportes
A35: Vivienda, Ciudad y Territorio | B35: Mejoramiento de vivienda urbanos y rurales (2.228 urbanos y 2.101 rurales) para el Departamento del Cauca – varios municipios. | C35: =+'VIVIENDA 5'!D8 -> Inversión | D35: =+'VIVIENDA 5'!E8 -> Ejecución | E35: 0 | F35: 76576476996 | G35: 0 | H35: 0 | I35: 12934800000 | J35: 0 | K35: 89511276996 | L35: Ministerio de Vivienda, Ciudad y Territorio /Municipios Cauca | M35: =+'VIVIENDA 5'!V8 -> 27/04/2026. $112.609.694.200. Ejecución. Se tienen financiados 4.906 cupos de mejoramientos de los cuales (2.361 son urbanos y 2.545 rurales) y cuya inversión es de $112.610 millones Se tienen asignados 2.075 (urbanos 699 y 1.376 rurales) subsidios de los cuales 1.262 ( 361 urbanos y 901 rurales) se encuentran terminados. Trimestre 2 -2026: Alistamiento - convocatorias, acuerdos sociales Trimestre 3 – 2026: Proyecto arquitectonico - convocatorias502, acuerdos sociales Trimestre 4 -2026: ejecición convocatorias, acuerdos sociales Trimestre 1 -2027: ejecición acuerdos sociales El valor total de una inversión asciende a la suma de $112.609.694.200 MCTE, de los cuales se encuentran distibuidos en las vigencias así: 2022-2023: $30.997.878.105 MCTE 2024:$53.842.491.520 MCTE 2025: $11.513.575.080 MCTE 2026: $16.255.749.495 MCTE | N35: Reporte de avance de ejecución con soportes | O35: Reporte de avance de ejecución con soportes | P35: Reporte de avance de ejecución con soportes | Q35: Reporte de avance de ejecución con soportes | R35: Reporte de avance de ejecución con soportes
A36: Igualdad y Equidad | B36: Estudios y diseños plan maestro de saneamiento Guapi | C36: =+'IGUALDAD-FTSP 4'!D4 -> Sin Información clara | D36: =+'IGUALDAD-FTSP 4'!E4 -> Sin Información clara | E36: 0 | F36: 2040317423 | G36: 0 | H36: 0 | I36: 0 | J36: 0 | K36: 2040317423 | L36: Fondo Todos Somos PAZcífico | M36: =+'IGUALDAD-FTSP 4'!V4 -> 0 No Iniciado, 0El contrato de interventoría se suscribirá con recursos propios de quien?(rendimientos financieros). | N36: Actualización información con soportes , Tramites para la suscripción de convenios, | O36: Inicio de Actividades, , Reporte de avance de ejecución con soportes | P36: Reporte de avance de ejecución con soportes | Q36: Reporte de avance de ejecución con soportes | R36: Actualización información con soportes , Tramites para la suscripción de convenios,
A37: Igualdad y Equidad | B37: Acueducto de Timbiquí | C37: =+'IGUALDAD-FTSP 4'!D5 -> Inversión | D37: =+'IGUALDAD-FTSP 4'!E5 -> Ejecución | E37: 0 | F37: 24844000000 | G37: 0 | H37: 0 | I37: 0 | J37: 0 | K37: 24844000000 | L37: Fondo Todos Somos PAZcífico | M37: =+'IGUALDAD-FTSP 4'!V5 -> 22013060490 En Ejecución, En ejecución de obra0,3867El contrato de redes de distribución se encuentra actualmente en proceso de liquidación. El nuevo proceso de contratación estará sujeto a la disponibilidad de recursos. Por su parte, el contrato correspondiente a las obras de captación, cuya finalización está prevista para abril, no permitirá culminar la totalidad del proyecto. Por tanto, se contempla una etapa adicional para su terminación, la cual dependerá de la obtención de una fuente de financiación diferente. | N37: Reporte de avance de ejecución con soportes | O37: Reporte de avance de ejecución con soportes | P37: Reporte de avance de ejecución con soportes | Q37: Reporte de avance de ejecución con soportes | R37: Reporte de avance de ejecución con soportes
A38: Igualdad y Equidad | B38: Acueducto Guapi etapa I captación y redes | C38: =+'IGUALDAD-FTSP 4'!D6 -> Inversión | D38: =+'IGUALDAD-FTSP 4'!E6 -> Ejecución | E38: 0 | F38: 33417519388 | G38: 0 | H38: 0 | I38: 0 | J38: 0 | K38: 33417519388 | L38: Fondo Todos Somos PAZcífico | M38: =+'IGUALDAD-FTSP 4'!V6 -> 23854437790,7 En Ejecución, En ejecución de obra0,0223PRINCIPALES DIFICULTADES O CUELLOS DE BOTELLA IDENTIFICADOS: 1. Liberación aspectos pendientes de contratos anteriores que han derivados en acciones de corrección y atención de PQRs. Como son temas prediales, técnicos, sociales y ambientales. 2. Traslado de equipos y herramientas al municipio de Guapi. 3. Consecución de mano de obra calificada y no calificada. Por escasez, seguridad y minería 4. Aprobaciones de contratos y pólizas. 5. Consecución de materiales locales. 6. Gestión de anticipo. 7. Permisos locales. 8. Escasez de información base sobre el estado de infraestructura asociada, redes de acueducto, alcantarillado y gas, canalizaciones.. ACCIONES CORRECTIVAS O DE GESTIÓN ADELANTADAS PARA SU SUPERACIÓN1. Revisiones y mesas en sitio 2. Presencialidad de las personas con capacidad de definición o articulación. 3. Acompañamiento a la gestión de los elementos clave del contrato | N38: Reporte de avance de ejecución con soportes | O38: Reporte de avance de ejecución con soportes | P38: Reporte de avance de ejecución con soportes | Q38: Reporte de avance de ejecución con soportes | R38: Reporte de avance de ejecución con soportes
A39: Igualdad y Equidad | B39: Consultoría para cierre del botadero a cielo abierto el Olímpico | C39: =+'IGUALDAD-FTSP 4'!D7 -> Sin Información clara | D39: =+'IGUALDAD-FTSP 4'!E7 -> Sin Información clara | E39: 0 | F39: 1523936656 | G39: 0 | H39: 0 | I39: 0 | J39: 0 | K39: 1523936656 | L39: Fondo Todos Somos PAZcífico | M39: =+'IGUALDAD-FTSP 4'!V7 -> 0 No Iniciado, 0,2Reporta una condición que no hace parte del estado del proyecto (No Iniciado). Aclarar con la entidad. | N39: Actualización información con soportes , Reporte de avance de ejecución con soportes | O39: Reporte de avance de ejecución con soportes | P39: Reporte de avance de ejecución con soportes | Q39: Reporte de avance de ejecución con soportes | R39: Actualización información con soportes , Reporte de avance de ejecución con soportes
A40: Total | B40: =+COUNTA(B31:B39) -> 9 | E40: =SUM(E31:E39) -> 0 | F40: 246103101132 | G40: 0 | H40: 0 | I40: 12934800000 | J40: 0 | K40: 259037901132
A41: *Se entiende por entidad Responsable la encargada de la fuente de financiación.
A43: 2. Educación Integral
A44: Sector | B44: Nombre de la Iniciativa | C44: Etapa del Proyecto * | D44: Fase del Proyecto * | E44: Aporte Nación | G44: Aporte Territorio | J44: Otros recursos | K44: Inversión Total | L44: Entidad Responsable* | M44: Observaciones / Acciones | N44: Actividades a ejecutar
E45: DNP | F45: Sector | G45: Propios | H45: SGR | I45: Otros | N45: Trimestre 2 -2026 | O45: Trimestre 3 - 2026 | P45: Trimestre 4 -2026 | Q45: Trimestre 1 -2027 | R45: Actividad Principal
A46: Educación | B46: Universidad en Guapi (Estudios y diseños y obra) | C46: =+'EDUCACIÓN 9'!D4 -> Inversión | D46: =+'EDUCACIÓN 9'!E4 -> Contratación | E46: 0 | F46: 30000000000 | G46: 0 | H46: 0 | I46: 0 | J46: 0 | K46: =SUM(E46:J46) -> 30000000000 | L46: Ministerio de Educación Nacional | M46: =+'EDUCACIÓN 9'!Z4 -> $30.000 millones. En Proceso de Selección. Proyecto llave en mano (Estudios, diseños, licencias, permisos y obra). Se ha adelantado el proceso de selección de contratista e interventoría. | N46: Tramites para la suscripción de convenios, | O46: Reporte de avance de ejecución con soportes, Inicio de Actividades, | P46: Reporte de avance de ejecución con soportes | Q46: Reporte de avance de ejecución con soportes | R46: =+N46 -> Tramites para la suscripción de convenios,
A47: Educación | B47: Estudios y diseños Universidad del Macizo | C47: =+'EDUCACIÓN 9'!D5 -> Preinversión | D47: =+'EDUCACIÓN 9'!E5 -> Fase III | E47: 0 | F47: 700000000 | G47: 0 | H47: 0 | I47: 0 | J47: 0 | K47: =SUM(E47:J47) -> 700000000 | L47: Ministerio de Educación Nacional | M47: =+'EDUCACIÓN 9'!Z5 -> $400 millones. Fase III. A la fecha se cuenta con el representante legal provisiona y transitorio de la Universidad, se radicó el proyecto de ley en septiembre de 2025 en el congreso de la república y se esta a la espera de la radicación de los documentos del estudio de factibilidad en el SACES con el fin de que sean revisados y aprobados, también de la programación de los debates del proyecto de Ley | N47: Tramites para la suscripción de convenios, | O47: Reporte de avance de ejecución con soportes | P47: Reporte de avance de ejecución con soportes | Q47: Reporte de avance de ejecución con soportes | R47: =+N47 -> Tramites para la suscripción de convenios,
A48: Educación | B48: Programa de Tránsito Inmediato a la Educación Superior (PTIES) en la Institución Educativa Técnica Miguel Zapata | C48: =+'EDUCACIÓN 9'!D6 -> Operación | D48: =+'EDUCACIÓN 9'!E6 -> Ejecución | E48: 0 | F48: 500000000 | G48: 0 | H48: 0 | I48: 0 | J48: 0 | K48: 500000000 | L48: Ministerio de Educación Nacional | M48: =+'EDUCACIÓN 9'!Z6 -> $1.155 millones. Ejecución. Para el segundo trimestre se tiene prevista el diagnostico de las necesidades de nivelación, posterior al las pruebas diagnosticas que se realizaron en el mes de marzo y abril. De igual manera se estará trabajando en talleres con los padres y madres de familia y la comunidad y con las IEM beneficiada para el trabajo articulado. | N48: Reporte de avance de ejecución con soportes | O48: Reporte de avance de ejecución con soportes | P48: Reporte de avance de ejecución con soportes | Q48: Reporte de avance de ejecución con soportes | R48: Reporte de avance de ejecución con soportes
A49: Educación | B49: Culminación de obra Infraestructura física sede norte de la universidad del Cauca en Santander de Quilichao | C49: =+'EDUCACIÓN 9'!D7 -> Inversión | D49: =+'EDUCACIÓN 9'!E7 -> Fase III | E49: 0 | F49: 36353000000 | G49: 0 | H49: 0 | I49: 0 | J49: 0 | K49: 36353000000 | L49: Ministerio de Educación Nacional | M49: =+'EDUCACIÓN 9'!Z7 -> $2.999 millones. Fase III. Aperturar Contratación de obra. Proyecto finciado mediante transferencia directa a la IES No.: 018129 del 27 de agosto de 2025. Cuenta con la licencia de construcción, actualmente el área administrativa se encuentra realizando ajustes a los términos de referencia para procesos de selección del contratista de obra e interventoría. | N49: Tramites para la suscripción de convenios, | O49: Reporte de avance de ejecución con soportes, Inicio de Actividades, | P49: Reporte de avance de ejecución con soportes | Q49: Reporte de avance de ejecución con soportes | R49: Tramites para la suscripción de convenios,
A50: Educación | B50: Implementación Colegio Universidad en Guapi por UNICAUCA , adecuaciones de las IE La Normal y la IE San José | C50: =+'EDUCACIÓN 9'!D8 -> Inversión | D50: =+'EDUCACIÓN 9'!E8 -> Ejecución | E50: 0 | F50: 2000000000 | G50: 0 | H50: 0 | I50: 0 | J50: 0 | K50: 2000000000 | L50: Ministerio de Educación Nacional | M50: =+'EDUCACIÓN 9'!Z8 -> $11.158 millones. Ejecución. Proyectos desarrollado mediante la modalidad de intervención Educación Superior en tu Colegio, tiene un avance de obra del 13,19%, en curso adecuaciones en bloque No 6, 20, 11, 13, Cancha, BQ nuevo, 10 y 8. Agosto 2026. | N50: Reporte de avance de ejecución con soportes | O50: Reporte de avance de ejecución con soportes | P50: Reporte de avance de ejecución con soportes | Q50: Reporte de avance de ejecución con soportes | R50: Reporte de avance de ejecución con soportes
A51: Educación | B51: Estudios, Diseños y Construcción Para La Ampliación E Implementación De Infraestructura Física Universitaria Proyectada En El Predio Belalcázar | C51: =+'EDUCACIÓN 9'!D9 -> Inversión | D51: =+'EDUCACIÓN 9'!E9 -> Fase III | E51: 0 | F51: 43000000000 | G51: 0 | H51: 0 | I51: 0 | J51: 0 | K51: 43000000000 | L51: Ministerio de Educación Nacional | M51: =+'EDUCACIÓN 9'!Z9 -> $53.837 millones. Fase III. Proyecto incluido en el CONPES 4181. Proyecto en actualización por parte de la IES, del componente metodológico, con acompañamiento del MEN. | N51: Revisión y aprobación del proyecto por la fuente de financiación, , Revisión técnica del proyecto por Sector, | O51: Tramites para la suscripción de convenios, | P51: Asignación de recursos, | Q51: Reporte de avance de ejecución con soportes, Inicio de Actividades, | R51: Revisión y aprobación del proyecto por la fuente de financiación, , Revisión técnica del proyecto por Sector,
A52: Educación | B52: Proyecto de infraestructura para el Nodo Suárez de la Universidad del Valle | C52: =+'EDUCACIÓN 9'!D10 -> Inversión | D52: =+'EDUCACIÓN 9'!E10 -> Ejecución | E52: 0 | F52: 52000000000 | G52: 0 | H52: 0 | I52: 0 | J52: 0 | K52: 52000000000 | L52: Ministerio de Educación Nacional | M52: =+'EDUCACIÓN 9'!Z10 -> $52.000 millones. Ejecución. Proyecto finciado mediante transferencia directa a la IES No.: 025392 del 21 de diciembre de 2023. Con el recurso asignado, la IES realizó la adquisición del predio de CELSIA por $16.929 millones, el resto del recursos se invierte en adecuaciones y consultorías sobre las instalaciones adquiridas a CELSIA. Se estima un avance del 48% para el componente de adecuaciones según informe remitido por la IES. El MEN solicitó ajustes en la información presentada. | N52: Reporte de avance de ejecución con soportes | O52: Reporte de avance de ejecución con soportes | P52: Reporte de avance de ejecución con soportes | Q52: Reporte de avance de ejecución con soportes | R52: Reporte de avance de ejecución con soportes
A53: Educación | B53: Estudios, Diseños y Construcción Para La Ampliación E Implementación De Infraestructura Física Universitaria Proyectada En La Sede Norte U Cauca S. Quilichao | C53: =+'EDUCACIÓN 9'!D11 -> Inversión | D53: =+'EDUCACIÓN 9'!E11 -> Fase III | E53: 0 | F53: 31353000000 | G53: 0 | H53: 0 | I53: 0 | J53: 0 | K53: 31353000000 | L53: Ministerio de Educación Nacional | M53: =+'EDUCACIÓN 9'!Z11 -> $46.260 millones. Fase III. Proyecto incluido en el CONPES 4181. Proyecto en actualización por parte de la IES, del componente metodológico, con acompañamiento del MEN. | N53: Revisión y aprobación del proyecto por la fuente de financiación, , Revisión técnica del proyecto por Sector, | O53: Tramites para la suscripción de convenios, | P53: Asignación de recursos, | Q53: Reporte de avance de ejecución con soportes, Inicio de Actividades, | R53: Revisión y aprobación del proyecto por la fuente de financiación, , Revisión técnica del proyecto por Sector,
A54: Igualdad y Equidad | B54: Prevención y atención a la desnutrición a través de la adquisición de 9,7 toneladas de harina de chontaduro a la Asociación de Productores de Cacao y Chontaduro del Tambo (APACH) | C54: =+'ICBF 1'!D4 -> Inversión | D54: =+'ICBF 1'!E4 -> Terminado | E54: 0 | F54: 411280000 | G54: 0 | H54: 0 | I54: 0 | J54: 0 | K54: 411280000 | L54: ICBF - Instituto Colombiano de Binestar Familiar | M54: =+'ICBF 1'!V4 -> 22/04/2026 ICBF: $218 millones. En relación con el avance del compromiso, se informa que, con corte al 30 de septiembre de 2025, se logró la compra de 11.800 kilogramos de harina de chontaduro, equivalentes a 11,8 toneladas. De este total, 10.490 kilogramos (10,5 toneladas) fueron adquiridos al proveedor Asociación de Productores Agropecuarios de Cacao y Chontaduro de El Tambo, Cauca – APACH. Con el volumen total adquirido, el Instituto alcanzó el 100 % de la meta de compra. En el marco del contrato 01014512022 para la fabricación de Alimentos de Alto Valor Nutricional (AAVN). Para el periodo restante de 2025, está pendiente la confirmación de la inversión. | N54: Finalización, liquidación, | R54: Finalización, liquidación,
A55: Tecnologías de la Información y las Comunicaciones | B55: Implementación de centros digitales de acceso público gratuito en Piendamó | C55: =+'TICs 4'!D4 -> Operación | D55: =+'TICs 4'!E4 -> Ejecución | E55: 0 | F55: 17472000000 | G55: 0 | H55: 0 | I55: 0 | J55: 0 | K55: 17472000000 | L55: Ministerio de Tecnologías de la Información y las Comunicaciones | M55: =+'TICs 4'!Y4 -> 21/04/2026. $4.232.259.802 millones corresponden a estimaciones. Ejecución-Operación. Avance físico 100% instalación. Proyecto Centros Digitales. Inversion Estimada unicamente para los años 2025 a 2028. Programa con Vigencias Futuras. Meta: 26 Centros en Piendamó, actualmente instalados. Se encuentra en operación hasta 2031. | N55: Reporte de avance de ejecución con soportes | O55: Reporte de avance de ejecución con soportes | P55: Reporte de avance de ejecución con soportes | Q55: Reporte de avance de ejecución con soportes | R55: Reporte de avance de ejecución con soportes
A56: Educación | B56: Convocatoria de Mejoramiento de Infraestructura eductiva 2021 | C56: =+'JAMUNDÍ 1+'!D4 -> Preinversión | D56: =+'JAMUNDÍ 1+'!E4 -> 0 | E56: 2200000000 | F56: 0 | G56: 2200000000 | H56: 0 | I56: 0 | J56: 0 | K56: 4400000000 | L56: Departamento Nacional de Planeación (FRPT) / Municipio de Jamundí | M56: =+'JAMUNDÍ 1+'!V4 -> Presentar proyecto y avanzar con concepto favorable del MEN para presentar al DNP para solicitud de Cofinanciación. | N56: Estructuración del proyecto, | O56: Viabilización del proyecto ante la cabeza del sector, | P56: Viabilización del proyecto ante la cabeza del sector, | Q56: Presentación del proyecto ante la fuente de financiación, | R56: Estructuración del proyecto,
A57: Total | B57: =+COUNTA(B46:B56) -> 11 | E57: =SUM(E46:E56) -> 2200000000 | F57: 213789280000 | G57: 2200000000 | H57: 0 | I57: 0 | J57: 0 | K57: 218189280000
A58: *Se entiende por entidad Responsable la encargada de la fuente de financiación.
A60: 3. Paz y Reconciliación
A61: Sector | B61: Nombre de la Iniciativa | C61: Etapa del Proyecto * | D61: Fase del Proyecto * | E61: Aporte Nación | G61: Aporte Territorio | J61: Otros recursos | K61: Inversión Total | L61: Entidad Responsable* | M61: Observaciones / Acciones | N61: Actividades a ejecutar
E62: DNP | F62: Sector | G62: Propios | H62: SGR | I62: Otros | N62: Trimestre 2 -2026 | O62: Trimestre 3 - 2026 | P62: Trimestre 4 -2026 | Q62: Trimestre 1 -2027 | R62: Actividad Principal
A63: Presidencia | B63: Programa de sustitución de economías ilegalizadas en el departamento del cauca- RENACEMOS | C63: =+'DSCI 3'!D4 -> Inversión | D63: =+'DSCI 3'!E4 -> Ejecución | E63: 0 | F63: 20018447865 | H63: 0 | I63: 0 | J63: 0 | K63: =SUM(E63:J63) -> 20018447865 | L63: Dirección de Sustitución de Cultivos Ilícitos - Fondo Programas Especiales para la Paz (Fondo Paz) | M63: =+'DSCI 3'!V4 -> 23/04/2026. Ejecución. $33.542 millones. Socios implementadores : Naciones Unidas contra las drogas y el delito ($8.686.791.882 ) y FINDETER ($4.836.923.868-DAPRE) $28 mil millones UNODC - Avance 69.16% a diciembre 2025. Finaliza ejecución en agosto de 2026. $4 mil millones - FINDETER - Avance alrededor 40%. Finaliza en junio de 2025 posible prórroga hasta agosto 2026. | N63: Reporte de avance de ejecución con soportes, Prorroga, | O63: Reporte de avance de ejecución con soportes | P63: Finalización, liquidación, | R63: =+N63 -> Reporte de avance de ejecución con soportes, Prorroga,
A64: Interior | B64: Construcción de Alcaldía de Argelia | C64: =+'INTERIOR 2'!D4 -> Inversión | D64: =+'INTERIOR 2'!E4 -> Ejecución | E64: 0 | F64: 8438159066 | G64: 0 | H64: 0 | I64: 0 | J64: 0 | K64: =SUM(E64:J64) -> 8438159066 | L64: Ministerio del Interior | M64: =+'INTERIOR 2'!X4 -> Ejecución. Avance 56,83%. Convenio $8.438.159.066; Finaliza 31 de julio de 2026. | N64: Reporte de avance de ejecución con soportes | O64: Reporte de avance de ejecución con soportes | P64: Finalización, liquidación, | R64: =+N64 -> Reporte de avance de ejecución con soportes
A65: Interior | B65: Construcción de Alcaldía de Guapi | C65: =+'INTERIOR 2'!D5 -> Inversión | D65: =+'INTERIOR 2'!E5 -> Ejecución | E65: 0 | F65: 9231695652 | G65: 0 | H65: 0 | I65: 0 | J65: 0 | K65: 9231695652 | L65: Ministerio del Interior | M65: =+'INTERIOR 2'!X5 -> Ejecución. Avance 21,61%. Convenio $9.237.788.109; Finaliza 30 de abril de 2026. | N65: Reporte de avance de ejecución con soportes, Prorroga, | O65: Reporte de avance de ejecución con soportes | P65: Finalización, liquidación, | R65: Reporte de avance de ejecución con soportes, Prorroga,
A66: Cultura | B66: Construcción casa de saberes municipio de Guachené Cauca. | C66: =+'CULTURA 3'!D4 -> Inversión | D66: =+'CULTURA 3'!E4 -> Ejecución | E66: 0 | F66: 1200000000 | G66: 0 | H66: 0 | I66: 0 | J66: 0 | K66: 1200000000 | L66: Ministerio de las Culturas, las Artes y los Saberes | M66: =+'CULTURA 3'!W4 -> MinCultura 20/04/2026: Actualmente se están llevando a cabo actividades de ejecución de la obra. No obstante, es importante señalar que debido a temas de orden público en la zona del Cauca el avance de este proyecto ha tenido dificultades en el cumplimiento del cronograma. Por esa razón el 29 de diciembre se suscribió prórroga que extiendió el plazo de terminación de las obras hasta el 3/06/2026. Actualmente el avance de obra se encuentra en 6% y se proyecta que el segundo y tercer trimestre se continue con el proceso de ejecución del proyecto. El contrato tiene previsto la finalización en el segundo trimestre de 2026, pero se prevé la ampliación del mismo al tercer trimestre de este mismo año Valores comprometidos | N66: Reporte de avance de ejecución con soportes | O66: Reporte de avance de ejecución con soportes | P66: Reporte de avance de ejecución con soportes | R66: Reporte de avance de ejecución con soportes
A67: Presidencia | B67: Trece incentivos para la paz territorial . Fortalecer organizaciones comunales, étnicas, sociales, productivas, comunitarias, de jóvenes y de mujeres, entre otras, que estén legalmente constituidas, mediante una estrategia de incentivos para la implementación de proyectos de ejecución comunitaria. | C67: =+PRESIDENCIA!D4 -> Inversión | D67: =+PRESIDENCIA!E4 -> Ejecución | E67: 0 | F67: 751941570 | G67: 0 | H67: 0 | I67: 0 | J67: 0 | K67: 751941570 | L67: Fondo de Programas Especiales para la Paz | M67: =+PRESIDENCIA!V4 -> 751941570 En Ejecución, En ejecución de obra0,35El presupuesto total comprometido corresponde a la implementación integral de la Estrategia de Incentivos Comunitarios para la Paz Total en los tres municipios del departamento del Cauca donde se desarrolla la intervención. Este monto incluye: - El valor de los incentivos entregados a cada organización beneficiaria. - Los costos del equipo técnico encargado de la implementación, el seguimiento y el fortalecimiento de la estrategia en el departamento. -La cuota de administración y gerencia a cargo del socio implementador. De esta manera, y en consonancia con la modalidad de administración de recursos, se reporta al aliado el 100% de la ejecución financiera comprometida. Posteriormente, dicho aliado realiza los desembolsos conforme avanza la ejecución programada. | N67: Reporte de avance de ejecución con soportes | O67: Reporte de avance de ejecución con soportes | P67: Reporte de avance de ejecución con soportes | Q67: Reporte de avance de ejecución con soportes | R67: Reporte de avance de ejecución con soportes
A68: Presidencia | B68: Complementación de estudios y diseños y la adecuación y mejoramiento del centro de desarrollo infantil - CDI en granito de oro | C68: =+PRESIDENCIA!D5 -> Inversión | D68: =+PRESIDENCIA!E5 -> Terminado | E68: 0 | F68: 1698933967 | G68: 0 | H68: 0 | I68: 0 | J68: 0 | K68: 1698933967 | L68: Fondo de Programas Especiales para la Paz | M68: =+PRESIDENCIA!V5 -> 1698933967 Terminado, Ejecutado1Proyecto finalizado, con financiación del Fondo de Programas Especiales para la Paz bajo Recursos Entregados en Administración en el marco del convenio FP-558-2021 suscrito con FINDETER. | N68: Finalización, liquidación, | R68: Finalización, liquidación,
A69: Cultura | B69: Adecuación y dotación de la Casa de la Cultura de Guapi | C69: =+'CULTURA 3'!D5 -> Inversión | D69: =+'CULTURA 3'!E5 -> Ejecución | E69: 0 | F69: 716000000 | G69: 0 | H69: 0 | I69: 0 | J69: 0 | K69: 716000000 | L69: Ministerio de las Culturas, las Artes y los Saberes | M69: =+'CULTURA 3'!W5 -> Comprometidos y obligados/desembolso $recursos del municipio MinCultura 20/04/2026: El 16 de diciembre de 2024 se emitió la resolución No. 1587 mediante la cual se autoriza el aporte a la escuela taller de Popayán para la realización de proceso de formación en construcción especializada para el mantenimiento e intervenciones menores y adecuaciones de espacios culturales, en la cual se incluyó el mejoramiento de la casa de cultura. Las actividades prácticas en la casa de cultura se iniciaron el 1 de octubre de 2025 y actualmente ese proceso cuenta con un avance del 50%. La ejecución de actividades debió suspenderse pues era necesario emitir resolución de redistribución de recursos y la entidad territorial debía enviar el certificado de estabilidad estructural de esta infraestructura. Finalmente el certificado fue enviado el 10 de abril de 2026, actualmente ese documento se encuentra en validación por parte del Grupo de Infraestructura Cultural de este Ministerio. Es importante señalar que los recursos de la resolución corresponden a la vigencia 2024. Se suscribió contrato de dotación por un valor de $91.528.466,13 y esta entrega se realizó en diciembre de 2025. Los recursos dispuesto por la alcaldía corresponden a reforzamiento estructural de la edificación, compromiso adquirido en diciembre de 2024 el cual se ejecutó entre mayo y septiembre de 2025. Las actividades proyectadas para continuar con este proyecto son: la revisión del certificado de estabilidad enviado por la alcaldía del municipio, emitir la resolución de redistribución de recursos y levantar la suspensión de actividades para continuar con el proceso de formación adelantado por la Escuela Taller. Esto ocurrirá entre el segundo y tercer trimestre del año 2026. Adicionalmente se espera continuar con la obra en el tercer y cuarto trimestre de este mismo año. Finalización 3er trimestre. 2026 | N69: Reinicio de actividades, | O69: Reporte de avance de ejecución con soportes | P69: Finalización, liquidación, | R69: Reinicio de actividades,
A70: Cultura | B70: Construcción casa de saberes municipio de Villa Rica, Cauca | C70: =+'CULTURA 3'!D6 -> Inversión | D70: =+'CULTURA 3'!E6 -> Ejecución | E70: 0 | F70: 1200000000 | G70: 0 | H70: 0 | I70: 0 | J70: 0 | K70: 1200000000 | L70: Ministerio de las Culturas, las Artes y los Saberes | M70: =+'CULTURA 3'!W6 -> MinCultura 20/04/2026: Actualmente se están llevando a cabo actividades de ejecución de la obra. No obstante, es importante señalar que debido a temas de orden público en la zona del Cauca el avance de este proyecto ha tenido dificultades en el cumplimiento del cronograma. Por esa razón el 29 de diciembre se suscribió prórroga que extiendió el plazo de terminación de las obras hasta el 3/06/2026. Actualmente el avance de obra se encuentra en 8% y se prevé que en el segundo y tercer trimestre se continue con el proceso de ejecución del proyecto. El contrato tiene previsto finalizarse en el segundo trimestre, pero se prevé la ampliación del mismo al tercer trimestre de 2026 Valores comprometidos | N70: Reporte de avance de ejecución con soportes | O70: Reporte de avance de ejecución con soportes | P70: Reporte de avance de ejecución con soportes | Q70: Finalización, liquidación, | R70: Reporte de avance de ejecución con soportes
A71: Tecnologías de la Información y las Comunicaciones | B71: Zonas Comunitarias para la Paz (soluciones de Internet comunitario WiFi a escuelas rurales oficiales que carecen de conectividad, en municipios cobijados por los Programas de Desarrollo con Enfoque Territorial – PDET) | C71: =+'TICs 4'!D5 -> Operación | D71: =+'TICs 4'!E5 -> Ejecución | E71: 0 | F71: 18033339258 | G71: 0 | H71: 0 | I71: 0 | J71: 0 | K71: 18033339258 | L71: Ministerio de Tecnologías de la Información y las Comunicaciones | M71: =+'TICs 4'!Y5 -> 21/04/2026. $6.678 millones corresponden a estimaciones. Ejecución-Operación. Proyecto Zonas Comunitarias para la Paz. Inversion Estimada unicamente para los años 2025 a 2026. Meta: 159 zonas comunitarias para la PAZ (Cauca) y estan instaladas y en operación 158. Programa Finaliza ejecucion en julio de 2026. | N71: Reporte de avance de ejecución con soportes | O71: Reporte de avance de ejecución con soportes | P71: Reporte de avance de ejecución con soportes | Q71: Finalización, liquidación, | R71: Reporte de avance de ejecución con soportes
A72: Presidencia | B72: Estrategia de tránsito a economías lícitas | C72: Inversión | D72: Ejecución | E72: 0 | F72: 44672132177 | G72: 0 | H72: 0 | I72: 0 | J72: 0 | K72: =SUM(E72:J72) -> 44672132177 | L72: Dirección de Sustitución de Cultivos Ilícitos - Fondo Programas Especiales para la Paz (Fondo Paz) | M72: Se encuentra en el Programa de sustitución de economías ilegalizadas en el departamento del cauca- RENACEMOS (en la primera fila de este grupo de proyecto) | N72: Reporte de avance de ejecución con soportes, Prorroga, | O72: Reporte de avance de ejecución con soportes | P72: Finalización, liquidación, | R72: =+N72 -> Reporte de avance de ejecución con soportes, Prorroga,
A73: Total | B73: =+COUNTA(B63:B72) -> 10 | E73: =SUM(E63:E72) -> 0 | F73: =SUM(F63:F72) -> 105960649555 | G73: =SUM(G63:G72) -> 0 | H73: 0 | I73: 0 | J73: =SUM(J63:J72) -> 0 | K73: =SUM(K63:K72) -> 105960649555
A74: *Se entiende por entidad Responsable la encargada de la fuente de financiación.
A76: 4. Desarrollo Rural y Transformación Productiva
A77: Sector | B77: Nombre de la Iniciativa | C77: Etapa del Proyecto * | D77: Fase del Proyecto * | E77: Aporte Nación | G77: Aporte Territorio | J77: Otros recursos | K77: Inversión Total | L77: Entidad Responsable* | M77: Observaciones / Acciones | N77: Actividades a ejecutar
E78: DNP | F78: Sector | G78: Propios | H78: SGR | I78: Otros | N78: Trimestre 2 -2026 | O78: Trimestre 3 - 2026 | P78: Trimestre 4 -2026 | Q78: Trimestre 1 -2027 | R78: Actividad Principal
A79: Agricultura y Desarrollo Rural | B79: Proyecto Integrador de la Cadena de Coco: Programa Integral para el fortalecimiento de la cadena del coco (Coco+Pacífico, departamentos Cauca y Nariño) Fortalecer los cultivos de coco en la costa pacífica nariñense, mediante el trampeo para control del picudo, erradicación de cultivos y resiembra, estudio de mercado y acompañamiento técnico. | C79: =+'ART 1'!D4 -> Inversión | D79: =+'ART 1'!E4 -> Ejecución | E79: 0 | F79: 7774148263 | G79: 0 | H79: 0 | I79: 1916640000 | J79: 0 | K79: =SUM(E79:J79) -> 9690788263 | L79: Agencia de Renovación del Territorio / Comunidad | M79: =+'ART 1'!V4 -> 21/04/2026. $12.304 Ejecución. El proyecto tiene actividad principal en el departamento del Cauca y cierre financiero para las actividades en Nariño, que serán financiadas por el MADR. 10/03/2026. A cargo de la ART por un valor de $14.530.240 que ya está en ejecución. Correspondiente a Cauca que está a cargo de la ART. Municipios: Guapi, Timbiquí y López de Micay (Departamento del Cauca). En ejecución a través del Convenio 2288-2024 suscrito entre el FCP y FeDECOCO, con un aporte en Cauca como se reportó en esta matriz, tiene una ejecución técnica del 35,78% según informe del mes de enero de 2026. | N79: Reporte de avance de ejecución con soportes, Actualización información con soportes | O79: Reporte de avance de ejecución con soportes | P79: Reporte de avance de ejecución con soportes | Q79: Reporte de avance de ejecución con soportes | R79: =+N79 -> Reporte de avance de ejecución con soportes, Actualización información con soportes
A80: Agricultura y Desarrollo Rural | B80: Modernización de 1 distrito de riego de pequeña escala del municipio de Balboa en el Departamento de Cauca | C80: =+'ADR 8+'!D4 -> Preinversión | D80: =+'ADR 8+'!E4 -> Fase I | E80: 0 | F80: 278302508 | G80: 0 | H80: 0 | I80: 0 | J80: 0 | K80: =SUM(E80:J80) -> 278302508 | L80: Agencia de Desarrollo Rural - Fondo Nacional de Adecuación de Tierras | M80: =+'ADR 8+'!V4 -> $289 millones. El proyecto de modernización del Distrito de Adecuación de Tierras de Pequeña Escala El Vijal, ubicado en el municipio de Balboa (Cauca), será nuevamente postulado ante el Comité Técnico del Fondo Nacional de Adecuación de Tierras (FONAT), incorporando las subsanaciones y ajustes técnicos y documentales requeridos, así como la indexación presupuestal ($289.601.590). Lo anterior, con el propósito de avanzar en su priorización, financiación y posterior ejecución en la vigencia 2026. | N80: Priorización | O80: Viabilización del proyecto ante la cabeza del sector, | P80: Tramites para la suscripción de convenios, | Q80: Inicio de Actividades, , Reporte de avance de ejecución con soportes | R80: =+N80 -> Priorización
A81: Comercio, Industria y Turismo | B81: Fomento del sistema económico propio e intercultural que promueve la conservación cultural, la sostenibilidad productiva y el fortalecimiento de los espacios de vida y el buen vivir de las familias indígenas del CRIC desde el turismo indígena. | C81: =+'MCIT 7'!D4 -> Inversión | D81: =+'MCIT 7'!E4 -> Ejecución | E81: 0 | F81: 1090210000 | G81: 0 | H81: 0 | I81: 0 | J81: 0 | K81: 1090210000 | L81: FONTUR | M81: =+'MCIT 7'!Y4 -> 28/04/2026. Ejecución. Este proyecto corresponde a al fase II del proyecto por valor de $1.090 millones. Trimestre II se realizarán capacitaciones y 4 intercambios. De la fase II de este proyecto, avanzar con los compromisos con las comunidades. | N81: Reporte de avance de ejecución con soportes | O81: Reporte de avance de ejecución con soportes | P81: Reporte de avance de ejecución con soportes | Q81: Reporte de avance de ejecución con soportes | R81: Reporte de avance de ejecución con soportes
A82: Agricultura y Desarrollo Rural | B82: Transformación ecológica y productiva de zonas degradadas por cultivos de uso ilícito en áreas de especial importancia ambiental en los departamentos de Nariño, Cauca y Chocó (Sistemas agroforestales de cacao). | C82: =+'DSCI 3'!D5 -> Inversión | D82: =+'DSCI 3'!E5 -> Ejecución | E82: 0 | F82: 3444578612 | G82: 0 | H82: 0 | I82: 0 | J82: 0 | K82: 3444578612 | L82: Dirección de Sustitución de Cultivo de Uso Ilícito | M82: =+'DSCI 3'!V5 -> 23/04/2026. Ejecución. $9.945 millones. Socios implementadores: Naciones unidas contra las frogas y el delito - UNODC. Inicio enero 2026 hasta (24 meses) Finaliza en 13 enero de 2028. | N82: Reporte de avance de ejecución con soportes | O82: Reporte de avance de ejecución con soportes | P82: Reporte de avance de ejecución con soportes | Q82: Reporte de avance de ejecución con soportes | R82: Reporte de avance de ejecución con soportes
A83: Agricultura y Desarrollo Rural | B83: Fortalecimiento de las capacidades productivas de café, mora, ganadería de leche y gallinas ponedoras de acuerdo con los usos y costumbres del pueblo Nasa en el municipio de Páez. | C83: =+'ADR 8+'!D5 -> Inversión | D83: =+'ADR 8+'!E5 -> Ejecución | E83: 0 | F83: 3743625098 | G83: 0 | H83: 0 | I83: 2696650131 | J83: 0 | K83: 6440275229 | L83: Agencia de Desarrollo Rural / Comunidad | M83: =+'ADR 8+'!V5 -> Resolución de cofinanciación 201 suscrita el 28 de mayo de 2025 | N83: Actualización información con soportes | O83: Reporte de avance de ejecución con soportes | P83: Reporte de avance de ejecución con soportes | Q83: Reporte de avance de ejecución con soportes | R83: Actualización información con soportes
A84: Agricultura y Desarrollo Rural | B84: Fortalecimiento de las actividades económicas propias de las comunidades indígenas del oriente caucano de las familias pertenecientes a la Asociación De Autoridades Indígenas Del Oriente Caucano Totoguampa en los municipios de Silvia, Totoró, Piendamó y Morales | C84: =+'ADR 8+'!D6 -> Inversión | D84: =+'ADR 8+'!E6 -> Ejecución | E84: 0 | F84: 4582327956 | G84: 0 | H84: 0 | I84: 2273240968 | J84: 0 | K84: 6855568924 | L84: Agencia de Desarrollo Rural / Comunidad | M84: =+'ADR 8+'!V6 -> $6.899 millones. Ejecución. Mediante la Resolución No. 200 de 2025 de la Agencia de Desarrollo Rural (ADR), el proyecto se encuentra actualmente en fase de ejecución y tiene como propósito fortalecer las actividades productivas de las comunidades indígenas, así como mejorar la productividad de sus sistemas económicos propios. En este marco, se proyecta beneficiar a distintos grupos de productores a través de varias líneas productivas, a saber: 71 productores en café, 14 en fresa, 23 en cultivos tradicionales (maíz y frijol), 40 en producción ovina, 78 en aves de postura y 62 en cerdos de ceba, además del establecimiento de una granja avícola biosegura. Estas intervenciones impactarán a familias adscritas a la Asociación de Autoridades Indígenas del Oriente Caucano Totoguampa. Cada una de estas líneas contempla la provisión de insumos, materiales, equipos, el mejoramiento de infraestructura productiva y el acompañamiento técnico especializado, con el fin de garantizar la sostenibilidad y eficiencia de los procesos productivos. En cuanto al avance del proyecto, ya se han adjudicado los contratos correspondientes a la prestación del servicio de asistencia técnica y, con corte al 30 de marzo de 2026, se realizó la adjudicación de los términos de referencia para el suministro de materiales destinados al mejoramiento de infraestructura. Lo anterior evidencia un progreso concreto en la fase operativa y el avance efectivo en la implementación del proyecto. Si quieres, puedo ajustarlo aún más al formato que pide SINERGIA (más corto, con enfoque en avance vs. meta y sin tanto contexto). | N84: Reporte de avance de ejecución con soportes | O84: Reporte de avance de ejecución con soportes | P84: Reporte de avance de ejecución con soportes | Q84: Finalización, liquidación, | R84: Reporte de avance de ejecución con soportes
A85: Agricultura y Desarrollo Rural | B85: Impulsar la productividad y competitividad del grano de café, mediante la producción primaria y el beneficio como una apuesta al mejoramiento de la calidad del grano, atendiendo la integralidad técnica, organizacional, ambiental y comercial de los caficultores de la ANUC en el departamento de Cauca | C85: =+'ADR 8+'!D7 -> Preinversión | D85: =+'ADR 8+'!E7 -> Fase I | E85: 0 | F85: 12000000000 | G85: 0 | H85: 0 | I85: 0 | J85: 0 | K85: 12000000000 | L85: Agencia de Desarrollo Rural | M85: =+'ADR 8+'!V7 -> El proyecto registra avances significativos en la etapa de estructuración, evidenciando un desarrollo sólido en los componentes técnico-productivo, jurídico y ambiental, en los cuales se han consolidado documentos base, paquetes técnicos y procesos de validación de la información. No obstante, el proceso continúa en fase de ajuste y consolidación en los componentes asociativo, comercial y técnico-financiero, los cuales requieren mayor articulación y cierre para completar la estructuración integral del proyecto. En este sentido, se evidencia un proceso activo de construcción técnica orientado a garantizar su viabilidad y futura implementación. | N85: Viabilización del proyecto ante la cabeza del sector, | O85: Gestión de recursos | P85: Inicio de Actividades, , Reporte de avance de ejecución con soportes | Q85: Reporte de avance de ejecución con soportes | R85: Viabilización del proyecto ante la cabeza del sector,
A86: Inclusión Social y Reconciliación | B86: Plaza De Mercado de Puerto Tejada | C86: =+'DPS 23'!D4 -> Inversión | D86: =+'DPS 23'!E4 -> Contratación | E86: 0 | F86: 23000000000 | G86: 0 | H86: 0 | I86: 0 | J86: 0 | K86: 23000000000 | L86: Departamento Administrativo de Prosperidad Social | M86: =+'DPS 23'!V4 -> No Iniciado, En viabilidadPROYECTO PRIORIZADO MEDIANTE CONVENIO # 911-FIP-2024 . Estado Convenio: Suscrito con el municipio A 30 de septiembre del 2025, el proceso de obra y consultaría se encuentran en proceso de evaluación y observaciones, se sacó a publicación con las plazas de Tumaco y Argelia. Respecto a la contratación derivada de la Interventoría el estado es el siguiente: El proceso de estructuración, se declaro fallido y se debe publicar nuevamente. | N86: Tramites para la suscripción de convenios, | O86: Reporte de avance de ejecución con soportes | P86: Reporte de avance de ejecución con soportes | Q86: Reporte de avance de ejecución con soportes | R86: Tramites para la suscripción de convenios,
A87: Comercio, Industria y Turismo | B87: Centros de Reindustrialización - ZASCAS | C87: =+'MCIT 7'!D5 -> Inversión | D87: =+'MCIT 7'!E5 -> Ejecución | E87: 0 | F87: 3017000000 | G87: 0 | H87: 0 | I87: 0 | J87: 0 | K87: 3017000000 | L87: Ministerio de Comercio, Industria y Turismo | M87: =+'MCIT 7'!Y5 -> 22/04/2026. $3.016 comprometidos. Ejecución-Operación. Avance técnico 53% Financiero 39% febrero 2026. Este programa se ejecuta mediante un aporte realizado en la vigencia 2023 por valor de $3.016.949.670 ejecutado por el PA; este recurso permite mantener el programa en operación hasta el 2026. Su financiación para vigencias posteriores esta en función de los procesos de discusión de los anteproyectos de presupuesto nacional para esas vigencias. No corresponde a un proyecto si no a un programa del Ministerio/Misionalidad. | N87: Reporte de avance de ejecución con soportes | O87: Reporte de avance de ejecución con soportes | P87: Reporte de avance de ejecución con soportes | Q87: Finalización, liquidación, | R87: Reporte de avance de ejecución con soportes
A88: Comercio, Industria y Turismo | B88: Empretur - Litoral Pacífico | C88: =+'MCIT 7'!D6 -> Operación | D88: =+'MCIT 7'!E6 -> Ejecución | E88: 0 | F88: 2265810107 | G88: 0 | H88: 0 | I88: 0 | J88: 0 | K88: 2265810107 | L88: Ministerio de Comercio, Industria y Turismo - FONTUR | M88: =+'MCIT 7'!Y6 -> 22/04/2026. $2.265 millones comprometido. Ejecución-Operación. Avance tecnico 67% y 35% financiero diciembre 2025. Este programa se ejecuta mediante un aporte realizado en la vigencia 2023 por valor de $2.265.810.107; este recurso permite mantener el programa en operación hasta el 2026. Su financiación para vigencias posteriores esta en función de los procesos de discusión de los anteproyectos de presupuesto nacional para esas vigencias. No corresponde a un proyecto si no a un programa del Ministerio/Misionalidad. | N88: Reporte de avance de ejecución con soportes | O88: Reporte de avance de ejecución con soportes | P88: Reporte de avance de ejecución con soportes | Q88: Finalización, liquidación, | R88: Reporte de avance de ejecución con soportes
A89: Comercio, Industria y Turismo | B89: Estudios, diseños complementarios y construccion de obras de infraestructura turística para el PNN - Gorgona | C89: =+'MCIT 7'!D7 -> Inversión | D89: =+'MCIT 7'!E7 -> Ejecución | E89: 0 | F89: 10014000000 | G89: 0 | H89: 0 | I89: 0 | J89: 0 | K89: 10014000000 | L89: Ministerio de Comercio, Industria y Turismo - FONTUR | M89: =+'MCIT 7'!Y7 -> 22/04/2026. $8.825 millones comprometidos. Ejecución, avance financiero 5%. De acuerdo con el Convenio de Cooperación FNTC-422-2024 la contratación derivada esta a Cargo de Patrimonio Natural Fondo para la Biodiversidad y áreas protegidas. Finaliza ejecución en diciembre 2026. | N89: Reporte de avance de ejecución con soportes | O89: Reporte de avance de ejecución con soportes | P89: Reporte de avance de ejecución con soportes | Q89: Reporte de avance de ejecución con soportes | R89: Reporte de avance de ejecución con soportes
A90: Inclusión Social y Reconciliación | B90: Plaza De Mercado Argelia | C90: =+'DPS 23'!D5 -> Inversión | D90: =+'DPS 23'!E5 -> Contratación | E90: 0 | F90: 9000000000 | G90: 0 | H90: 0 | I90: 0 | J90: 0 | K90: 9000000000 | L90: Departamento Administrativo de Prosperidad Social | M90: =+'DPS 23'!V5 -> 0 No Iniciado, En viabilidadPROYECTO PRIORIZADO MEDIANTE CONVENIO # 911-FIP-2024 . Estado Convenio: Suscrito con el municipio A 30 de septiembre del 2025, el proceso de obra y consultaría se encuentran en proceso de evaluación y observaciones, se sacó a publicación con las plazas de Tumaco y Puerto Tejada. Respecto a la contratación derivada de la Interventoría el estado es el siguiente: Se recomienda adjudicar el 22 de agosto de 2025 con ALIANZA INTEGRAL DE PROYECTOS SAS BIC por la suma de Mil ciento ochenta y tres millones trescientos ochenta y cuatro mil ochocientos sesenta y dos pesos con noventa centavos M/CTE ($1.183.384.862,90), el proceso se suspendió el 25 de agosto de 2025, | N90: Tramites para la suscripción de convenios, , Inicio de Actividades, | O90: Reporte de avance de ejecución con soportes | P90: Reporte de avance de ejecución con soportes | Q90: Reporte de avance de ejecución con soportes | R90: Tramites para la suscripción de convenios, , Inicio de Actividades,
A91: Información Estadística | B91: Actualización catastral Almaguer | C91: =+'IGAC 13'!D4 -> Inversión | D91: =+'IGAC 13'!E4 -> Contratación | E91: 0 | F91: 1.17631763e+10 | G91: 0 | H91: 0 | I91: 0 | J91: 0 | K91: 1.17631763e+10 | L91: IGAC - Instituto Geográfico Agustín Codazzi | M91: =+'IGAC 13'!V4 -> 0 No Iniciado, En estructuración0,0911Actualmente se encuentra en proceso de evaluación las propuestas remitidas por los oferentes | N91: Tramites para la suscripción de convenios, , Inicio de Actividades, | O91: Reporte de avance de ejecución con soportes | P91: Reporte de avance de ejecución con soportes | Q91: Reporte de avance de ejecución con soportes | R91: Tramites para la suscripción de convenios, , Inicio de Actividades,
A92: Información Estadística | B92: Actualización catastral El Tambo | C92: =+'IGAC 13'!D5 -> Inversión | D92: =+'IGAC 13'!E5 -> Ejecución | E92: 0 | F92: 9009284952 | G92: 0 | H92: 0 | I92: 0 | J92: 0 | K92: 9009284952 | L92: IGAC - Instituto Geográfico Agustín Codazzi | M92: =+'IGAC 13'!V5 -> 9009284952 En Ejecución, En ejecución de obra0,749194425394139Lo correspondiente a la zona urbana entró en vigencia en 2025. Por otra parte, lo correspondiente a la información en zona rural fuera de territorios étnicos formalizados está previsto que entre en vigencia en 2026. | N92: Reporte de avance de ejecución con soportes | O92: Reporte de avance de ejecución con soportes | P92: Reporte de avance de ejecución con soportes | Q92: Reporte de avance de ejecución con soportes | R92: Reporte de avance de ejecución con soportes
A93: Información Estadística | B93: Actualización catastral Mercaderes | C93: =+'IGAC 13'!D6 -> Inversión | D93: =+'IGAC 13'!E6 -> Ejecución | E93: 0 | F93: 5622405454 | G93: 0 | H93: 0 | I93: 0 | J93: 0 | K93: 5622405454 | L93: IGAC - Instituto Geográfico Agustín Codazzi | M93: =+'IGAC 13'!V6 -> 5622405454 En Ejecución, En ejecución de obra0,1845Actualmente en ejecución en el marco del Convenio de Cooperación Técnica entre IGAC y FAO. | N93: Reporte de avance de ejecución con soportes | O93: Reporte de avance de ejecución con soportes | P93: Reporte de avance de ejecución con soportes | Q93: Reporte de avance de ejecución con soportes | R93: Reporte de avance de ejecución con soportes
A94: Información Estadística | B94: Actualización catastral Inzá | C94: =+'IGAC 13'!D7 -> Inversión | D94: =+'IGAC 13'!E7 -> Ejecución | E94: 0 | F94: 5564125714 | G94: 0 | H94: 0 | I94: 0 | J94: 0 | K94: 5564125714 | L94: IGAC - Instituto Geográfico Agustín Codazzi | M94: =+'IGAC 13'!V7 -> 5564125714 En Ejecución, En ejecución de obra0,18066Actualmente en ejecución en el marco del Convenio de Cooperación Técnica entre IGAC y FAO. | N94: Reporte de avance de ejecución con soportes | O94: Reporte de avance de ejecución con soportes | P94: Reporte de avance de ejecución con soportes | Q94: Reporte de avance de ejecución con soportes | R94: Reporte de avance de ejecución con soportes
A95: Información Estadística | B95: Actualización catastral Piamonte | C95: =+'IGAC 13'!D8 -> Inversión | D95: =+'IGAC 13'!E8 -> Ejecución | E95: 0 | F95: 5447394451 | G95: 0 | H95: 0 | I95: 0 | J95: 0 | K95: 5447394451 | L95: IGAC - Instituto Geográfico Agustín Codazzi | M95: =+'IGAC 13'!V8 -> 5447394451 En Ejecución, En ejecución de obra0,321200367602498El municipio se ejecuta por modelo de operación tercerizado y está previsto que la información resultado del proceso de actualización catastral se ponga en vigencia en 2026. | N95: Reporte de avance de ejecución con soportes | O95: Reporte de avance de ejecución con soportes | P95: Reporte de avance de ejecución con soportes | Q95: Reporte de avance de ejecución con soportes | R95: Reporte de avance de ejecución con soportes
A96: Información Estadística | B96: Actualización catastral Cajibío | C96: =+'IGAC 13'!D9 -> Inversión | D96: =+'IGAC 13'!E9 -> Ejecución | E96: 0 | F96: 4190085530 | G96: 0 | H96: 0 | I96: 0 | J96: 0 | K96: 4190085530 | L96: IGAC - Instituto Geográfico Agustín Codazzi | M96: =+'IGAC 13'!V9 -> 4190085530 En Ejecución, En ejecución de obra0,58464917285456El municipio se ejecuta por modelo de operación directa y está previsto que la información resultado del proceso de actualización catastral se ponga en vigencia en 2026. | N96: Reporte de avance de ejecución con soportes | O96: Reporte de avance de ejecución con soportes | P96: Reporte de avance de ejecución con soportes | Q96: Reporte de avance de ejecución con soportes | R96: Reporte de avance de ejecución con soportes
A97: Información Estadística | B97: Actualización catastral Patía | C97: =+'IGAC 13'!D10 -> Inversión | D97: =+'IGAC 13'!E10 -> Ejecución | E97: 0 | F97: 4090286067 | G97: 0 | H97: 0 | I97: 0 | J97: 0 | K97: 4090286067 | L97: IGAC - Instituto Geográfico Agustín Codazzi | M97: =+'IGAC 13'!V10 -> 4090286067 En Ejecución, En ejecución de obra0,244735468102033El municipio se ejecuta por modelo de operación directa y está previsto que la información resultado del proceso de actualización catastral se ponga en vigencia en 2027. | N97: Reporte de avance de ejecución con soportes | O97: Reporte de avance de ejecución con soportes | P97: Reporte de avance de ejecución con soportes | Q97: Reporte de avance de ejecución con soportes | R97: Reporte de avance de ejecución con soportes
A98: Información Estadística | B98: Actualización catastral Argelia | C98: =+'IGAC 13'!D11 -> Inversión | D98: =+'IGAC 13'!E11 -> Terminación anticipada | E98: 0 | F98: 3980448857 | G98: 0 | H98: 0 | I98: 0 | J98: 0 | K98: 3980448857 | L98: IGAC - Instituto Geográfico Agustín Codazzi | M98: =+'IGAC 13'!V11 -> 0 No Iniciado, Desistido/caducado0,178869445751066El municipio se retira del Plan Operativo de Formación y/o actualización catastral con enfoque multipropósito 2025-2026 teniendo condiciones de seguridad en ekl municipio | N98: Actualización información con soportes | O98: Finalización, liquidación, | R98: Actualización información con soportes
A99: Información Estadística | B99: Actualización catastral Sucre | C99: =+'IGAC 13'!D12 -> Inversión | D99: =+'IGAC 13'!E12 -> Contratación | E99: 0 | F99: 3852618280 | G99: 0 | H99: 0 | I99: 0 | J99: 0 | K99: 3852618280 | L99: IGAC - Instituto Geográfico Agustín Codazzi | M99: =+'IGAC 13'!V12 -> 0 No Iniciado, En estructuración0,114Actualmente se encuentra en proceso de evaluación las propuestas remitidas por los oferentes | N99: Tramites para la suscripción de convenios, , Inicio de Actividades, | O99: Reporte de avance de ejecución con soportes | P99: Reporte de avance de ejecución con soportes | Q99: Reporte de avance de ejecución con soportes | R99: Tramites para la suscripción de convenios, , Inicio de Actividades,
A100: Información Estadística | B100: Actualización catastral Florencia | C100: =+'IGAC 13'!D13 -> Inversión | D100: =+'IGAC 13'!E13 -> Ejecución | E100: 0 | F100: 3261334360 | G100: 0 | H100: 0 | I100: 0 | J100: 0 | K100: 3261334360 | L100: IGAC - Instituto Geográfico Agustín Codazzi | M100: =+'IGAC 13'!V13 -> 3261334360 En Ejecución, En ejecución de obra0,185308619260724Actualmente en ejecución en el marco del Convenio de Cooperación Técnica entre IGAC y FAO. | N100: Reporte de avance de ejecución con soportes | O100: Reporte de avance de ejecución con soportes | P100: Reporte de avance de ejecución con soportes | Q100: Reporte de avance de ejecución con soportes | R100: Reporte de avance de ejecución con soportes
A101: Información Estadística | B101: Actualización catastral Miranda | C101: =+'IGAC 13'!D14 -> Inversión | D101: =+'IGAC 13'!E14 -> Terminado | E101: 0 | F101: 3250675512 | G101: 0 | H101: 0 | I101: 0 | J101: 0 | K101: 3250675512 | L101: IGAC - Instituto Geográfico Agustín Codazzi | M101: =+'IGAC 13'!V14 -> 3250675512 Terminado, Ejecutado0,963621382027131Lo correspondiente a la zona urbana y rural fuera de Territorios Étnicos Formalizados entró en vigencia en 2025. | N101: Finalización, liquidación, | R101: Finalización, liquidación,
A102: Información Estadística | B102: Actualización catastral Guachené | C102: =+'IGAC 13'!D15 -> Inversión | D102: =+'IGAC 13'!E15 -> Ejecución | E102: 0 | F102: 3115836458 | G102: 0 | H102: 0 | I102: 0 | J102: 0 | K102: 3115836458 | L102: IGAC - Instituto Geográfico Agustín Codazzi | M102: =+'IGAC 13'!V15 -> 3115836458 En Ejecución, En ejecución de obra0,561280652555065El municipio se ejecuta por modelo de operación directa y está previsto que la información resultado del proceso de actualización catastral se ponga en vigencia en 2026. | N102: Reporte de avance de ejecución con soportes | O102: Reporte de avance de ejecución con soportes | P102: Reporte de avance de ejecución con soportes | Q102: Reporte de avance de ejecución con soportes | R102: Reporte de avance de ejecución con soportes
A103: Información Estadística | B103: Actualización catastral Padilla | C103: =+'IGAC 13'!D16 -> Inversión | D103: =+'IGAC 13'!E16 -> Ejecución | E103: 0 | F103: 2111434549 | G103: 0 | H103: 0 | I103: 0 | J103: 0 | K103: 2111434549 | L103: IGAC - Instituto Geográfico Agustín Codazzi | M103: =+'IGAC 13'!V16 -> 2111434549 En Ejecución, En ejecución de obra0,704394328795725El municipio se ejecuta por modelo de operación directa y está previsto que la información resultado del proceso de actualización catastral se ponga en vigencia en 2026. | N103: Reporte de avance de ejecución con soportes | O103: Reporte de avance de ejecución con soportes | P103: Reporte de avance de ejecución con soportes | Q103: Reporte de avance de ejecución con soportes | R103: Reporte de avance de ejecución con soportes
A104: Comercio, Industria y Turismo | B104: Construcción del Centro Tematico Chicao en el municipio de Santander de Quilichao, Departamento del Cauca | C104: =+'MCIT 7'!D8 -> Inversión | D104: =+'MCIT 7'!E8 -> Ejecución | E104: 0 | F104: 15118265226 | G104: 0 | H104: 0 | I104: 0 | J104: 0 | K104: 15118265226 | L104: Ministerio de Comercio, Industria y Turismo - FONTUR | M104: =+'MCIT 7'!Y8 -> 22/04/2026. $15.118 millones (Fontur y Municipio de Sandanter de Quilichao). Por Iniciar Actividades. A la fecha esta pendiente el inicio de la contratación derivada. Plazo 7 meses. | N104: Inicio de Actividades, , Reporte de avance de ejecución con soportes | O104: Reporte de avance de ejecución con soportes | P104: Reporte de avance de ejecución con soportes | Q104: Finalización, liquidación, | R104: Inicio de Actividades, , Reporte de avance de ejecución con soportes
A105: Tecnologías de la Información y las Comunicaciones | B105: Servicio de asistencia técnica para proyectos TIC | C105: =+'TICs 4'!D6 -> Operación | D105: =+'TICs 4'!E6 -> Ejecución | E105: 0 | F105: 18489438308 | G105: 0 | H105: 0 | I105: 0 | J105: 0 | K105: 18489438308 | L105: Ministerio de Tecnologías de la Información y las Comunicaciones | M105: =+'TICs 4'!Y6 -> 21/04/2026. $9.986 millones convenios. Ejecución-Operación. Convenios establecidos con el CRIC 1480-2024 y 1636-2024, se consideran adiciones para cada convenio en 2026, las cuales estan consideradas en la inversion estimada para ese año. Finaliza ejecucion en 2026. | N105: Reporte de avance de ejecución con soportes, Adición de recursos sujeto a decisiones de la Entidad | O105: Reporte de avance de ejecución con soportes | P105: Reporte de avance de ejecución con soportes | Q105: Finalización, liquidación, | R105: Reporte de avance de ejecución con soportes, Adición de recursos sujeto a decisiones de la Entidad
A106: Comercio, Industria y Turismo | B106: Construcción y adecuación de la plazoleta regional de la Paz como escenario de promoción intercultural, turístico y de emprendimiento en el municipio de Miranda Cauca. | C106: =+'MCIT 7'!D9 -> Inversión | D106: =+'MCIT 7'!E9 -> Terminado | E106: 0 | F106: 14933900180 | G106: 0 | H106: 0 | I106: 0 | J106: 0 | K106: 14933900180 | L106: Ministerio de Comercio, Industria y Turismo - FONTUR | M106: =+'MCIT 7'!Y9 -> 22/04/2026. $14.933 millones ejecutados (Fontur y Municipio Miranda). Terminado. Proyecto entregado y recibido a satisfacción por el Municipio de Miranda (Cauca) el 11 de septiembre de 2025, actualmente se encuentra en proceso de cierre y posterior liquidación | N106: Actualización información con soportes | O106: Finalización, liquidación, | R106: Actualización información con soportes
A107: Inclusión Social y Reconciliación | B107: Plaza De Mercado de El Tambo | C107: =+'DPS 23'!D6 -> Inversión | D107: =+'DPS 23'!E6 -> Contratación | E107: 0 | F107: 4500000000 | G107: 0 | H107: 0 | I107: 0 | J107: 0 | K107: 4500000000 | L107: Departamento Administrativo de Prosperidad Social | M107: =+'DPS 23'!V6 -> 0 No Iniciado, En viabilidadPROYECTO PRIORIZADO MEDIANTE CONVENIO # 911-FIP-2024 . Estado Convenio: Suscrito con el municipio La Contratación derivada de la Consultaría, obra e interventoría , en procesos precontractuales, documentación Técnica en estructuración para publicación en SECOP II. Se requiere surtir modificación del contrato de fiducia para poder tener el soporte presupuestal. | N107: Tramites para la suscripción de convenios, | O107: Reporte de avance de ejecución con soportes | P107: Reporte de avance de ejecución con soportes | Q107: Reporte de avance de ejecución con soportes | R107: Tramites para la suscripción de convenios,
A108: Inclusión Social y Reconciliación | B108: Punto de Abastecimiento Solidario en Argelia | C108: =+'DPS 23'!D7 -> Preinversión | D108: =+'DPS 23'!E7 -> Fase III | E108: 0 | F108: 3300000000 | G108: 0 | H108: 0 | I108: 0 | J108: 0 | K108: 3300000000 | L108: Departamento Administrativo de Prosperidad Social | M108: =+'DPS 23'!V7 -> 0 No Iniciado, En viabilidadEl proyecto se encuentra viabilizado, en proceso de ESTUDIOS Y DISEÑOS y un avance de obra de 0% | N108: Tramites para la suscripción de convenios, , Inicio de Actividades, | O108: Reporte de avance de ejecución con soportes | P108: Reporte de avance de ejecución con soportes | Q108: Reporte de avance de ejecución con soportes | R108: Tramites para la suscripción de convenios, , Inicio de Actividades,
A109: Inclusión Social y Reconciliación | B109: Punto de Abastecimiento Solidario en Balboa | C109: =+'DPS 23'!D8 -> Preinversión | D109: =+'DPS 23'!E8 -> Fase III | E109: 0 | F109: 3300000000 | G109: 0 | H109: 0 | I109: 0 | J109: 0 | K109: 3300000000 | L109: Departamento Administrativo de Prosperidad Social | M109: =+'DPS 23'!V8 -> 0 No Iniciado, En estructuraciónEl proyecto se encuentra viabilizado, en proceso de ESTUDIOS Y DISEÑOS y un avance de obra de 0% | N109: Tramites para la suscripción de convenios, , Inicio de Actividades, | O109: Reporte de avance de ejecución con soportes | P109: Reporte de avance de ejecución con soportes | Q109: Reporte de avance de ejecución con soportes | R109: Tramites para la suscripción de convenios, , Inicio de Actividades,
A110: Inclusión Social y Reconciliación | B110: Punto de Abastecimiento Solidario en Cajibío | C110: =+'DPS 23'!D9 -> Inversión | D110: =+'DPS 23'!E9 -> Ejecución | E110: 0 | F110: 3300000000 | G110: 0 | H110: 0 | I110: 0 | J110: 0 | K110: 3300000000 | L110: Departamento Administrativo de Prosperidad Social | M110: =+'DPS 23'!V9 -> 0 No Iniciado, En estructuraciónEl proyecto se encuentra viabilizado, en proceso de ESTUDIOS Y DISEÑOS y un avance de obra de 0%, se inició la ejecución y se proyecta terminación para abril de 2026 | N110: Reporte de avance de ejecución con soportes | O110: Reporte de avance de ejecución con soportes | P110: Reporte de avance de ejecución con soportes | Q110: Reporte de avance de ejecución con soportes | R110: Reporte de avance de ejecución con soportes
A111: Inclusión Social y Reconciliación | B111: Punto de Abastecimiento Solidario en Caldono | C111: =+'DPS 23'!D10 -> Inversión | D111: =+'DPS 23'!E10 -> Ejecución | E111: 0 | F111: 3300000000 | G111: 0 | H111: 0 | I111: 0 | J111: 0 | K111: 3300000000 | L111: Departamento Administrativo de Prosperidad Social | M111: =+'DPS 23'!V10 -> 0 No Iniciado, En estructuraciónEl proyecto se encuentra viabilizado, en proceso de ESTUDIOS Y DISEÑOS y un avance de obra de 0%, se inició la ejecución y se proyecta terminación para abril de 2026 | N111: Reporte de avance de ejecución con soportes | O111: Reporte de avance de ejecución con soportes | P111: Reporte de avance de ejecución con soportes | Q111: Reporte de avance de ejecución con soportes | R111: Reporte de avance de ejecución con soportes
A112: Inclusión Social y Reconciliación | B112: Punto de Abastecimiento Solidario en Caloto | C112: =+'DPS 23'!D11 -> Preinversión | D112: =+'DPS 23'!E11 -> Sin información clara | E112: 0 | F112: 3300000000 | G112: 0 | H112: 0 | I112: 0 | J112: 0 | K112: 3300000000 | L112: Departamento Administrativo de Prosperidad Social | M112: =+'DPS 23'!V11 -> 0 No Iniciado, En estructuración | N112: Actualización información con soportes , Estructuración del proyecto, | O112: Viabilización del proyecto ante la cabeza del sector, , Tramites para la suscripción de convenios, | P112: Reporte de avance de ejecución con soportes | Q112: Reporte de avance de ejecución con soportes | R112: Actualización información con soportes , Estructuración del proyecto,
A113: Inclusión Social y Reconciliación | B113: Punto de Abastecimiento Solidario en Corinto | C113: =+'DPS 23'!D12 -> Preinversión | D113: =+'DPS 23'!E12 -> Fase III | E113: 0 | F113: 3300000000 | G113: 0 | H113: 0 | I113: 0 | J113: 0 | K113: 3300000000 | L113: Departamento Administrativo de Prosperidad Social | M113: =+'DPS 23'!V12 -> 0 No Iniciado, En estructuraciónEl proyecto se encuentra viabilizado, en proceso de ESTUDIOS Y DISEÑOS y un avance de obra de 0% | N113: Tramites para la suscripción de convenios, , Inicio de Actividades, | O113: Reporte de avance de ejecución con soportes | P113: Reporte de avance de ejecución con soportes | Q113: Reporte de avance de ejecución con soportes | R113: Tramites para la suscripción de convenios, , Inicio de Actividades,
A114: Inclusión Social y Reconciliación | B114: Punto de Abastecimiento Solidario en El Tambo | C114: =+'DPS 23'!D13 -> Preinversión | D114: =+'DPS 23'!E13 -> Fase III | E114: 0 | F114: 3300000000 | G114: 0 | H114: 0 | I114: 0 | J114: 0 | K114: 3300000000 | L114: Departamento Administrativo de Prosperidad Social | M114: =+'DPS 23'!V13 -> 0 No Iniciado, En estructuraciónEl proyecto se encuentra viabilizado, en proceso de ESTUDIOS Y DISEÑOS y un avance de obra de 0% | N114: Tramites para la suscripción de convenios, , Inicio de Actividades, | O114: Reporte de avance de ejecución con soportes | P114: Reporte de avance de ejecución con soportes | Q114: Reporte de avance de ejecución con soportes | R114: Tramites para la suscripción de convenios, , Inicio de Actividades,
A115: Inclusión Social y Reconciliación | B115: Punto de Abastecimiento Solidario en Guapi | C115: =+'DPS 23'!D14 -> Preinversión | D115: =+'DPS 23'!E14 -> Fase III | E115: 0 | F115: 3300000000 | G115: 0 | H115: 0 | I115: 0 | J115: 0 | K115: 3300000000 | L115: Departamento Administrativo de Prosperidad Social | M115: =+'DPS 23'!V14 -> 0 No Iniciado, En estructuraciónEl proyecto se encuentra viabilizado, en proceso de ESTUDIOS Y DISEÑOS y un avance de obra de 0%, se inició la ejecución y se proyecta terminación para abril de 2026 | N115: Reporte de avance de ejecución con soportes | O115: Reporte de avance de ejecución con soportes | P115: Reporte de avance de ejecución con soportes | Q115: Reporte de avance de ejecución con soportes | R115: Reporte de avance de ejecución con soportes
A116: Inclusión Social y Reconciliación | B116: Punto de Abastecimiento Solidario en Jámbalo | C116: =+'DPS 23'!D15 -> Inversión | D116: =+'DPS 23'!E15 -> Ejecución | E116: 0 | F116: 3300000000 | G116: 0 | H116: 0 | I116: 0 | J116: 0 | K116: 3300000000 | L116: Departamento Administrativo de Prosperidad Social | M116: =+'DPS 23'!V15 -> 0 No Iniciado, En estructuración El proyecto se encuentra viabilizado, en proceso de ESTUDIOS Y DISEÑOS y un avance de obra de 0%, se inició la ejecución y se proyecta terminación para abril de 2026 | N116: Reporte de avance de ejecución con soportes | O116: Reporte de avance de ejecución con soportes | P116: Finalización, liquidación, | R116: Reporte de avance de ejecución con soportes
A117: Inclusión Social y Reconciliación | B117: Punto de Abastecimiento Solidario en Mercaderes | C117: =+'DPS 23'!D16 -> Inversión | D117: =+'DPS 23'!E16 -> Ejecución | E117: 0 | F117: 3300000000 | G117: 0 | H117: 0 | I117: 0 | J117: 0 | K117: 3300000000 | L117: Departamento Administrativo de Prosperidad Social | M117: =+'DPS 23'!V16 -> 0 No Iniciado, En estructuraciónEl proyecto se encuentra viabilizado, en proceso de ESTUDIOS Y DISEÑOS y un avance de obra de 0%, se inició la ejecución y se proyecta terminación para abril de 2026 | N117: Actualización información con soportes , Reporte de avance de ejecución con soportes | O117: Reporte de avance de ejecución con soportes | P117: Finalización, liquidación, | R117: Actualización información con soportes , Reporte de avance de ejecución con soportes
A118: Inclusión Social y Reconciliación | B118: Punto de Abastecimiento Solidario en Miranda | C118: =+'DPS 23'!D17 -> Inversión | D118: =+'DPS 23'!E17 -> Ejecución | E118: 0 | F118: 3300000000 | G118: 0 | H118: 0 | I118: 0 | J118: 0 | K118: 3300000000 | L118: Departamento Administrativo de Prosperidad Social | M118: =+'DPS 23'!V17 -> 0 No Iniciado, En estructuraciónEl proyecto se encuentra viabilizado, en proceso de ESTUDIOS Y DISEÑOS y un avance de obra de 0%, se inició la ejecución y se proyecta terminación para abril de 2026 | N118: Actualización información con soportes , Reporte de avance de ejecución con soportes | O118: Reporte de avance de ejecución con soportes | P118: Finalización, liquidación, | R118: Actualización información con soportes , Reporte de avance de ejecución con soportes
A119: Inclusión Social y Reconciliación | B119: Punto de Abastecimiento Solidario en Morales | C119: =+'DPS 23'!D18 -> Inversión | D119: =+'DPS 23'!E18 -> Ejecución | E119: 0 | F119: 3300000000 | G119: 0 | H119: 0 | I119: 0 | J119: 0 | K119: 3300000000 | L119: Departamento Administrativo de Prosperidad Social | M119: =+'DPS 23'!V18 -> 0 No Iniciado, En estructuraciónEl proyecto se encuentra viabilizado, en proceso de ESTUDIOS Y DISEÑOS y un avance de obra de 0%, se inició la ejecución y se proyecta terminación para abril de 2026 | N119: Actualización información con soportes , Reporte de avance de ejecución con soportes | O119: Reporte de avance de ejecución con soportes | P119: Finalización, liquidación, | R119: Actualización información con soportes , Reporte de avance de ejecución con soportes
A120: Inclusión Social y Reconciliación | B120: Punto de Abastecimiento Solidario en Patía | C120: =+'DPS 23'!D19 -> Inversión | D120: =+'DPS 23'!E19 -> Ejecución | E120: 0 | F120: 3300000000 | G120: 0 | H120: 0 | I120: 0 | J120: 0 | K120: 3300000000 | L120: Departamento Administrativo de Prosperidad Social | M120: =+'DPS 23'!V19 -> 0 No Iniciado, En estructuraciónEl proyecto se encuentra viabilizado, en proceso de ESTUDIOS Y DISEÑOS y un avance de obra de 0%, se inició la ejecución y se proyecta terminación para abril de 2026 | N120: Actualización información con soportes , Reporte de avance de ejecución con soportes | O120: Reporte de avance de ejecución con soportes | P120: Finalización, liquidación, | R120: Actualización información con soportes , Reporte de avance de ejecución con soportes
A121: Inclusión Social y Reconciliación | B121: Punto de Abastecimiento Solidario en Popayán | C121: =+'DPS 23'!D20 -> Preinversión | D121: =+'DPS 23'!E20 -> Fase III | E121: 0 | F121: 3300000000 | G121: 0 | H121: 0 | I121: 0 | J121: 0 | K121: 3300000000 | L121: Departamento Administrativo de Prosperidad Social | M121: =+'DPS 23'!V20 -> 0 No Iniciado, En estructuraciónEl proyecto se encuentra viabilizado, en proceso de ESTUDIOS Y DISEÑOS y un avance de obra de 0% | N121: Tramites para la suscripción de convenios, , Inicio de Actividades, | O121: Reporte de avance de ejecución con soportes | P121: Reporte de avance de ejecución con soportes | Q121: Reporte de avance de ejecución con soportes | R121: Tramites para la suscripción de convenios, , Inicio de Actividades,
A122: Inclusión Social y Reconciliación | B122: Punto de Abastecimiento Solidario en Santander de Quilichao | C122: =+'DPS 23'!D21 -> Preinversión | D122: =+'DPS 23'!E21 -> Fase III | E122: 0 | F122: 3300000000 | G122: 0 | H122: 0 | I122: 0 | J122: 0 | K122: 3300000000 | L122: Departamento Administrativo de Prosperidad Social | M122: =+'DPS 23'!V21 -> 0 No Iniciado, En estructuraciónEl proyecto se encuentra viabilizado, en proceso de ESTUDIOS Y DISEÑOS y un avance de obra de 0% | N122: Tramites para la suscripción de convenios, , Inicio de Actividades, | O122: Reporte de avance de ejecución con soportes | P122: Reporte de avance de ejecución con soportes | Q122: Reporte de avance de ejecución con soportes | R122: Tramites para la suscripción de convenios, , Inicio de Actividades,
A123: Inclusión Social y Reconciliación | B123: Punto de Abastecimiento Solidario en Timbiquí | C123: =+'DPS 23'!D22 -> Preinversión | D123: =+'DPS 23'!E22 -> Sin información clara | E123: 0 | F123: 3300000000 | G123: 0 | H123: 0 | I123: 0 | J123: 0 | K123: 3300000000 | L123: Departamento Administrativo de Prosperidad Social | M123: =+'DPS 23'!V22 -> 0 No Iniciado, En estructuración | N123: Estructuración del proyecto, | O123: Estructuración del proyecto, | P123: Tramites para la suscripción de convenios, , Inicio de Actividades, | Q123: Reporte de avance de ejecución con soportes | R123: Estructuración del proyecto,
A124: Inclusión Social y Reconciliación | B124: Punto de Abastecimiento Solidario en Toribio | C124: =+'DPS 23'!D23 -> Inversión | D124: =+'DPS 23'!E23 -> Ejecución | E124: 0 | F124: 3300000000 | G124: 0 | H124: 0 | I124: 0 | J124: 0 | K124: 3300000000 | L124: Departamento Administrativo de Prosperidad Social | M124: =+'DPS 23'!V23 -> 0 No Iniciado, En estructuraciónEl proyecto se encuentra viabilizado, en proceso de ESTUDIOS Y DISEÑOS y un avance de obra de 0%, se inició la ejecución y se proyecta terminación para abril de 2026 | N124: Reporte de avance de ejecución con soportes | O124: Reporte de avance de ejecución con soportes | P124: Finalización, liquidación, | R124: Reporte de avance de ejecución con soportes
A125: Inclusión Social y Reconciliación | B125: Malecón Sobre El Rio Suárez | C125: =+'DPS 23'!D24 -> Inversión | D125: =+'DPS 23'!E24 -> Contratación | E125: 0 | F125: 3000000000 | G125: 0 | H125: 0 | I125: 0 | J125: 0 | K125: 3000000000 | L125: Departamento Administrativo de Prosperidad Social | M125: =+'DPS 23'!V24 -> 0 No Iniciado, En viabilidadPROYECTO PRIORIZADO MEDIANTE CONVENIO # 911-FIP-2024 . Convenio Suscrito con el municipio Documentación Técnica en estructuración para publicación en SECOP II. Se requiere surtir modificación del contrato de fiducia para poder tener el soporte presupuestal. | N125: Tramites para la suscripción de convenios, , Inicio de Actividades, | O125: Reporte de avance de ejecución con soportes | P125: Reporte de avance de ejecución con soportes | Q125: Reporte de avance de ejecución con soportes | R125: Tramites para la suscripción de convenios, , Inicio de Actividades,
A126: Inclusión Social y Reconciliación | B126: Construcción Plaza de Mercado de López de Micay Cauca | C126: =+'DPS 23'!D25 -> Inversión | D126: =+'DPS 23'!E25 -> Contratación | E126: 0 | F126: 6500000000 | G126: 0 | H126: 0 | I126: 0 | J126: 0 | K126: 6500000000 | L126: Departamento Administrativo de Prosperidad Social | M126: =+'DPS 23'!V25 -> 0 No Iniciado, En viabilidadPROYECTO PRIORIZADO MEDIANTE CONVENIO # 911-FIP-2024 . Estado Convenio: Suscrito con el municipio La Contratación derivada de la Consultaría, obra e interventoría , en procesos precontractuales, documentación Técnica en estructuración para publicación en SECOP II. Se requiere surtir modificación del contrato de fiducia para poder tener el soporte presupuestal. | N126: Tramites para la suscripción de convenios, , Inicio de Actividades, | O126: Reporte de avance de ejecución con soportes | P126: Reporte de avance de ejecución con soportes | Q126: Reporte de avance de ejecución con soportes | R126: Tramites para la suscripción de convenios, , Inicio de Actividades,
A127: Comercio, Industria y Turismo | B127: Línea de crédito de agroindustria para empresas con códigos de actividades económicas específicas del sector económico agroindustrial / municipios del Cañón del Micay. | C127: =+'MCIT 7'!D10 -> Operación | D127: =+'MCIT 7'!E10 -> Ejecución | E127: 0 | F127: 320000000 | G127: 0 | H127: 0 | I127: 0 | J127: 0 | K127: 320000000 | L127: Ministerio de Comercio, Industria y Turismo | M127: =+'MCIT 7'!Y10 -> 22/04/2026. $4.645 millones. Operación. La línea de crédito esta dispuesta desde abril de 2025 (Bamcoldex) y su vigencia es hasta agotar recursos, con corte al mes de marzo de 2026 no se han presentado solicitudes de crédito con cargo a esta línea para los municipios de Argelia, El Tambo, López de Micay, Guapi y Timbiquí. No corresponde a un proyecto, se considera un programa. | N127: Reporte de avance de ejecución con soportes | O127: Reporte de avance de ejecución con soportes | P127: Reporte de avance de ejecución con soportes | Q127: Reporte de avance de ejecución con soportes | R127: Reporte de avance de ejecución con soportes
A128: Agricultura y Desarrollo Rural | B128: Implementación de sistemas agroforestales sostenibles con componentes de asistencia técnica, transformación industrial y procesos de comercialización | C128: Inversión | D128: Ejecución | E128: 0 | F128: 18000000000 | G128: 0 | H128: 0 | I128: 0 | J128: 0 | K128: 18000000000 | L128: Dirección de Sustitución de Cultivo de Uso Ilícito | M128: Se encuentra en el proyecto "Transformación ecológica y productiva de zonas degradadas por cultivos de uso ilícito en áreas de especial importancia ambiental en los departamentos de Nariño, Cauca y Chocó (Sistemas agroforestales de cacao)." reportado por la DSCI | N128: Reporte de avance de ejecución con soportes | O128: Reporte de avance de ejecución con soportes | P128: Reporte de avance de ejecución con soportes | Q128: Reporte de avance de ejecución con soportes | R128: =+N128 -> Reporte de avance de ejecución con soportes
A129: Agricultura y Desarrollo Rural | B129: Modernización de 2 distrito de riego de pequeña escala del municipio de Totoró y Mercaderes en el Departamento de Cauca | C129: =+'ADR 8+'!D8 -> Preinversión | D129: =+'ADR 8+'!E8 -> Fase I | E129: 0 | F129: 856208160 | G129: 0 | H129: 0 | I129: 0 | J129: 0 | K129: 856208160 | L129: Agencia de Desarrollo Rural | M129: =+'ADR 8+'!V8 -> $923.millones. Fase I. Los proyectos de modernización de los distritos de riego de pequeña escala Chuscales (Totoró) y Mercaderes (Mercaderes) serán nuevamente postulados ante el Comité Técnico del Fondo Nacional de Adecuación de Tierras (FONAT), incorporando las subsanaciones y ajustes técnicos y documentales requeridos, así como la indexación presupuestal ($923.792.530). Lo anterior, con el fin de avanzar en su eventual priorización, financiación y ejecución durante la vigencia 2026. Cabe mencionar que no es posible informar la duración de la ejecución del proyecto, dado que, aunque la ADR ya realizó las subsanaciones correspondientes y el proyecto se encuentra listo para ser presentado nuevamente ante el Fondo Nacional de Adecuación de Tierras (FONAT) para su priorización y financiación, no es posible avanzar hasta tanto no se lleve a cabo el respectivo comité. Una vez este se realice, se podrá proceder con la priorización, financiación y contratación de la obra y su interventoría. | N129: Priorización | O129: Viabilización del proyecto ante la cabeza del sector, , Asignación de recursos, | P129: Tramites para la suscripción de convenios, | Q129: Inicio de Actividades, , Reporte de avance de ejecución con soportes | R129: Priorización
A130: Tecnologías de la Información y las Comunicaciones | B130: Centros digitales para conectividad | C130: =+'TICs 4'!D7 -> Operación | D130: =+'TICs 4'!E7 -> Ejecución | E130: 0 | F130: 3255584463 | G130: 0 | H130: 0 | I130: 0 | J130: 0 | K130: 3255584463 | L130: Ministerio de Tecnologías de la Información y las Comunicaciones | M130: =+'TICs 4'!Y7 -> 21/04/2026. $3.255.584.463 millones corresponden a estimaciones. Ejecución-Operación. Proyecto Centros Digitales. Inversion Estimada unicamente para el municipio de Lopez de Micay en los años 2025 a 2028. Meta: 15 centros digitales, y ya se encuentran instalados. Programa con Vigencias Futuras. Se encuentra en operación hasta 2031. | N130: Reporte de avance de ejecución con soportes | O130: Reporte de avance de ejecución con soportes | P130: Reporte de avance de ejecución con soportes | Q130: Reporte de avance de ejecución con soportes | R130: Reporte de avance de ejecución con soportes
A131: Agricultura y Desarrollo Rural | B131: Fortalecimiento de las capacidades productivas, organizacionales y comerciales de los productores de café, cítricos y cacao; en comunidades campesinas, afro e indígenas ubicados en los municipios de Miranda, Padilla, Puerto Tejada, Corinto, Caloto, Guachené, Villa Rica, Santander de Quilichao, Buenos Aires, Suarez y Caldono, en el Norte del Departamento del Cauca- BP 3694 | C131: =+'ADR 8+'!D9 -> Preinversión | D131: =+'ADR 8+'!E9 -> Fase I | E131: 0 | F131: 15000000000 | G131: 0 | H131: 0 | I131: 3750000000 | J131: 0 | K131: 18750000000 | L131: Agencia de Desarrollo Rural / Comunidad | M131: =+'ADR 8+'!V9 -> El proyecto, actualmente en fase de estructuración – etapa de factibilidad (Banco de Proyectos No. 3694), está orientado al fortalecimiento de las capacidades productivas, organizacionales y comerciales de productores de café, cítricos y cacao en municipios del norte del departamento del Cauca. A la fecha, el proyecto se encuentra en proceso de evaluación y calificación por parte de los equipos técnicos a nivel central, registrando avances significativos en los componentes técnico, comercial y asociativo, los cuales se encuentran consolidados. No obstante, el proceso se encuentra condicionado al cierre del componente jurídico, particularmente en lo relacionado con la verificación de potenciales beneficiarios y el cumplimiento de requisitos habilitantes, así como en la atención de subsanaciones puntuales de carácter formal. | N131: Estructuración del proyecto, , Viabilización del proyecto ante la cabeza del sector, | O131: Gestión de recursos | P131: Inicio de Actividades, , Reporte de avance de ejecución con soportes | Q131: Reporte de avance de ejecución con soportes | R131: Estructuración del proyecto, , Viabilización del proyecto ante la cabeza del sector,
A132: Agricultura y Desarrollo Rural | B132: Fortalecimiento de las capacidades productivas a través de bancos de maquinaria para los resguardos Huellas y Páez de Corinto en los predios de Liberación Emperatriz y García Arriba en los municipios de Caloto y Corinto en el marco de la Reforma Rural Integral | C132: =+'ADR 8+'!D10 -> Preinversión | D132: =+'ADR 8+'!E10 -> Fase I | E132: 0 | F132: 5000000000 | G132: 0 | H132: 0 | I132: 1250000000 | J132: 0 | K132: 6250000000 | L132: Agencia de Desarrollo Rural / Comunidad | M132: =+'ADR 8+'!V10 -> Proyecto en estructuración en fase de factibilidad (número de Banco de Proyectos - BP No. 3693). Se está a la espera de disponibilidad de recursos para cofinanciación. | N132: Estructuración del proyecto, | O132: Estructuración del proyecto, , Viabilización del proyecto ante la cabeza del sector, | P132: Gestión de recursos | Q132: Reporte de avance de ejecución con soportes | R132: Estructuración del proyecto,
A133: Agricultura y Desarrollo Rural | B133: Fortalecimiento a la capacidad productiva agroindustrial de la empresa procesadora y comercializadora de café tostado y molido “Nasa Café” orientada a mejorar la economía en el Territorio Indígena de la Parcialidad de Huellas Caloto - Norte del Cauca, con el fortalecimiento a caficultores, construcción y dotación de infraestructura y comercialización | C133: =+'ADR 8+'!D11 -> Preinversión | D133: =+'ADR 8+'!E11 -> Fase I | E133: 0 | F133: 2000000000 | G133: 0 | H133: 0 | I133: 500000000 | J133: 0 | K133: 2500000000 | L133: Agencia de Desarrollo Rural / Comunidad | M133: =+'ADR 8+'!V11 -> El proyecto cuenta con concepto jurídico favorable tanto para la organización como para el predio. En el componente ambiental, se avanza en la gestión del uso del suelo del predio “La Emperatriz”, mediante la radicación de la justificación técnica de viabilidad ante la Secretaría de Planeación Municipal de Caloto, encontrándose actualmente en espera de respuesta. De manera paralela, el equipo técnico de la ADR, en articulación con el resguardo, adelanta el rediseño de la planta de proceso, con el propósito de optimizar la infraestructura y garantizar la eficiencia del componente agroindustrial, en coherencia con las necesidades del proyecto. | N133: Estructuración del proyecto, | O133: Estructuración del proyecto, , Viabilización del proyecto ante la cabeza del sector, | P133: Gestión de recursos | Q133: Reporte de avance de ejecución con soportes | R133: Estructuración del proyecto,
A134: Agricultura y Desarrollo Rural | B134: Fortalecimiento de la Caficultura sostenible en 33 municipios del departamento del Cauca: Un enfoque integral para la productividad, calidad y comercialización. | C134: =+'GOBERNACIÓN 2+<>'!D4 -> Inversión | D134: =+'GOBERNACIÓN 2+<>'!E4 -> Contratación de derivados | E134: 25000000000 | F134: 0 | G134: 5000000000 | H134: 0 | I134: 0 | J134: 0 | K134: 30000000000 | L134: Departamento Nacional de Planeación (FRPT) / Gobernación del Cauca | M134: =+'GOBERNACIÓN 2+<>'!V4 -> Gobernación 21/04/2026: Otros Recursos territorio corresponden a mano de obra (especie-jornales) de beneficiarios finales cuantificada. El operador se encuentra proceso licitatorio LP DC-SADR-LP-001-2026, con fecha en cronogramna de secop de adjudicación, suscripción de contrato, garantpias el 6 de mayo de 2026, por valor $32.376.106.814 ($27.707.334.706) incluido cuantificación de mano de obra; plazo hasta el 28 de abril de 2026. Y definición de beneficiarios finales. Interventoría se encuentra en proceso concurso de meritos DC-SADR-CMA-001-2026 con fecha en cronogramna de secop de adjudicación el 23 de abril de 2026.Por valor de $1.618.158.842; plazo hasta el 31 de diciembre de 2026. Se espera acta de inicio | N134: Tramites para la suscripción de convenios, , Reporte de avance de ejecución con soportes | O134: Reporte de avance de ejecución con soportes | P134: Reporte de avance de ejecución con soportes | Q134: Finalización, liquidación, | R134: Tramites para la suscripción de convenios, , Reporte de avance de ejecución con soportes
A135: Agricultura y Desarrollo Rural | B135: Fortalecimiento de la caficultura especial, sostenible, regenerativa y diversa, con articulación social e incluyente en el departamento del Cauca | C135: =+'ADR 8+'!D12 -> Inversión | D135: =+'ADR 8+'!E12 -> Ejecución / Alistamiento | E135: 0 | F135: 15509023746 | G135: 0 | H135: 0 | I135: 13006394116 | J135: 0 | K135: 28515417862 | L135: Agencia de Desarrollo Rural / Comunidad | M135: =+'ADR 8+'!V12 -> BP 3713 - Resolución 101 de 2026. 31/03/2026: El PIDAR se encuentra en fase de alistamiento. El proyecto contempla el fortalecimiento de 24 organizaciones cafeteras en 11 municipios del Cauca mediante la dotación de equipos y maquinaria para centros de acopio y laboratorios de calidad, incluyendo kits para análisis físico y organoléptico del café, equipos de catación y métodos de extracción; además, incorpora la entrega de 9 vehículos de carga y la instalación de sistemas de energía renovable fotovoltaica para mejorar la agro logística. Igualmente, incluye la dotación de equipos y maquinaria para 4 plantas de procesamiento de café tostado y molido, con equipos como tostadoras, máquinas de espresso y otros implementos para tecnificar la transformación; la construcción de 3 centros de acopio y bodegas de café y la adecuación de 4 infraestructuras de mediana complejidad para almacenamiento, análisis y comercialización de café pergamino seco; y, de forma complementaria, asistencia técnica y formación integral. Se notificó por parte de la Dirección de Acceso a Activos Productivos a la Unidad Técnica Territorial #9 el 9 de marzo de 2026. Se cuenta con Certificado de Disponibilidad de Recursos desde el fondo Colombia en Paz. En cuanto al proyecto: Fortalecimiento de la caficultura especial, sostenible, regenerativa y diversa, con articulación social e incluyente en el departamento del Cauca. $28.515.417.862 $15.509.023.746 ADR excusivos para esta resolución. | N135: Reporte de avance de ejecución con soportes | O135: Reporte de avance de ejecución con soportes | P135: Reporte de avance de ejecución con soportes | Q135: Reporte de avance de ejecución con soportes | R135: Reporte de avance de ejecución con soportes
A136: Total | B136: =+COUNTA(B79:B135) -> 57 | E136: =SUM(E79:E135) -> 25000000000 | F136: 324051529113 | G136: 5000000000 | H136: 0 | I136: 25392925215 | J136: 0 | K136: 379444454328
A137: *Se entiende por entidad Responsable la encargada de la fuente de financiación.
A139: 5. Salud
A140: Sector | B140: Nombre de la Iniciativa | C140: Etapa del Proyecto * | D140: Fase del Proyecto * | E140: Aporte Nación | G140: Aporte Territorio | J140: Otros recursos | K140: Inversión Total | L140: Entidad Responsable* | M140: Observaciones / Acciones | N140: Actividades a ejecutar
E141: DNP | F141: Sector | G141: Propios | H141: SGR | I141: Otros | N141: Trimestre 2 -2026 | O141: Trimestre 3 - 2026 | P141: Trimestre 4 -2026 | Q141: Trimestre 1 -2027 | R141: Actividad Principal
A142: Salud y Protección Social | B142: Hospital del segundo nivel del Patía​ | C142: =+'SALUD 10+'!D4 -> Inversión | D142: =+'SALUD 10+'!E4 -> Fase I | E142: 0 | F142: 37000000000 | G142: 5000000000 | I142: 0 | J142: 0 | K142: =SUM(E142:J142) -> 42000000000 | L142: Ministerio de Salud y Protección Social /Gobernación del Cauca | M142: =+'SALUD 10+'!Z4 -> $37.000 millones. Fase I - Con Asignación de Recursos. Desde el MSPS se realiza asignación de resursos mediante RESOLUCIÓN 2733_2806 DEL 2025. CONPES 4169 del 2025. Nombre del proyecto: HOSPITAL DEL SEGUNDO NIVEL DEL PATÍA​ El proyecto se encuentra en etapa de iniciativa. Actualmente no cuenta con cofinanciación. | N142: Presentación del proyecto ante la fuente de financiación, | O142: Estructuración del proyecto | P142: Viabilización del proyecto ante la cabeza del sector | Q142: Revisión y aprobación del proyecto por la fuente de financiación | R142: =+N142 -> Presentación del proyecto ante la fuente de financiación,
A143: Salud y Protección Social | B143: Remodelación del Hospital de Guapi | C143: =+'GOBERNACIÓN 2+<>'!D5 -> Inversión | D143: =+'GOBERNACIÓN 2+<>'!E5 -> Ejecución | E143: 0 | F143: 0 | G143: 0 | H143: 36895891663 | I143: 0 | J143: 0 | K143: =SUM(E143:J143) -> 36895891663 | L143: Gobernación del Cauca (SGR 60%) | M143: =+'GOBERNACIÓN 2+<>'!V5 -> Ejecución-Suspendido. | N143: Reinicio de actividades, , Reporte de avance de ejecución con soportes | O143: Reporte de avance de ejecución con soportes | P143: Reporte de avance de ejecución con soportes | Q143: Reporte de avance de ejecución con soportes | R143: =+N143 -> Reinicio de actividades, , Reporte de avance de ejecución con soportes
A144: Salud y Protección Social | B144: Reposición de la unidad de atención en salud Suárez – Cauca | C144: =+'SALUD 10+'!D5 -> Inversión | D144: =+'SALUD 10+'!E5 -> Fase I | E144: 0 | F144: 30000000000 | G144: 0 | H144: 0 | I144: 0 | J144: 0 | K144: 30000000000 | L144: Ministerio de Salud y Protección Social | M144: =+'SALUD 10+'!Z5 -> $34.080 millones. Evaluación Técnica Fase I- Con Recursos asignados. ESE NORTE 1. Desde el MSPS se realiza asignación de resursos mediante RESOLUCIÓN 2733 DEL 2025. CONPES 4169 del 2025. Nombre del proyecto: REPOSICIÓN DE LA UNIDAD DE ATENCIÓN EN SALUD DE SUÁREZ – ESE NORTE 1 El proyecto se encuentra en etapa de evaluación | N144: Revisión técnica del proyecto por Sector | O144: Actualización información con soportes | P144: Revisión y aprobación del proyecto por la fuente de financiación | Q144: Viabilización del proyecto ante la cabeza del sector | R144: Revisión técnica del proyecto por Sector
A145: Salud y Protección Social | B145: Construcción De La Unidad De Atención En Salud El Plateado, E.S.E. Suroccidente Cauca | C145: =+'SALUD 10+'!D6 -> Inversión | D145: =+'SALUD 10+'!E6 -> Ejecución | E145: 0 | F145: 22458423926 | G145: 0 | H145: 0 | I145: 0 | J145: 0 | K145: 22458423926 | L145: Ministerio de Salud y Protección Social | M145: =+'SALUD 10+'!Z6 -> $22.458 millones comprometido. Ejecución/Suspendido. Avance 31.50%. Desde el MSPS se realiza asignación de resursos mediante RESOLUCIÓN 898 DEL 2024 Nombre del proyecto: CONSTRUCCIÓN DE LA UNIDAD DE ATENCIÓN EN SALUD EL PLATEADO, ESE SUROCCIDENTE CAUCA El proyecto se encuentra en etapa de ejecución, sin embargo se encuentra suspendido. Avance físico de obra 31.50%. | N145: Reporte de avance de ejecución con soportes, Actualización información con soportes | O145: Reporte de avance de ejecución con soportes | P145: Reporte de avance de ejecución con soportes | Q145: Finalización, liquidación, | R145: Reporte de avance de ejecución con soportes, Actualización información con soportes
A146: Salud y Protección Social | B146: Reposición de la infraestructura física de la unidad nivel 1 López de Micay, unidad de atención de la E.S.E. occidente, departamento del Cauca | C146: =+'SALUD 10+'!D7 -> Inversión | D146: =+'SALUD 10+'!E7 -> Ejecución | E146: 0 | F146: 44165636109 | G146: 0 | H146: 0 | I146: 0 | J146: 0 | K146: 44165636109 | L146: Ministerio de Salud y Protección Social | M146: =+'SALUD 10+'!Z7 -> $44.165 millones. Ejecución. Avance 2%. Desde el MSPS se realiza asignación de resursos mediante RESOLUCIÓN 1023 DEL 2025 Nombre del proyecto: REPOSICIÓN DE LA INFRAESTRCUTURA FISICA DE LA UNIDAD NIVEL I LOPEZ DE MICAY, PUNTO DE ATENCIÓN DE LA ESE OCCIDENTE, DEPARTAMENTO DEL CAUCA El proyecto se encuentra en etapa de ejecución. Avance 2% iniciaron obra el 12 febrero de 2026. | N146: Reporte de avance de ejecución con soportes, Actualización información con soportes | O146: Reporte de avance de ejecución con soportes | P146: Reporte de avance de ejecución con soportes | Q146: Finalización, liquidación, | R146: Reporte de avance de ejecución con soportes, Actualización información con soportes
A147: Salud y Protección Social | B147: Construcción de la planta física para la reubicación de servicios de consulta externa y áreas administrativas Hospital Susana López de Valencia E.S.E. | C147: =+'SALUD 10+'!D8 -> Inversión | D147: =+'SALUD 10+'!E8 -> Ejecución | E147: 0 | F147: 16497522812 | G147: 0 | H147: 0 | I147: 0 | J147: 0 | K147: 16497522812 | L147: Ministerio de Salud y Protección Social | M147: =+'SALUD 10+'!Z8 -> $16.497 millones. Ejecución. Avance 3.5%. Desde el MSPS se realiza asignación de resursos mediante RESOLUCIÓN 1221 DEL 2024. Nombre del proyecto: CONSTRUCCIÓN DE LA PLANTA FÍSICA PARA LA REUBICACIÓN DE SERVICIOS DE CONSULTA EXTERNA Y ÁREAS ADMINSITRATIVAS HOSPITAL SUSANA LÓPEZ DE VALENCIA ESE El proyecto se encuentra en etapa de ejecución. Avance 3.5% inicio de actividades 9 de marzo 2026. | N147: Reporte de avance de ejecución con soportes, Actualización información con soportes | O147: Reporte de avance de ejecución con soportes | P147: Reporte de avance de ejecución con soportes | Q147: Reporte de avance de ejecución con soportes | R147: Reporte de avance de ejecución con soportes, Actualización información con soportes
A148: Salud y Protección Social | B148: Construcción hospital nivel 1 de Padilla | C148: =+'SALUD 10+'!D9 -> Inversión | D148: =+'SALUD 10+'!E9 -> Terminado | E148: 0 | F148: 14550608204 | G148: 0 | H148: 0 | I148: 0 | J148: 0 | K148: 14550608204 | L148: Ministerio de Salud y Protección Social | M148: =+'SALUD 10+'!Z9 -> $14.550 millones. Ejecución. Avance 13.15%. Desde el MSPS se realiza asignación de resursos mediante RESOLUCIÓN 1221 DEL 2024 Nombre del proyecto: CONSTRUCCIÓN HOSPITAL NIVEL 1 DE PADILLA El proyecto se encuentra en etapa de ejecución. Avance 13.15%. | N148: Reporte de avance de ejecución con soportes, Actualización información con soportes | O148: Reporte de avance de ejecución con soportes | P148: Reporte de avance de ejecución con soportes | Q148: Reporte de avance de ejecución con soportes | R148: Reporte de avance de ejecución con soportes, Actualización información con soportes
A149: Salud y Protección Social | B149: Adecuaciones menores de 4 unidades de atención en salud | C149: =+'SALUD 10+'!D10 -> Inversión | D149: =+'SALUD 10+'!E10 -> Terminado | E149: 0 | F149: 1218590954 | G149: 0 | H149: 0 | I149: 0 | J149: 0 | K149: 1218590954 | L149: Ministerio de Salud y Protección Social | M149: =+'SALUD 10+'!Z10 -> $1.218 millones. 4-Terminados. - 1 Proyecto: ADECUACIÓN MENOR EN LA UNIDAD DE ATENCIÓN EN SALUD DEL MUNICIPIO DE ARGELIA, CAUCA. - MSPS recursos RESOLUCIÓN 209_623 del 2025. Se encuentra en etapa de terminación. - 2 Proyecto: ADECUACIÓN MENOR EN LA UNIDAD DE ATENCIÓN EN SALUD DE OLAYA BALBOA, CAUCA MSPS resursos RESOLUCIÓN 209_623 del 2025. Se encuentra en etapa de terminación. - 3 Proyecto: ADECUACIÓN MENOR PARA LA UNIDAD DE ATENCIÓN EN SALUD EL MANGO MUNICIPIO DE ARGELIA CAUCA, ESE SUROCCIDENTE - MSPS resursos RESOLUCIÓN 209_623 del 2025. Se encuentra en etapa de terminación - 4 Proyecto: ADECUACIÓN MENOR EN LA UNIDAD DE ATENCION EN SALUD DE ARBOLEDAS, MERCADERES, CAUCA - MSPS resursos RESOLUCIÓN 209_623 del 2025. Se encuentra en etapa de terminación | N149: Actualización información con soportes , Finalización, liquidación, Presentación del proyecto ante la fuente de financiación | O149: Actualización información con soportes , Finalización, liquidación, | R149: Actualización información con soportes , Finalización, liquidación, Presentación del proyecto ante la fuente de financiación
A150: Salud y Protección Social | B150: Construir, mejorar, ampliar y dotar cinco puestos de salud de los corregimientos de Mojarras, San Joaquín, Arboledas, Cajamarca y en la vereda Esperanzas del Mayo para mejorar la cobertura y calidad de los servicios de salud de 8000 personas en el Municipios de Mercaderes | C150: =+'SALUD 10+'!D11 -> Preinversión, Inversión | D150: =+'SALUD 10+'!E11 -> Fase I, Terminado | E150: 0 | F150: 329933688 | G150: 0 | H150: 0 | I150: 0 | J150: 0 | K150: 329933688 | L150: Ministerio de Salud y Protección Social | M150: =+'SALUD 10+'!Z11 -> $329 millones. 1-Terminado, 2-en Viabilización, 2-No presentados. 1. ADECUACIÓN PARA EL MEJORAMIENTO DE LA INFRAESTRUCTURA FÍSICA DE LA UNIDAD DE ATENCIÓN EN SALUD DE SAN JOAQUÍN DEL MUNICIPIO DE MERCADERES DEPARTAMENTO DEL CAUCA. Valor: $361.681.589. En evaluación tecnica con recursos MSPS RESOLUCIÓN 209_623 del 2025. 2. ADECUACIÓN MENOR EN LA UNIDAD DE ATENCION EN SALUD DE ARBOLEDAS, MERCADERES, CAUCA. En etapa de terminación, obra terminó el 20 de dicembre de 2025. 3. ADECUACIÓN PARA EL MEJORAMIENTO DE LA INFRAESTRUCTURA FÍSICA EN SALUD DE LA UNIDAD DE ATENCIÓN EN SALUD DE CAJAMARCA DEL MUNICIPIO DE MERCADERES DEL DEPARTAMENTO DE CAUCA. Valor: $262.773.419. Se encuentra con CAAR, cuenta con viabilización para asignación de recursos. 4 y 5. Los 2 proyectos (Mojarras y vereda Esperanzas del Mayo) corresponden a proyectos de dotación y las ESE no han radicado al ministerio. | N150: Revisión y aprobación del proyecto por la fuente de financiación, liquidación, Presentación de Proyecto | O150: Actualización información con soportes | P150: Revisión y aprobación del proyecto por la fuente de financiación, Reporte de avance de ejecución con soportes | Q150: Viabilización del proyecto ante la cabeza del sector, Reporte de avance de ejecución con soportes | R150: Revisión y aprobación del proyecto por la fuente de financiación, liquidación, Presentación de Proyecto
A151: Salud y Protección Social | B151: Adecuación y dotación de (3) puestos de salud (apoyan resguardo indígena de Ambaló) en zona rural que beneficiará a 700 habitantes del municipio de Silvia, departamento del cauca | C151: =+'SALUD 10+'!D12 -> Inversión | D151: =+'SALUD 10+'!E12 -> Terminado, Fase I | E151: 0 | F151: 535260922 | G151: 0 | H151: 0 | I151: 0 | J151: 0 | K151: 535260922 | L151: Ministerio de Salud y Protección Social | M151: =+'SALUD 10+'!Z12 -> $535 millones. 1-Terminado, 1-Evaluación técnica, 1 sin presentar. 1. ADECUACIÓN MENOR DE LA UNIDAD DE ATENCIÓN EN SALUD DE SILVIA DEPARTAMENTO DEL CAUCA, EMPRESA SOCIAL DEL ESTADO CENTRO 1 E.S.E. resursos MSPS RESOLUCIÓN 1984 DEL 2024. El proyecto se encuentra en etapa de terminación. 2. REPOSICIÓN DEL PUESTO DE SALUD PARA LA ATENCIÓN DE LA POBLACIÓN DEL CORREGIMIENTO DE USENDA MUNICIPIO DE SILVIA CAUCA. Valor: $3.244.596.490. En etapa de evaluación. 3. La subdirección de Infraestructura en Salud del MSPS no cuenta con mas proyectos radicados por parte de la ESE para ser viabilizados en el Municipio de Silvia, departamento del Cauca | N151: Tramites para la suscripción de convenios | O151: Reporte de avance de ejecución con soportes | P151: Reporte de avance de ejecución con soportes | Q151: Reporte de avance de ejecución con soportes | R151: Tramites para la suscripción de convenios
A152: Salud y Protección Social | B152: Construir centros de salud, en los centros poblados de Guachicono, San Miguel, Altamira y Pancitará del municipio de La Vega para garantizar el servicio de salud a la población rural del municipio de La Vega | C152: =+'SALUD 10+'!D13 -> Preinversión, Inversión | D152: =+'SALUD 10+'!E13 -> Terminado, Fase I | E152: 0 | F152: 3283059964 | G152: 0 | H152: 0 | I152: 0 | J152: 0 | K152: 3283059964 | L152: Ministerio de Salud y Protección Social | M152: =+'SALUD 10+'!Z13 -> $458 millones. 1-Terminado, 1-Estructuración, 2-Sin presentar. 1.ADECUACIÓN MENOR UNIDAD DE ATENCIÓN EN SALUD SAN MIGUEL. El proyecto se encuentra en etapa de terminación. Resursos MSPS RESOLUCIÓN 1906 DEL 2024 2. ADECUACIÓN MENOR UNIDAD DE ATENCIÓN EN SALUD DE ALTAMIRA. Valor: $601.197.846. El proyecto se encuentra en etapa de estructuración. 3 y 4 (Guachicono y Pancitará) no se han preentado. | N152: Revisión y aprobación del proyecto por la fuente de financiación, liquidación, Presentación de Proyecto | O152: Reporte de avance de ejecución con soportes, Actualización información con soportes | P152: Revisión y aprobación del proyecto por la fuente de financiación, Reporte de avance de ejecución con soportes | Q152: Viabilización del proyecto ante la cabeza del sector, Reporte de avance de ejecución con soportes | R152: Revisión y aprobación del proyecto por la fuente de financiación, liquidación, Presentación de Proyecto
A153: Total | B153: =+COUNTA(B142:B152) -> 11 | E153: =SUM(E142:E152) -> 0 | F153: 170039036579 | G153: 5000000000 | H153: 36895891663 | I153: 0 | J153: 0 | K153: 211934928242
A154: *Se entiende por entidad Responsable la encargada de la fuente de financiación.
A156: 6. Transición Energética
A157: Sector | B157: Nombre de la Iniciativa | C157: Etapa del Proyecto * | D157: Fase del Proyecto * | E157: Aporte Nación | G157: Aporte Territorio | J157: Otros recursos | K157: Inversión Total | L157: Entidad Responsable* | M157: Observaciones / Acciones | N157: Actividades a ejecutar
E158: DNP | F158: Sector | G158: Propios | H158: SGR | I158: Otros | N158: Trimestre 2 -2026 | O158: Trimestre 3 - 2026 | P158: Trimestre 4 -2026 | Q158: Trimestre 1 -2027 | R158: Actividad Principal
A159: Minas y Energía | B159: Se propone fortalecer el proceso de formación de al menos 50 participantes en los distritos de Cauca, a través de procesos formativos certificados | C159: =+'MINAS 6+'!D4 -> Inversión | D159: =+'MINAS 6+'!E4 -> Ejecución | E159: 0 | F159: 250000000 | G159: 0 | H159: 0 | I159: 0 | J159: 0 | K159: =SUM(E159:J159) -> 250000000 | L159: Ministerio de Minas y Energía | M159: =+'MINAS 6+'!V4 -> En el primer y segundo trimestre del 2026 se han realizado las gestiones administrativas y contractuales para la suscripción del convenio de Cooperación No. GGC-1864-2026, con el cual se dará cumplimiento a la meta establecida para la vigencia 2026. | N159: Estructuración del proyecto | O159: Estructuración del proyecto | P159: Reporte de avance de ejecución con soportes | Q159: Reporte de avance de ejecución con soportes | R159: =+N159 -> Estructuración del proyecto
A160: Minas y Energía | B160: Apoyar en la implementación de la estrategia de sociedad del conocimiento para el fomento de buenas prácticas en la actividad minera en el departamento de Cauca | C160: =+'MINAS 6+'!D5 -> Inversión | D160: =+'MINAS 6+'!E5 -> Contrtación | E160: 0 | F160: 480000000 | G160: 0 | H160: 0 | I160: 0 | J160: 0 | K160: 480000000 | L160: Ministerio de Minas y Energía | M160: =+'MINAS 6+'!V5 -> Durante el primer semestre de la vigencia 2026 se adelantarán los trámites precontractuales necesarios para la articulación con una entidad que permita el desarrollo del consultorio técnico-jurídico. Este consultorio impulsará la estrategia de sociedad del conocimiento, orientada a brindar asistencia técnica y promover la adopción de buenas prácticas en la actividad minera. Por su parte, durante el segundo semestre de la vigencia 2026 se llevará a cabo la ejecución de las actividades definidas en el marco del convenio o contrato suscrito, garantizando la implementación efectiva de la estrategia y el cumplimiento de los objetivos propuestos. | N160: Tramites para la suscripción de convenios | O160: Estructuración del proyecto | P160: Reporte de avance de ejecución con soportes | Q160: Reporte de avance de ejecución con soportes | R160: =+O160 -> Estructuración del proyecto
A161: Minas y Energía | B161: Aunar esfuerzos técnicos, administrativos y financieros para adelantar acciones asociadas con minería, energía e hidrocarburos del plan de acción 2025, dentro del Plan Cuatrienal 2023-2026 del Decreto 1811 de 2017. | C161: =+'MINAS 6+'!D6 -> Inversión | D161: =+'MINAS 6+'!E6 -> Ejecución | E161: 0 | F161: 500000000 | G161: 0 | H161: 0 | I161: 0 | J161: 0 | K161: 500000000 | L161: Ministerio de Minas y Energía | M161: =+'MINAS 6+'!V6 -> Durante la vigencia 2025 no fue posible ejecutar los recursos previstos, debido a que, en el marco del convenio proyectado, el CRIC no accedió a cuantificar ni a detallar su contrapartida en términos de conocimientos tradicionales. No obstante, se priorizó su ejecución para la vigencia 2026. En ese sentido, a la fecha se han adelantado espacios de articulación con el CRIC, con el fin de garantizar la suscripción del convenio o contrato durante el segundo semestre de dicha vigencia. | N161: Tramites para la suscripción de convenios | O161: Estructuración del proyecto | P161: Reporte de avance de ejecución con soportes | Q161: Reporte de avance de ejecución con soportes | R161: =+O161 -> Estructuración del proyecto
A162: Minas y Energía | B162: Distrito Minero Norte del Cauca | C162: =+'MINAS 6+'!D7 -> Inversión | D162: =+'MINAS 6+'!E7 -> Ejecución | E162: 0 | F162: 564285714 | G162: 0 | H162: 0 | I162: 0 | J162: 0 | K162: 564285714 | L162: Ministerio de Minas y Energía | M162: =+'MINAS 6+'!V7 -> El 6 de abril de 2026 fue expedida la Resolución 40184, mediante la cual se delimita el Distrito Minero Especial para la Diversificación Productiva del Norte del Cauca. El valor dispuesto para la vigencia 2025 corresponde a los esfuerzos institucionales orientados a la elaboración y expedición de dicha reglamentación. Por su parte, los recursos previstos para la vigencia 2026 están destinados a la instalación de la Mesa de Trabajo Interinstitucional, concebida como una instancia de articulación para la planificación, así como para la gestión socioambiental y económica de los territorios delimitados. Con este hito se da cumplimiento al compromiso establecido, precisando que, desde la Dirección de Formalización Minera, se ha adelantado el despliegue integral de la oferta institucional en el territorio, en aras de fortalecer los procesos de formalización y promover prácticas sostenibles en la actividad minera. Avanzarán con consulta previa para establecer el Plan Estratégico de Gestión. | N162: Estructuración del proyecto | O162: Estructuración del proyecto | P162: Tramites para la suscripción de convenios | Q162: Reporte de avance de ejecución con soportes | R162: =+N162 -> Estructuración del proyecto
A163: Minas y Energía | B163: Distrito Minero Litoral Pacífico Caucano | C163: =+'MINAS 6+'!D8 -> Inversión | D163: =+'MINAS 6+'!E8 -> Ejecución | E163: 0 | F163: 564285714 | G163: 0 | H163: 0 | I163: 0 | J163: 0 | K163: 564285714 | L163: Ministerio de Minas y Energía | M163: =+'MINAS 6+'!V8 -> El 9 de abril de 2026 fue expedida la resolución 40188 por medio de la cual se delimita el Distrito Minero Especial para la Diversificación Productiva del Litoral Pacifico Caucano. El valor dispuesto para la vigencia 2025 corresponde a los esfuerzos institucionales orientados a la elaboración y expedición de dicha reglamentación. Por su parte, los recursos previstos para la vigencia 2026 están destinados a la instalación de la Mesa de Trabajo Interinstitucional, concebida como una instancia de articulación para la planificación, así como para la gestión socioambiental y económica de los territorios delimitados. Con este hito se da cumplimiento al compromiso establecido, precisando que, desde la Dirección de Formalización Minera, se ha adelantado el despliegue integral de la oferta institucional en el territorio, en aras de fortalecer los procesos de formalización y promover prácticas sostenibles en la actividad minera. Avanzarán con consulta previa para establecer el Plan Estratégico de Gestión. | N163: Estructuración del proyecto | O163: Estructuración del proyecto | P163: Tramites para la suscripción de convenios | Q163: Reporte de avance de ejecución con soportes | R163: Estructuración del proyecto
A164: Minas y Energía | B164: 148 Comunidades energéticas (Primera Fase Comunidades Focalizadas y Priorizadas 2024-2026) | C164: =+'MINAS 6+'!D9 -> Inversión | D164: =+'MINAS 6+'!E9 -> Ejecución | E164: 0 | F164: 75184000000 | G164: 0 | H164: 0 | I164: 0 | J164: 0 | K164: =SUM(E164:J164) -> 75184000000 | L164: Ministerio de Minas y Energía | M164: =+'MINAS 6+'!V9 -> Patía 90 KWp; Cajibío 60 KWp; Suárez 90 KWp; Cajibío 15 KWp; Cajibío 60 KWp; Sotará Paispamba 60 KWp; El Tambo 15 KWp; El Tambo 60 KWp; Silvia 15 KWp; Cajibío 210 KWp. | N164: Actualización información con soportes | O164: Actualización información con soportes | P164: Actualización información con soportes | Q164: Actualización información con soportes | R164: Actualización información con soportes
A165: Total | B165: =+COUNTA(B159:B164) -> 6 | E165: =SUM(E159:E164) -> 0 | F165: 77542571428 | G165: 0 | H165: 0 | I165: 0 | J165: 0 | K165: 77542571428
A166: *Se entiende por entidad Responsable la encargada de la fuente de financiación.
A168: 7. Infraestructura de Transporte
A169: Sector | B169: Nombre de la Iniciativa | C169: Etapa del Proyecto * | D169: Fase del Proyecto * | E169: Aporte Nación | G169: Aporte Territorio | J169: Otros recursos | K169: Inversión Total | L169: Entidad Responsable* | M169: Observaciones / Acciones | N169: Actividades a ejecutar
E170: DNP | F170: Sector | G170: Propios | H170: SGR | I170: Otros | N170: Trimestre 2 -2026 | O170: Trimestre 3 - 2026 | P170: Trimestre 4 -2026 | Q170: Trimestre 1 -2027 | R170: Actividad Principal
A171: Transporte | B171: Corredor Estanquillo - Timbío - Popayán (APP) | C171: =+'TRANSPORTE 12+1'!D4 -> Inversión | D171: =+'TRANSPORTE 12+1'!E4 -> Ejecución | E171: 0 | F171: 18600000000000 | G171: 0 | H171: 0 | I171: 0 | J171: 0 | K171: =SUM(E171:J171) -> 18600000000000 | L171: Ministerio de Transporte - ANI | M171: =+'TRANSPORTE 12+1'!AG4 -> 21/04/2026. SECOP Adjudicación $8,8 billones; contratado, se programa inicio de actividades de preconstrucción en mayo. Contrto de Concesión por 25 años; los 2 primeros años corresponden a etapa de preconstrucción la cual inicia el 13 de mayo de 2026. La etapa de construcción es por 5 años. Posterior a la etapa de construcción, la etapa de operación y mantenimiento. Las actividades en este PAS, corresponde a la ejecución de actividades de de preconstrucción. | N171: Inicio de Actividades, , Reporte de avance de ejecución con soportes | O171: Reporte de avance de ejecución con soportes | P171: Reporte de avance de ejecución con soportes | Q171: Reporte de avance de ejecución con soportes | R171: =+N171 -> Inicio de Actividades, , Reporte de avance de ejecución con soportes
A172: Transporte | B172: Vía al Mar (POPAYAN EL TAMBO - MUNCHIQUE) | C172: =+'TRANSPORTE 12+1'!D5 -> Inversión | D172: =+'TRANSPORTE 12+1'!E5 -> Contratación | E172: 0 | F172: 6.027852245e+11 | G172: 0 | H172: 0 | I172: 0 | J172: 0 | K172: 6.027852245e+11 | L172: Ministerio de Transporte - INVIAS | M172: =+'TRANSPORTE 12+1'!AG5 -> INVIAS 16/04/2026. $602.782 millones. Prepliegos. 1. ESTADO DEL PROYECTO: Proyecto se encuentran en el Conpes 4161 de 2025 y se cuenta con vigencias futuras excepcionales por parte del Confis. Se encuentra en proceso licitatorio en prepliegos con número LP-DEO-SMCN-054-2025 en dos (02) lotes e interventoría CMA-DEO-SMCN-086-2025 2. ALCANCE DEL PROYECTO: Mantenimiento y mejoramiento de la vía en aproximadamente 60 km y construcción de aproximadamente 10km Trimestre 2 -2026: Adjudicacion/Inicio de obras | N172: Tramites para la suscripción de convenios/contratos, Inicio de Actividades, | O172: Reporte de avance de ejecución con soportes | P172: Reporte de avance de ejecución con soportes | Q172: Reporte de avance de ejecución con soportes | R172: Tramites para la suscripción de convenios/contratos, Inicio de Actividades,
A173: Transporte | B173: MUNCHIQUE - HUISITO - HONDURAS | C173: =+'TRANSPORTE 12+1'!D6 -> Inversión | D173: =+'TRANSPORTE 12+1'!E6 -> Contratación | E173: 0 | F173: 666483582568 | G173: 0 | H173: 0 | I173: 0 | J173: 0 | K173: 666483582568 | L173: Ministerio de Transporte - INVIAS | M173: =+'TRANSPORTE 12+1'!AG6 -> INVIAS 16/04/2026. $664.980 millones 1. Prepliegos. (tramo de la Vía al mar) ESTADO DEL PROYECTO: Proyecto se encuentran en el Conpes 4161 de 2025 y se cuenta con vigencias futuras excepcionales por parte del Confis. Se encuentra en proceso licitatorio en prepliegos con número LP-DEO-SVR-053-2025 en dos (02) lotes e interventoría CMA-DEO-SMCN-086-2025 2.ALCANCE DEL PROYECTO: mejoramiento y mantenimiento de aproximadamente 64 km, mejoramiento y mantenimiento de puentes y muros Trimestre 2 -2026: Adjudicacion/Inicio de obras | N173: Tramites para la suscripción de convenios/contratos, Inicio de Actividades, | O173: Reporte de avance de ejecución con soportes | P173: Reporte de avance de ejecución con soportes | Q173: Reporte de avance de ejecución con soportes | R173: Tramites para la suscripción de convenios/contratos, Inicio de Actividades,
A174: Transporte | B174: PLATEADO - LOPEZ DE MICAY | C174: =+'TRANSPORTE 12+1'!D7 -> Inversión | D174: =+'TRANSPORTE 12+1'!E7 -> Contratación | E174: 0 | F174: 1041957550883 | G174: 0 | H174: 0 | I174: 0 | J174: 0 | K174: 1041957550883 | L174: Ministerio de Transporte - INVIAS | M174: =+'TRANSPORTE 12+1'!AG7 -> INVIAS 16/04/2026. $1.04 billon 1. Licitación. (tramo de la Vía al mar) ESTADO DEL PROYECTO: Proyecto se encuentran en el Conpes 4161 de 2025 y se cuenta con vigencias futuras excepcionales por parte del Confis. Se encuentra en proceso licitatorio en prepliegos con númeroLP-DEO-SVR-061-2025 en cuatro (04) lotes e interventoría CMA-DEO-SVR-095-2025 en dos (02) lotes 2. ALCANCE DEL PROYECTO: mantenimiento y mejoramiento de la vía en aproximadamente 60 km y construcción de aproximadamente 10km Trimestre 2 -2026 - Adjudicacion/Inicio de obras | N174: Tramites para la suscripción de convenios/contratos, Inicio de Actividades, | O174: Reporte de avance de ejecución con soportes | P174: Reporte de avance de ejecución con soportes | Q174: Reporte de avance de ejecución con soportes | R174: Tramites para la suscripción de convenios/contratos, Inicio de Actividades,
A175: Transporte | B175: ARGELIA – EL PLATEADO (Vía al Mar Cauca) | C175: =+'TRANSPORTE 12+1'!D8 -> Inversión | D175: =+'TRANSPORTE 12+1'!E8 -> Contratación | E175: 0 | F175: 4.34553424e+11 | G175: 0 | H175: 0 | I175: 0 | J175: 0 | K175: 4.34553424e+11 | L175: Ministerio de Transporte - INVIAS | M175: =+'TRANSPORTE 12+1'!AG8 -> INVIAS 16/04/2026. $434.552 millones Prepliegos. 1. ESTADO DEL PROYECTO: Proyecto se encuentran en el Conpes 4161 de 2025 y se cuenta con vigencias futuras excepcionales por parte del Confis. Se encuentra en proceso licitatorio en prepliegos con número LP-DEO-SVR-051-2025 en dos (02) lotes e interventoría CMA-DEO-SVR-073-2025 2. ALCANCE DEL PROYECTO: Mejoramiento y mantenimiento de aproximadamente 23 km, mejoramiento y mantenimiento de puentes y muros desde el PR0+00 hasta el PR23+000 Trimestre 2 -2026 - Adjudicacion/Inicio de obras | N175: Tramites para la suscripción de convenios/contratos, Inicio de Actividades, | O175: Reporte de avance de ejecución con soportes | P175: Reporte de avance de ejecución con soportes | Q175: Reporte de avance de ejecución con soportes | R175: Tramites para la suscripción de convenios/contratos, Inicio de Actividades,
A176: Transporte | B176: Anillo Vial del Macizo | C176: =+'TRANSPORTE 12+1'!D9 -> Inversión | D176: =+'TRANSPORTE 12+1'!E9 -> Ejecución | E176: 0 | F176: 384587872212 | G176: 0 | H176: 0 | I176: 0 | J176: 0 | K176: 384587872212 | L176: Ministerio de Transporte - INVIAS | M176: =+'TRANSPORTE 12+1'!AG9 -> INVIAS 16/04/2026. $391.105 millones. Ejecución. 1. ESTADO DEL PROYECTO: Se ejecuta contrato financiado a través de Conpes 4010 Vías para la Legalidad, con horizonte al 2030. Contrato Obra: 1001 - 2021 Interventoría: 990 - 2021 2. ALCANCE DEL PROYECTO: 49 km Pavim + Continuación de obras trimestre 2y3 2026 | N176: Reporte de avance de ejecución con soportes | O176: Reporte de avance de ejecución con soportes | P176: Reporte de avance de ejecución con soportes | Q176: Reporte de avance de ejecución con soportes | R176: Reporte de avance de ejecución con soportes
A177: Transporte | B177: Caminos Comunitarios para la Paz Total | C177: =+'TRANSPORTE 12+1'!D10 -> Inversión | D177: =+'TRANSPORTE 12+1'!E10 -> Ejecución | E177: 0 | F177: 97536000000 | G177: 0 | H177: 0 | I177: 0 | J177: 0 | K177: 97536000000 | L177: Ministerio de Transporte - INVIAS | M177: =+'TRANSPORTE 12+1'!AG10 -> INVIAS 16/04/2026. $58.360 millones. En Adjudicación. 1. ESTADO DEL PROYECTO: Se solicitó vigencias futuras excepcionales para 2026, las cuales están sujetas a la ubicación de los recursos con que se financian. Para la vigencia 2023 se ejecuto entre obra e interventoria un total de $ 20.278.782.888,86 Para la vigencia se 2024 ejecuto entre obra e interventoria un total de $ 25.136.748.427,5 Se tiene previsto una ejecucion de $12.946.571.428 para el año 2026 con un alcance de 8,33 km de Pavimentación y 26 Alcantarillas 2. ALCANCE DEL PROYECTO: 23 km placa huella 238 Alcantarillas Trimestre 2 -2026: Adjudicacion/Inicio de obras Trimestre 3 - 2026: Continuacion ejecucion de obras | N177: Reporte de avance de ejecución con soportes | O177: Reporte de avance de ejecución con soportes | P177: Reporte de avance de ejecución con soportes | Q177: Reporte de avance de ejecución con soportes | R177: Reporte de avance de ejecución con soportes
A178: Transporte | B178: Mejoramiento de la infraestructura del lado aire del Aeródromo de Timbiquí | C178: =+'TRANSPORTE 12+1'!D11 -> Preinversión | D178: =+'TRANSPORTE 12+1'!E11 -> Fase I | E178: 0 | F178: 169372000000 | G178: 0 | H178: 0 | I178: 0 | J178: 0 | K178: 169372000000 | L178: Ministerio de Transporte - Aeronautica Civil | M178: =+'TRANSPORTE 12+1'!AG11 -> 23/04/2026. $192.271 millones. Fase I. El alacance del proyecto corresponde al mejoramiento del lado aire del aeródromo.A la fecha esta en proceso de inclusión en documento conpes de declaratoria de importancia estrategica. | N178: Elaboración de CONPES, Estructuración del proyecto, | O178: Tramites para la suscripción de convenios, , Inicio de Actividades, | P178: Reporte de avance de ejecución con soportes | Q178: Reporte de avance de ejecución con soportes | R178: Elaboración de CONPES, Estructuración del proyecto,
A179: Transporte | B179: Mejoramiento de la Infraestructura Lado Aire y Lado Tierra del Aeropuerto Juan Casiano Solis de Guapi | C179: =+'TRANSPORTE 12+1'!D12 -> Preinversión | D179: =+'TRANSPORTE 12+1'!E12 -> Fase II | E179: 0 | F179: 100000000000 | G179: 0 | H179: 0 | I179: 0 | J179: 0 | K179: 100000000000 | L179: Ministerio de Transporte - Aeronautica Civil | M179: =+'TRANSPORTE 12+1'!AG12 -> 23/04/2026. $107.989 millones. Fase II. El alcance del proyecto es realizar los Estudios y Diseños a Fase III, y las obras de mejoramiento de la Infraestructura Lado Aire y Lado Tierra del Aeropuerto Juan Casiano Solis de Guapi. A la fecha se encuentra en estructuración la solicitud de Vigencias Futuras y los documentos contractuales para publicación del proceso durante el primer semestre de 2026. | N179: Tramites de vigencias futuras, , Estructuración del proyecto, | O179: Tramites para la suscripción de convenios, , Inicio de Actividades, | P179: Tramites para la suscripción de convenios, | Q179: Reporte de avance de ejecución con soportes | R179: Tramites de vigencias futuras, , Estructuración del proyecto,
A180: Transporte | B180: Mejoramiento de la Via Silvia - Totoro , Sector Silvia - Totoro, Departamento del Cauca 17 km | C180: =+'TRANSPORTE 12+1'!D13 -> Preinversión | D180: =+'TRANSPORTE 12+1'!E13 -> Fase III | E180: 0 | F180: 8000000000 | G180: 0 | H180: 0 | I180: 0 | J180: 0 | K180: 8000000000 | L180: Ministerio de Transporte - INVIAS | M180: =+'TRANSPORTE 12+1'!AG13 -> INVIAS 16/04/2026. $0. Fase III, No cuenta con Recusrsos 1. ESTADO DEL PROYECTO: No está previsto en el mediano plazo realizar obras por cuanto no se cuenta con recursos en el MGMP (Cuatrienio), ni en el Marco Fiscal (10 años). | N180: Gestión de recursos | O180: Gestión de recursos | P180: Gestión de recursos | Q180: Gestión de recursos | R180: Gestión de recursos
A181: Transporte | B181: Patico - Puracé - Santa Leticia - Belén - La Plata | C181: =+'TRANSPORTE 12+1'!D14 -> Preinversión | D181: =+'TRANSPORTE 12+1'!E14 -> Fase III | E181: 0 | F181: 60000000000 | G181: 0 | H181: 0 | I181: 0 | J181: 0 | K181: 60000000000 | L181: Ministerio de Transporte - INVIAS | M181: =+'TRANSPORTE 12+1'!AG14 -> INVIAS 16/04/2026. $0. Fase III, No cuenta con Recusrsos . 1. ESTADO DEL PROYECTO: No está previsto en el mediano plazo realizar obras por cuanto no se cuenta con recursos en el MGMP (Cuatrienio), ni en el Marco Fiscal (10 años). Los recursos ($60.000 millones) en el CONPES 4161 vías para la Paz son para tramo Candelaria - La Plata, en el departamento del Huila. | N181: Gestión de recursos | O181: Gestión de recursos | P181: Gestión de recursos | Q181: Gestión de recursos | R181: Gestión de recursos
A182: Inclusión Social y Reconciliación | B182: Placa Huella en Suárez​ | C182: =+'DPS 23'!D26 -> 0 | D182: =+'DPS 23'!E26 -> 0 | E182: 0 | F182: 9000000000 | G182: 0 | H182: 0 | I182: 0 | J182: 0 | K182: 9000000000 | L182: Departamento Administrativo de Prosperidad Social | M182: =+'DPS 23'!V26 -> 9/12/2025. PROYECTO PRIORIZADO MEDIANTE CONVENIO # 911-FIP-2024. 30 de septiembre del 2025, con convenio suscrito con el municipio de Suarez. Para la contratación derivada para la Consultoría y 0bra el proceso de contratación derivada se ha publicado dos veces y se ha declarado fallido, se encuentra nuevamente en proceso de publicación. Respecto a la contratación derivada de interventoría, el estado es el siguiente: No se cuenta con contratistas seleccionados se espera publicar los procesos de selección durante el mes de diciembre de 2025. | N182: Actualización información con soportes , Reporte de avance de ejecución con soportes | O182: Reporte de avance de ejecución con soportes | P182: Reporte de avance de ejecución con soportes | Q182: Reporte de avance de ejecución con soportes | R182: Actualización información con soportes , Reporte de avance de ejecución con soportes
A183: Transporte | B183: Vía El estrecho - Balboa - Argelia - El plateado | C183: =+'TRANSPORTE 12+1'!D15 -> Inversión | D183: =+'TRANSPORTE 12+1'!E15 -> Ejecución | E183: 0 | F183: 88000000000 | G183: 22000000000 | K183: 110000000000 | L183: Ministerio de Transporte - INVIAS | M183: =+'TRANSPORTE 12+1'!AG15 -> INVIAS 16/04/2026. $44.657 millones. Ejecución de obra. 1. ESTADO DEL PROYECTO: La vía en mención esta a cargo del departamento* Via 25CC03 El Estrecho - Balboa- Argelia -El Plateado-El Pinche con longitud de 103,14 km. A través de la fábrica de diseños del INVÍAS se realizaron estudios y diseños para los 5 km desde el PR 31+500 al PR26+000, con una inversión de $450 millones y fueron entregados a FINDETER en abril de 2025. Adicionalmente, a través de otra consultoría cuya inversión es de 1.700 millones se están realizando 26 km adicionales de estudios y diseños para los 26 km restantes, de los cuales 5 km se entregan a FINDETER entre junio y diciembre de 2025. FINDETER e INVIAS tienen un convenio para las obras por valor de $44.657 millones los cuales les permitirá recuperar la transitabilidad en todo el corredor y pavimentar aproximadamente 11 km, contrato en ejecución, con un avance del 0,31%. 2. ALCANCE DEL PROYECTO: Mantenimiento y mejoramiento de la vía en aproximadamente 11 km. Contrato en ejecución de obra | N183: Actualización información con soportes , Reporte de avance de ejecución con soportes | O183: Reporte de avance de ejecución con soportes | P183: Reporte de avance de ejecución con soportes | Q183: Reporte de avance de ejecución con soportes | R183: Actualización información con soportes , Reporte de avance de ejecución con soportes
A184: Total | B184: =+COUNTA(B171:B183) -> 13 | E184: =SUM(E171:E183) -> 0 | F184: 2.226227565e+13 | G184: 22000000000 | H184: 0 | I184: 0 | J184: 0 | K184: 2.228427565e+13
A185: *Se entiende por entidad Responsable la encargada de la fuente de financiación.
A187: Total Plan de Acción y Seguimiento | E187: =E184+E165+E153+E136+E73+E57+E40 -> 27200000000 | F187: 2.339976182e+13 | G187: 34200000000 | H187: 36895891663 | I187: 38327725215 | J187: 0 | K187: 2.353638544e+13
A188: *Las etapas y fases del proyecto son: Etapa preinversión: • Fase I: Perfil • Fase II: Prefactibilidad • Fase III: Factibilidad Etapa inversión NOTA: Se puede incluir la información adicional que sea necesaria de acuerdo con las particularidades de cada pacto.
A190: 5. ACTIVIDADES DEL PLAN DE ACCIÓN Y SEGUIMIENTO
A191: A continuación, se relacionan las actividades generales y/o específicas para avanzar con la ejecución de los proyectos priorizados en el plan de acción y seguimiento.
A192: **Las actividades sugeridas del proyecto corresponden a: Estructuración del proyecto Viabilización del proyecto ante la cabeza del sector Presentación del proyecto ante la fuente de financiación Revisión y aprobación del proyecto por la fuente de financiación Tramites para la suscripción de convenios Tramites de vigencias futuras Actualización información Reporte de avance de ejecución
A193: Sector | B193: Nombre de la Iniciativa | E193: Actividad principal | H193: Trimestre 2 -2026 | I193: Trimestre 3 - 2026 | J193: Trimestre 4 -2026 | K193: Trimestre 1 -2027 | L193: Observación | M193: Responsable
A194: =+A31 -> Vivienda, Ciudad y Territorio | B194: Conexiones- 872 conexiones intradomiciliarias para el municipio de Puerto Tejada | E194: =+R31 -> Reporte de avance de ejecución con soportes | H194: =+N31 -> Reporte de avance de ejecución con soportes | I194: =+O31 -> Reporte de avance de ejecución con soportes | J194: =+P31 -> Reporte de avance de ejecución con soportes | K194: =+Q31 -> Finalización, liquidación, | M194: =+L31 -> Ministerio de Vivienda, Ciudad y Territorio
A195: Vivienda, Ciudad y Territorio | B195: Construcción unidades sanitarias con saneamiento básico para vivienda rural dispersa en el municipio de López de Micay | E195: Reporte de avance de ejecución con soportes | H195: Reporte de avance de ejecución con soportes | I195: Reporte de avance de ejecución con soportes | J195: Reporte de avance de ejecución con soportes | K195: Finalización, liquidación, | M195: Ministerio de Vivienda, Ciudad y Territorio
A196: Vivienda, Ciudad y Territorio | B196: Construcción Etapa II línea de conducción Río Palace y planta de tratamiento de agua potable Palace, municipio de Popayán | E196: Tramites para la suscripción de convenios, , Inicio de Actividades, | H196: Tramites para la suscripción de convenios, , Inicio de Actividades, | I196: Reporte de avance de ejecución con soportes | J196: Reporte de avance de ejecución con soportes | K196: Reporte de avance de ejecución con soportes | M196: Ministerio de Vivienda, Ciudad y Territorio
A197: Vivienda, Ciudad y Territorio | B197: Mejoramiento de 320 viviendas en El Tambo, López de Micay y Timbiquí | E197: Reporte de avance de ejecución con soportes | H197: Reporte de avance de ejecución con soportes | I197: Reporte de avance de ejecución con soportes | J197: Reporte de avance de ejecución con soportes | K197: Reporte de avance de ejecución con soportes | M197: Ministerio de Vivienda, Ciudad y Territorio
A198: Vivienda, Ciudad y Territorio | B198: Mejoramiento de vivienda urbanos y rurales (2.228 urbanos y 2.101 rurales) para el Departamento del Cauca – varios municipios. | E198: Reporte de avance de ejecución con soportes | H198: Reporte de avance de ejecución con soportes | I198: Reporte de avance de ejecución con soportes | J198: Reporte de avance de ejecución con soportes | K198: Reporte de avance de ejecución con soportes | M198: Ministerio de Vivienda, Ciudad y Territorio /Municipios Cauca
A199: Igualdad y Equidad | B199: Estudios y diseños plan maestro de saneamiento Guapi | E199: Actualización información con soportes , Tramites para la suscripción de convenios, | H199: Actualización información con soportes , Tramites para la suscripción de convenios, | I199: Inicio de Actividades, , Reporte de avance de ejecución con soportes | J199: Reporte de avance de ejecución con soportes | K199: Reporte de avance de ejecución con soportes | M199: Fondo Todos Somos PAZcífico
A200: Igualdad y Equidad | B200: Acueducto de Timbiquí | E200: Reporte de avance de ejecución con soportes | H200: Reporte de avance de ejecución con soportes | I200: Reporte de avance de ejecución con soportes | J200: Reporte de avance de ejecución con soportes | K200: Reporte de avance de ejecución con soportes | M200: Fondo Todos Somos PAZcífico
A201: Igualdad y Equidad | B201: Acueducto Guapi etapa I captación y redes | E201: Reporte de avance de ejecución con soportes | H201: Reporte de avance de ejecución con soportes | I201: Reporte de avance de ejecución con soportes | J201: Reporte de avance de ejecución con soportes | K201: Reporte de avance de ejecución con soportes | M201: Fondo Todos Somos PAZcífico
A202: Igualdad y Equidad | B202: Consultoría para cierre del botadero a cielo abierto el Olímpico | E202: Actualización información con soportes , Reporte de avance de ejecución con soportes | H202: Actualización información con soportes , Reporte de avance de ejecución con soportes | I202: Reporte de avance de ejecución con soportes | J202: Reporte de avance de ejecución con soportes | K202: Reporte de avance de ejecución con soportes | M202: Fondo Todos Somos PAZcífico
A203: 1 | B203: =+COUNTA(B194:D202) -> 9
A204: =+A46 -> Educación | B204: Universidad en Guapi (Estudios y diseños y obra) | E204: =+R46 -> Tramites para la suscripción de convenios, | H204: =+N46 -> Tramites para la suscripción de convenios, | I204: =+O46 -> Reporte de avance de ejecución con soportes, Inicio de Actividades, | J204: =+P46 -> Reporte de avance de ejecución con soportes | K204: =+Q46 -> Reporte de avance de ejecución con soportes | M204: =+L46 -> Ministerio de Educación Nacional
A205: Educación | B205: Estudios y diseños Universidad del Macizo | E205: Tramites para la suscripción de convenios, | H205: Tramites para la suscripción de convenios, | I205: Reporte de avance de ejecución con soportes | J205: Reporte de avance de ejecución con soportes | K205: Reporte de avance de ejecución con soportes | M205: Ministerio de Educación Nacional
A206: Educación | B206: Programa de Tránsito Inmediato a la Educación Superior (PTIES) en la Institución Educativa Técnica Miguel Zapata | E206: Reporte de avance de ejecución con soportes | H206: Reporte de avance de ejecución con soportes | I206: Reporte de avance de ejecución con soportes | J206: Reporte de avance de ejecución con soportes | K206: Reporte de avance de ejecución con soportes | M206: Ministerio de Educación Nacional
A207: Educación | B207: Culminación de obra Infraestructura física sede norte de la universidad del Cauca en Santander de Quilichao | E207: Tramites para la suscripción de convenios, | H207: Tramites para la suscripción de convenios, | I207: Reporte de avance de ejecución con soportes, Inicio de Actividades, | J207: Reporte de avance de ejecución con soportes | K207: Reporte de avance de ejecución con soportes | M207: Ministerio de Educación Nacional
A208: Educación | B208: Implementación Colegio Universidad en Guapi por UNICAUCA , adecuaciones de las IE La Normal y la IE San José | E208: Reporte de avance de ejecución con soportes | H208: Reporte de avance de ejecución con soportes | I208: Reporte de avance de ejecución con soportes | J208: Reporte de avance de ejecución con soportes | K208: Reporte de avance de ejecución con soportes | M208: Ministerio de Educación Nacional
A209: Educación | B209: Estudios, Diseños y Construcción Para La Ampliación E Implementación De Infraestructura Física Universitaria Proyectada En El Predio Belalcázar | E209: Revisión y aprobación del proyecto por la fuente de financiación, , Revisión técnica del proyecto por Sector, | H209: Revisión y aprobación del proyecto por la fuente de financiación, , Revisión técnica del proyecto por Sector, | I209: Tramites para la suscripción de convenios, | J209: Asignación de recursos, | K209: Reporte de avance de ejecución con soportes, Inicio de Actividades, | M209: Ministerio de Educación Nacional
A210: Educación | B210: Proyecto de infraestructura para el Nodo Suárez de la Universidad del Valle | E210: Reporte de avance de ejecución con soportes | H210: Reporte de avance de ejecución con soportes | I210: Reporte de avance de ejecución con soportes | J210: Reporte de avance de ejecución con soportes | K210: Reporte de avance de ejecución con soportes | M210: Ministerio de Educación Nacional
A211: Educación | B211: Estudios, Diseños y Construcción Para La Ampliación E Implementación De Infraestructura Física Universitaria Proyectada En La Sede Norte U Cauca S. Quilichao | E211: Revisión y aprobación del proyecto por la fuente de financiación, , Revisión técnica del proyecto por Sector, | H211: Revisión y aprobación del proyecto por la fuente de financiación, , Revisión técnica del proyecto por Sector, | I211: Tramites para la suscripción de convenios, | J211: Asignación de recursos, | K211: Reporte de avance de ejecución con soportes, Inicio de Actividades, | M211: Ministerio de Educación Nacional
... 140 more rows

Sheet PEI (hidden)
A2: PACTO SOCIAL PARA LA TRANSFORMACIÓN TERRITORIAL DEL CATATUMBO Fecha de aprobación: 26/08/2025
A6: 1. OBJETIVO
A7: Transformar el Catatumbo en un territorio ordenado alrededor del agua con justicia social y ambiental. soportado en una red educativa y una estructura productiva que promueva la diversificación y la reconversión productiva. fortaleciendo el tejido social y posibilitando la construcción de Paz Territorial
A11: 2. INFORMACIÓN GENERAL
A14: Fecha de inicio de ejecución | D14: 12 de agosto de 2025
A15: Plazo de ejecución | D15: 10 años
A16: Suscribientes del Pacto Territorial | D16: Departamento Nacional de Planeación. Ministerio del Interior. Agencia para la Renovación del Territorio. Consejería Presidencial para las Regiones. Instituto Colombiano de Bienestar Familiar. Ministerio de Agricultura y Desarrollo Rural. Agencia Nacional de Tierras. Unidad de Restitución de Tierras. Ministerio de Ambiente y Desarrollo Sostenible. Ministerio de Vivienda. Ciudad y Territorio. Ministerio de Educación Nacional. Ministerio de Cultura. Ministerio de las Tecnologías de la Información y la Comunicación. Ministerio de Minas y Energía. Dirección de Sustitución de Cultivos de Uso Ilícito. Instituto Geográfico Agustín Codazzi. Ministerio de Defensa. Ministerio de Transporte y Unidad de Implementación del Acuerdo de Paz Gobernación de Norte de Santander Municipio de Ocaña. Municipio de Convención. Municipio de El Carmen. Municipio de Teorama. Municipio de El Tarra. Municipio de Tibú. Municipio de San Calixto. MUnicipio de Hacarí. Muinicipio de La Playa. Municipio de Sardinata. Municipio de Abrego Pueblo Bari – Resguardo Motilón Barí y Resguardo Catañaura Movimiento por la constituyente popular. Asociación campesina de Catatumbo. Comité para la integración del Catatumbo. Asociación de unidad Campesina del Catatumbo y Firmantes de PAZ ETCR de Caño Lindo negro Eliecer Gaitan
A17: Otro sí (cuando aplique) con su fecha de suscripción | D17: NA
A25: 3. EJES O LÍNEAS ESTRATÉGICAS
A26: El Pacto Social para la Transformación Territorial del Catatumbo está conformado por 5 ejes estratégicos, 2 ejes transversales y 1 capítulo transversal Barí que articulados, contribuyen al logro del objetivo propuesto, considerando que reflejan la vocación de los territorios que la componen, la visión de desarrollo y las potencialidades, el cierre de brechas, entre otras. Capítulo transversal Bari Eje inicial – Derecho humano a la alimentación y soberanía alimentaria Eje 1 - Ordenamiento territorial participativo y popular Eje 2 – Modelo regional de Salud Eje 3 – Red educativa regional y universidad del Catatumbo Eje 4. Transformación económica. agroindustrial y reconversión productiva para el desarrollo endógeno del Catatumbo Eje 5. Conectividad. infraestructura vial y transporte intermodal Eje transversal – Paz total. implementación del acuerdo y reparación integral
A27: 4. INICIATIVAS DEL PLAN ESTRATÉGICO DE INVERSIONES.
A28: A continuación, se presentan las iniciativas estratégicas que fueron priorizadas por ejes o líneas estratégicas con sus valores indicativos para ser implmentadas durante la vigencia del Pacto Territorial, y que cuentan con la identificación de diferentes fuentes indicativas de financiación o aportes.
A32: Eje o Línea Estratégica | C32: Nº Iniciativas | E32: Aporte Nación* | H32: Aporte Territorio* | K32: Inversión Total Indicativa
A33: Capítulo transversal Bari | C33: =+B61 -> 13 | E33: =+E61 -> 133386016610 | H33: =+G61 -> 4111386997 | K33: =+E33+H33 -> 137497403607
A34: Eje inicial – Derecho humano a la alimentación y soberanía alimentaria | C34: =+B71 -> 5 | E34: =+E71 -> 66366277926 | H34: =+G71 -> 0 | K34: 66366277926
A35: Eje 1 - Ordenamiento territorial participativo y popular | C35: =+B83 -> 7 | E35: =+E83 -> 306644073516 | H35: =+G83 -> 0 | K35: 306644073516
A36: Eje 2 – Modelo regional de Salud | C36: =+B117 -> 29 | E36: =+E117 -> 334126860318 | H36: =+G117 -> 104701260 | K36: 334231561578
A37: Eje 3 – Red educativa regional y universidad del Catatumbo | C37: =+B127 -> 5 | E37: =+E127 -> 305833537640 | H37: =+G127 -> 0 | K37: 305833537640
A38: Eje 4. Transformación económica. agroindustrial y reconversión productiva para el desarrollo endógeno del Catatumbo | C38: =+B152 -> 20 | E38: =+E152 -> 717272116730 | H38: =+G152 -> 16253978000 | K38: 733526094730
A39: Eje 5. Conectividad. infraestructura vial y transporte intermodal | C39: =+B168 -> 11 | E39: =+E168 -> 1578171721401 | H39: =+G168 -> 60000000000 | K39: 1638171721401
A40: Eje transversal – Paz total. implementación del acuerdo y reparación integral | C40: =+B178 -> 5 | E40: =+E178 -> 81151674133 | H40: =+G178 -> 0 | K40: 81151674133
A41: Total Plan Estratégico de Inversiones | C41: =+C33+C34+C35+C36+C37+C38+C39+C40 -> 95 | E41: =SUM(E33:G40) -> 3522952278274 | H41: =SUM(H33:J40) -> 80470066257 | K41: =SUM(K33:N40) -> 3603422344531
A42: *Aporte Nación / Aporte Territorio corresponde con lo estipulado en la Cláusula Octava de la Minuta del Pacto
A43: Cifras expresadas en pesos.
A45: A continuación se relacionan las iniciativas por cada uno de los sectores con sus fuentes de financiación por eje o línea estratégica.
A46: Eje estratégico: Capítulo Transversal Bari
A47: Sector | B47: Nombre de la Iniciativa | E47: Aporte Nación | G47: Aporte Territorio | I47: Inversión Total | K47: Entidad Responsable* | L47: Fase | M47: Estado | N47: Descripción Avance Comité Técnico 26/03/2026
A48: MINAS Y ENERGÍA | B48: Implementación de comunidades energéticas en los resguardos Motilón Barí y Catalaura 32 comunidades energéticas en los resguardos Motilón Barí y Catalaura (2024 - 2026) - 43 comunidades energéticas en los resguardos Motilón Barí y Catalaura (2026 - 2028) | E48: 38100000000 | I48: =+E48+G48 -> 38100000000 | K48: MINISTERIO DE MINAS Y ENERGÍA | L48: Fase 3 | M48: En ejecución | N48: Ministerio de Minas y energía ejecuta 20 soluciones energeticas, de los cuales 14 se implementaran en zona del Resguardo Bari, seis comunidades atendidas, una no se puede atender por localizacion geografica (Venezuela= Proyecto contratado por valor de $3,885,000 millones, No iniciado por orden publico.
A49: EDUCACIÓN NACIONAL | B49: Dotar de mobiliario pedagógico y construcción de ambientes educativas con enfoque étnico de las sedes educativas en el territorio del Pueblo Bari | E49: 29390097786 | I49: 29390097786 | K49: MINISTERIO DE EDUCACIÓN NACIONAL | L49: Fase 3 | M49: No iniciado | N49: FIE Visitas tecnicas priorizando el pueblo Barim recursos garantizados
A50: SALUD Y PROTECCIÓN SOCIAL | B50: Estudios. diseños y construcción y Dotación del centro de atención primaria en salud. intercultural. de baja complejidad hospitalaria. en el poblado rural indígena de Brubucanina (municipio de teorama) | E50: 12423600000 | I50: 12423600000 | K50: MINISTERIO DE SALUD Y PROTECCIÓN SOCIAL | L50: Fase 2 | M50: No iniciado | N50: Recursos asignados al EMPRESA SOCIAL DEL ESTADO HOSPITAL EMIRO QUINTERO CAÑIZARES , mediante resolución 2733 del 2025 por el Minsterio de Salud y resolucion 1440-2025 para estudios y diseños - En ejecución
A51: TRANSPORTE | B51: Caminos ancestrales priorizados con el Pueblo Barí | E51: 6000000000 | G51: 1500000000 | I51: 7500000000 | K51: INSTITUTO NACIONAL DE VÍAS / Pueblo Barí | L51: Fase 3 | M51: No iniciado | N51: Mediante Convenio 1349-2026 INVIAS y la ASOCIACIÓN DE AUTORIDADES TRADICIONALES DEL PUEBLO BARI, asignaron recursos por valor de $20.133.375.014,00 para la intervención de ocho (8) caminos ancestrales, en los municipios de Tarra, Convención, El Carmen y Teorama.
A52: AGRICULTURA Y DESARROLLO RURAL | B52: PIDAR PAZ - Fortalecimiento de las capacidades productivas del Pueblo Barí alrededor de la línea de cacao y la implementación de granjas integrales con la Asociación de Autoridades Tradicionales del Pueblo Barí – ÑATUBAIYIBAR-. en el Resguardo Indígena Motilón -Barí. departamento de Norte de Santander. | E52: 6935643745 | G52: 1488232701 | I52: 8423876446 | K52: AGENCIA DE DESARROLLO RURAL / Pueblo Barí | L52: Fase 3 | M52: En ejecución | N52: En ejecución. - Recursos asignados mediante resolución 133-2025 de cofinanciación - ADR - Convenio Naciones Unidas . pendiente soporte de avance
A53: CULTURA | B53: Construcción de 13 Bohíos Ancestrales del Pueblo Barí presente en los municipios de Convención. El Carmen. El Tarra. Tibú y Teorama: 11 pertenecen al Resguardo Motilón Barí y 2 al Resguardo Catalaura Barí. | E53: 2942500000 | I53: 2942500000 | K53: MINISTERIO DE CULTURA; AGENCIA DE RENOVACIÓN DEL TERRITORIO | L53: Fase 3 | M53: En ejecución | N53: En ejecucíon por ART - se intervienen 5 bohios.
A54: PRESIDENCIA | B54: Estructuración y construcción del puente peatonal y mular sobre el río de oro en la comunidad indigena pathuina en Norte de Santander | E54: 3159897938 | I54: 3159897938 | K54: AGENCIA DE RENOVACIÓN DEL TERRITORIO | L54: Fase 3 | M54: En ejecución | N54: En ejecucíon estudios y diseños por ART - la construcción depende de los resultados de los diseños y la disponibilidad de recursos por parte de ART
A55: AGRICULTURA Y DESARROLLO RURAL | B55: PIDAR PAZ - Fortalecimiento de los sistemas productivos de cacao y granjas integrales como estrategia de generación de ingresos y soberanía alimentaria del pueblo Barí. con enfoque de género y juventud. en el Resguardo Indígena Catalaura La Gabarra. municipio de Tibú (Norte de Santander). | E55: 2640022745 | G55: 1123154296 | I55: 3763177041 | K55: AGENCIA DE DESARROLLO RURAL / Pueblo Barí | L55: Fase 3 | M55: En ejecución | N55: En ejecución. - Recursos asignados mediante resolución 110-2025 de cofinanciación - ADR - Convenio Naciones Unidas . pendiente soporte de avance
A56: SALUD Y PROTECCIÓN SOCIAL | B56: 9 EQUIPOS BÁSICOS DE SALUD (COMUNIDAD INDIGENA BRUBUCANINA Y SHUBABARINA DEL PUEBLO BARÍ. ÁREA URBANA VEREDAS ALEDAÑA AL CASCO URBANO JURISDICCIONES Y RAMIREZ. CORREGIMIENTOS DE SAN PABLO. ASERRIO. LA CECILIA. SAN JUANCITO. COMUNIDAD INDIGENA DE NOROCCIDENTAL DE: SACAKDU. YERA. SUERERA. OCBABUDA. ASGBARINGCAYRA) | E56: 2398214396 | I56: 2398214396 | K56: MINISTERIO DE SALUD Y PROTECCIÓN SOCIAL
A57: PRESIDENCIA | B57: Diseñar e implementar los planes integrales de gestion y manejo de residuos sólidos para los resguardos del territorio Barí. con el objetivo de garantizar un ambiente sano a todas las familias Barí. resguardo Catalaura. | E57: 1796040000 | I57: 1796040000 | K57: AGENCIA DE RENOVACIÓN DEL TERRITORIO | L57: Fase 3 | M57: No iniciado | N57: proyecto liderado por ART con recursos
A58: SALUD Y PROTECCIÓN SOCIAL | B58: MODELO PROPIO SALUD INDÍGENA PUEBLO MOTILÓN-BARÍ | E58: 600000000 | I58: 600000000 | K58: MINISTERIO DE SALUD Y PROTECCIÓN SOCIAL
A59: SALUD Y PROTECCIÓN SOCIAL | B59: Estudios. Diseños. Construcción Y Dotación Para El Puesto De Salud Carikachaboquira | E59: 12000000000 | I59: 12000000000 | K59: MINISTERIO DE SALUD Y PROTECCIÓN SOCIAL | L59: Fase 3 | M59: No iniciado | N59: Recursos asignados al EMPRESA SOCIAL DEL ESTADO HOSPITAL EMIRO QUINTERO CAÑIZARES , mediante resolución 2733 del 2025 por el Minsterio de Salud - Valor $3,700 millones
A60: AGRICULTURA Y DESARROLLO RURAL | B60: Implementación del programa de formalización de tierras y fomento al desarrollo rural para comunidades indígenas a nivel nacional. | E60: 15000000000 | I60: 15000000000 | K60: AGENCIA NACIONAL DE TIERRAS | L60: Fase 3 | M60: En ejecución | N60: Proyecto Miisonal de la ANT Revisar con ANT-MADR- avance
A61: Total | B61: =+COUNTA(B48:D60) -> 13 | E61: =SUM(E48:F60) -> 133386016610 | G61: =SUM(G48:H60) -> 4111386997 | I61: =SUM(I48:J60) -> 137497403607
A62: *Se entiende por entidad Responsable la encargada de la fuente de financiación.
A64: Eje estratégico: Eje inicial - derecho humano a la alimentación y soberanía alimentaria
A65: Sector | B65: Nombre de la Iniciativa | E65: Aporte Nación | G65: Aporte Territorio | I65: Inversión Total | K65: Entidad Responsable* | N65: Observaciones
A66: EDUCACIÓN NACIONAL | B66: FORTALECIMIENTO DEL PROGRAMA DE ALIMENTACIÓN ESCOLAR OPERADO POR LAS JUNTAS DE ACCIÓN COMUNAL | E66: 24254342000 | I66: =+E66+G66 -> 24254342000 | K66: UNIDAD ADMINISTRATIVA DE ALIMENTACIÓN ESCOLAR
A67: IGUALDAD Y EQUIDAD | B67: CONTRIBUCIÓN CON ACCIONES DE PROMOCIÓN Y PREVENCIÓN EN EL COMPONENTE DE ALIMENTACIÓN Y NUTRICIÓN EN LA REGIÓN DEL CATATUMBO | E67: 20000000000 | I67: =+E67+G67 -> 20000000000 | K67: ICBF
A68: INCLUSIÓN SOCIAL Y RECONCILIACIÓN | B68: Fortalecimiento de Capacidades para el Desarrollo de la Infraestructura Social y Hábitat para la PAZ total a nivel Nacional . - Puntos de Abastecimiento Solidario | E68: 10400175621 | I68: 10400175621 | K68: DEPARTAMENTO PARA LA PROSPERIDAD SOCIAL
A69: INCLUSIÓN SOCIAL Y RECONCILIACIÓN | B69: Implementación de la estrategia "Hambre Cero para apoyar la accesibilidad a los alimentos de la población en situación de pobreza. extrema pobreza y vulnerabilidad -FIP-NACIONAL. | E69: 6928000000 | I69: =+E69+G69 -> 6928000000 | K69: DEPARTAMENTO PARA LA PROSPERIDAD SOCIAL
A70: IGUALDAD Y EQUIDAD | B70: Hogares con provisión directa de alimentos en el marco del Programa Hambre Cero | E70: 4783760305 | I70: =+E70+G70 -> 4783760305 | K70: MINISTERIO DE IGUALDAD Y EQUIDAD
A71: Total | B71: =+COUNTA(B66:D70) -> 5 | E71: =SUM(E66:F70) -> 66366277926 | G71: =SUM(G66:H70) -> 0 | I71: =SUM(I66:J70) -> 66366277926
A72: *Se entiende por entidad Responsable la encargada de la fuente de financiación.
A74: Eje estratégico: Eje 1. Ordenamiento territorial participativo y popular
A75: Sector | B75: Nombre de la Iniciativa | E75: Aporte Nación | G75: Aporte Territorio | I75: Inversión Total | K75: Entidad Responsable* | N75: Observaciones
A76: VIVIENDA. CIUDAD Y TERRITORIO | B76: Optimización de alcantarillado del corregimiento La Gabarra. Municipio de Tibú | E76: 15724904254 | I76: =+E76+G76 -> 15724904254 | K76: MINISTERIO DE VIVIENDA. CIUDAD Y TERRITORIO; MINISTERIO DE IGUALDAD Y EQUIDAD
A77: AMBIENTE Y DESARROLLO SOSTENIBLE | B77: Bio Catatumbo: Por la conservación. la construcción colectiva y sostenible del territorio | E77: 56139249578 | I77: =+E77+G77 -> 56139249578 | K77: MINISTERIO DE AMBIENTE Y DESARROLLO SOSTENIBLE
A78: AMBIENTE Y DESARROLLO SOSTENIBLE | B78: Implementación de Zonificaciones Ambientales Participativas para la gobernanza territorial y el fortalecimiento de los derechos territoriales de las comunidades campesinas de 11 municipios del Catatumbo | E78: 35281219684 | I78: 35281219684 | K78: MINISTERIO DE AMBIENTE Y DESARROLLO SOSTENIBLE
A79: VIVIENDA. CIUDAD Y TERRITORIO | B79: Implementación de 350 conexiones intradomiciliarias para el municipio de ocaña norte santander | E79: 3248700000 | I79: =+E79+G79 -> 3248700000 | K79: MINISTERIO DE VIVIENDA. CIUDAD Y TERRITORIO; MINISTERIO DE IGUALDAD Y EQUIDAD
A80: VIVIENDA. CIUDAD Y TERRITORIO | B80: Mejoramiento de vivienda urbanos y rurales (4.063 urbanos y 2.188 rurales) | E80: 146250000000 | I80: =+E80+G80 -> 146250000000 | K80: MINISTERIO DE VIVIENDA. CIUDAD Y TERRITORIO; MINISTERIO DE IGUALDAD Y EQUIDAD
A81: AGRICULTURA Y DESARROLLO RURAL | B81: Incremento de la formalización de predios privados rurales y procesos agrarios a nivel nacional | E81: 15000000000 | I81: =+E81+G81 -> 15000000000 | K81: AGENCIA NACIONAL DE TIERRAS
A82: AGRICULTURA Y DESARROLLO RURAL | B82: Fortalecimiento del programa de reforma agraria y reforma rural integral nacional. | E82: 35000000000 | I82: =+E82+G82 -> 35000000000 | K82: AGENCIA NACIONAL DE TIERRAS
A83: Total | B83: =+COUNTA(B76:D82) -> 7 | E83: =SUM(E76:F82) -> 306644073516 | G83: =SUM(G76:H82) -> 0 | I83: =SUM(I76:J82) -> 306644073516
A84: *Se entiende por entidad Responsable la encargada de la fuente de financiación.
A86: Eje estratégico: Eje 2. Modelo regional de Salud
A87: Sector | B87: Nombre de la Iniciativa | E87: Aporte Nación | G87: Aporte Territorio | I87: Inversión Total | K87: Entidad Responsable* | N87: Observaciones
A88: SALUD Y PROTECCIÓN SOCIAL | B88: Ampliar la ESE Emiro Quintero Cañizares que se encuentra en nivel II para llegar a ser una ESE de tercer nivel | E88: 90000000000 | I88: =+G88+E88 -> 90000000000 | K88: MINISTERIO DE SALUD Y PROTECCIÓN SOCIAL | L88: Fase 3 | M88: No iniciado | N88: Recursos asignados a mediante resolución 2733 del 2025 por el Minsterio de Salud - entidad Ejecutora ESE Emiro Quintero Cañizares
A89: SALUD Y PROTECCIÓN SOCIAL | B89: ESTUDIOS. DISEÑOS. CONSTRUCCIÓN y DOTACIÓN. PARA LA NUEVA IPS CORREGIMIENTO DE SAN PABLO. MUNICIPIO DE TEORAMA | E89: 13110900000 | I89: =+G89+E89 -> 13110900000 | K89: MINISTERIO DE SALUD Y PROTECCIÓN SOCIAL | L89: Fase 3 | M89: No iniciado | N89: Recursos asignados a mediante resolución 2733 del 2025 por el Minsterio de Salud - entidad Ejecutora ESE Hospital Regional Norteoccidental
A90: SALUD Y PROTECCIÓN SOCIAL | B90: ESTUDIOS. DISEÑOS. CONSTRUCCIÓN Y DOTACIÓN. PARA EL CENTRO DE SALUD CAMPO DOS. MUNICIPIO DE TIBÚ | E90: 12632400000 | I90: 12632400000 | K90: MINISTERIO DE SALUD Y PROTECCIÓN SOCIAL | L90: Fase 3 | M90: No iniciado | N90: Recursos asignados a mediante resolución 2733 del 2025 por el Minsterio de Salud - entidad Ejecutora ESE Hospital Regional Nortel
A91: SALUD Y PROTECCIÓN SOCIAL | B91: ESTUDIOS. DISEÑOS. CONSTRUCCIÓN Y DOTACIÓN. PARA LA IPS ABREGO DE LA ESE HOSPITAL REGIONAL NOROCCIDENTAL | E91: 22402500000 | I91: 22402500000 | K91: MINISTERIO DE SALUD Y PROTECCIÓN SOCIAL | L91: Fase 3 | M91: No iniciado | N91: Recursos asignados a mediante resolución 2733 del 2025 por el Minsterio de Salud - entidad Ejecutora ESE Hosptal Regional Noroccidental
A92: SALUD Y PROTECCIÓN SOCIAL | B92: ESTRATÉGICAS PARA LA PROMOCIÓN DE LA SALUD MENTAL. LA CONVIVENCIA SOCIAL. LA PREVENCIÓN Y GESTIÓN DE RIESGOS Y DAÑOS ASOCIADOS AL CONSUMO DE SUSTANCIAS PSICOACTIVAS DE LA POBLACIÓN - CAMAD | E92: 6981741584 | I92: 6981741584 | K92: MINISTERIO DE SALUD Y PROTECCIÓN SOCIAL
A93: SALUD Y PROTECCIÓN SOCIAL | B93: Construcción Del Centro De Adulto Mayor El Tarra. Norte De Santander | E93: 6198985348 | I93: 6198985348 | K93: FONDO DE PROGRAMAS ESPECIALES PARA LA PAZ
A94: SALUD Y PROTECCIÓN SOCIAL | B94: ESTUDIOS. DISEÑOS. CONTRUCCION Y DOTACIÓN PARA CENTRO DE SALUD LAS MERCEDES. MUNICIPIO DE SARDINATA | E94: 8000000000 | I94: 8000000000 | K94: MINISTERIO DE SALUD Y PROTECCIÓN SOCIAL | L94: Fase 3 | M94: No iniciado | N94: Recursos asignados a mediante resolución 2733 del 2025 por el Minsterio de Salud - entidad Ejecutora ESE Hospital Regional Norte
A95: SALUD Y PROTECCIÓN SOCIAL | B95: COFINANCIACIÓN DE LAS ATENCIONES DE URGENCIAS Y PARTOS PRESTADOS A LA POBLACIÓN MIGRANTE NO ASEGURADA O EN CONDICIÓN IRREGULAR | E95: 2087259639 | I95: =+G95+E95 -> 2087259639 | K95: MINISTERIO DE SALUD Y PROTECCIÓN SOCIAL
A96: SALUD Y PROTECCIÓN SOCIAL | B96: ESTUDIOS. DISEÑOS. CONSTRUCCIÓN Y DOTACIÓN PARA LA AMPLIACIÓN Y REMODELACIÓN DE LA IPS DEL CASCO URBANO DEL MUNICIPIO DE EL CARMEN NORTE DE SANTANDER | E96: 21000000000 | I96: =+G96+E96 -> 21000000000 | K96: MINISTERIO DE SALUD Y PROTECCIÓN SOCIAL
A97: SALUD Y PROTECCIÓN SOCIAL | B97: DOTACIÓN DE EQUIPOS BIOMÉDICOS PARA EL FUNCIONAMIENTO DE LA IPS DEL CORREGIMIENTO DE GUAMALITO.MUNICIPIO DE EL CARMEN | E97: 1200000000 | I97: 1200000000 | K97: MINISTERIO DE SALUD Y PROTECCIÓN SOCIAL
A98: SALUD Y PROTECCIÓN SOCIAL | B98: ASIGNACIÓN DE RECURSOS PARA LA CERTIFICACION DE DISCAPACIDAD Y EL REGISTRO PARA LA LOCALIZACIÓN Y CARACTERIZACIÓN DE PERSONAS CON DISCAPACIDAD - RLCPD | E98: 0 | G98: 104701260 | I98: 104701260 | K98: MINISTERIO DE SALUD Y PROTECCIÓN SOCIAL / Gobernación Norte de Santander
A99: SALUD Y PROTECCIÓN SOCIAL | B99: PROGRAMA DE ATENCIÓN PSICOSOCIAL Y SALUD INTEGRAL A VÍCTIMAS - PAPSIVI | E99: 8204545010 | I99: =+G99+E99 -> 8204545010 | K99: MINISTERIO DE SALUD Y PROTECCIÓN SOCIAL
A100: SALUD Y PROTECCIÓN SOCIAL | B100: EQUIPOS BÁSICOS DE SALUD. MUNICIPIOS REGION DE CATATUMBO | E100: 46786651578 | I100: =+G100+E100 -> 46786651578 | K100: MINISTERIO DE SALUD Y PROTECCIÓN SOCIAL
A101: SALUD Y PROTECCIÓN SOCIAL | B101: Instalación del Hospital móvil en El Tarra | E101: 16608149894 | I101: 16608149894 | K101: MINISTERIO DE SALUD Y PROTECCIÓN SOCIAL
A102: SALUD Y PROTECCIÓN SOCIAL | B102: ESTUDIOS. DISEÑOS. CONSTRUCCIÓN Y DOTACIÓN PARA EL CENTRO DE SALUD DE EL TARRA | E102: 22915800000 | I102: 22915800000 | K102: MINISTERIO DE SALUD Y PROTECCIÓN SOCIAL | L102: Fase 3 | M102: No iniciado | N102: Recursos asignados a mediante resolución 2733 del 2025 por el Minsterio de Salud - entidad Ejecutora ESE Hospital Regional Norte
A103: SALUD Y PROTECCIÓN SOCIAL | B103: ESTUDIOS. DISEÑOS. CONSTRUCCIÓN Y DOTACIÓN. PARA EL NUEVO HOSPITAL DE CONVENCIÓN | E103: 21602100000 | I103: 21602100000 | K103: MINISTERIO DE SALUD Y PROTECCIÓN SOCIAL | L103: Fase 3 | M103: No iniciado | N103: Recursos asignados a mediante resolución 2733 del 2025 por el Minsterio de Salud - entidad Ejecutora ESE Hos´ptal Regional Noroccidental
A104: SALUD Y PROTECCIÓN SOCIAL | B104: EQUIPOS DE ESPECIALISTAS | E104: 1768413600 | I104: 1768413600 | K104: MINISTERIO DE SALUD Y PROTECCIÓN SOCIAL
A105: SALUD Y PROTECCIÓN SOCIAL | B105: ADECUACION MENOR. PUESTO DE SALUD DE LA VEGA DE SAN ANTONIO Y DOTACIÓN | E105: 561437991 | I105: =+G105+E105 -> 561437991 | K105: MINISTERIO DE SALUD Y PROTECCIÓN SOCIAL
A106: SALUD Y PROTECCIÓN SOCIAL | B106: ADECUACION MENOR. PUESTO DE SALUD DE OTARÉ. MUNICIPIO DE OCAÑA Y DOTACIÓN | E106: 579773354 | I106: =+G106+E106 -> 579773354 | K106: MINISTERIO DE SALUD Y PROTECCIÓN SOCIAL | L106: Fase 3 | M106: En ejecución | N106: Recursos asignados a mediante resolución 562 del 2025 por el Minsterio de Salud - entidad Ejecutora ESE Hospital Emiro Quintero Canizares
A107: SALUD Y PROTECCIÓN SOCIAL | B107: ADECUACION MENOR. PUESTO DE SALUD DE PETROLEA. MUNICIPIO DE TIBÚ Y DOTACIÓN | E107: 485413267 | I107: 485413267 | K107: MINISTERIO DE SALUD Y PROTECCIÓN SOCIAL | L107: Fase 3 | M107: En ejecución | N107: Recursos asignados a mediante resolución 562 del 2025 por el Minsterio de Salud - entidad Ejecutora IMSALUD
A108: SALUD Y PROTECCIÓN SOCIAL | B108: ADECUACION MENOR. PUESTO DE SALUD DE PUEBLO NUEVO. MUNICIPIO DE OCAÑA Y DOTACIÓN | E108: 411193552 | I108: 411193552 | K108: MINISTERIO DE SALUD Y PROTECCIÓN SOCIAL | L108: Fase 3 | M108: En ejecución | N108: Recursos asignados a mediante resolución 562 del 2025 por el Minsterio de Salud - entidad Ejecutora ESE Hospital Emiro Quintero Canizares
A109: SALUD Y PROTECCIÓN SOCIAL | B109: ADECUACION MENOR. PUESTO DE SALUD DE ASPASICA Y DOTACIÓN | E109: 401454382 | I109: =+G109+E109 -> 401454382 | K109: MINISTERIO DE SALUD Y PROTECCIÓN SOCIAL
A110: SALUD Y PROTECCIÓN SOCIAL | B110: ADECUACION MENOR. PUESTO DE SALUD DE CAPITAN LARGO. MUNICIPIO DE ABREGO Y DOTACIÓN | E110: 411137156 | I110: =+G110+E110 -> 411137156 | K110: MINISTERIO DE SALUD Y PROTECCIÓN SOCIAL | L110: Fase 3 | M110: En ejecución | N110: Recursos asignados a mediante resolución 941 del 2025 por el Minsterio de Salud - entidad Ejecutora ESE Hospital Regionasl Noroccidente - con giro
A111: SALUD Y PROTECCIÓN SOCIAL | B111: ADECUACION MENOR. PUESTO DE SALUD DE HIGUERÓN. MUNICIPIO DE ABREGO Y DOTACIÓN | E111: 241293439 | I111: 241293439 | K111: MINISTERIO DE SALUD Y PROTECCIÓN SOCIAL | L111: Fase 3 | M111: En ejecución | N111: Recursos asignados a mediante resolución 941 del 2025 por el Minsterio de Salud - entidad Ejecutora ESE Hospital Regionasl Noroccidente - con giro
A112: SALUD Y PROTECCIÓN SOCIAL | B112: 1 EQUIPO SALUD MENTAL | E112: 420000000 | I112: 420000000 | K112: MINISTERIO DE SALUD Y PROTECCIÓN SOCIAL
A113: SALUD Y PROTECCIÓN SOCIAL | B113: 5 Vehículos De Transporte Asistencial Básico Y 1 Vehículo De Transporte Extramural (Ábrego;González) | E113: 4535278524 | I113: 4535278524 | K113: MINISTERIO DE SALUD Y PROTECCIÓN SOCIAL | L113: Fase 3 | M113: No iniciado | N113: Recursos asignados por el Minsterio de Salud mediante resolucion 210 del 10 de febrero del 2025 para la compra de 4 vehiculos por valor de $383 millones cada uno. Municipios Abrego, convenciónm Teorama, El Carmen - Verificar estado con Min Salud
A114: SALUD Y PROTECCIÓN SOCIAL | B114: Estudios. Diseños. Construcción Y Dotación. Para La Ampliacion Y Reordenamiento Para La E.S.E. Norte San Jose De Tibu | E114: 13050000000 | I114: 13050000000 | K114: MINISTERIO DE SALUD Y PROTECCIÓN SOCIAL | L114: Fase 3 | M114: No iniciado | N114: Recursos asignados a mediante resolución 2733 del 2025 por el Minsterio de Salud - entidad Ejecutora ESE Hospital Regional Nortel
A115: SALUD Y PROTECCIÓN SOCIAL | B115: Adquisición De Ambulancias (Tab) De Transporte De Pacientes A Ips De La Red Publica Con Iniciativas En Municipios Pdet Ante Urgencias Emergencias Y Desastres Beneficiando La Poblacion De La Region Del Catatumbo Del Departamento Norte De Santander | E115: 4530432000 | I115: =+G115+E115 -> 4530432000 | K115: AGENCIA DE RENOVACIÓN DEL TERRITORIO
A116: SALUD Y PROTECCIÓN SOCIAL | B116: Estudios. Diseños. Construcción Y Dotación. Para El Centro De Salud De El Paso Municipio del Tarra | E116: 7000000000 | I116: =+G116+E116 -> 7000000000 | K116: MINISTERIO DE SALUD Y PROTECCIÓN SOCIAL | L116: Fase 3 | M116: No iniciado | N116: Recursos asignados a mediante resolución 2733 del 2025 por el Minsterio de Salud - entidad Ejecutora ESE Hospital Regional Norte
A117: Total | B117: =+COUNTA(B88:D116) -> 29 | E117: =SUM(E88:F116) -> 334126860318 | G117: =SUM(G88:H116) -> 104701260 | I117: =SUM(I88:J116) -> 334231561578
A118: *Se entiende por entidad Responsable la encargada de la fuente de financiación.
A120: Eje estratégico: Eje 3. Red educativa regional y universidad del Catatumbo
A121: Sector | B121: Nombre de la Iniciativa | E121: Aporte Nación | G121: Aporte Territorio | I121: Inversión Total | K121: Entidad Responsable* | N121: Observaciones
A122: EDUCACIÓN NACIONAL | B122: Mejorar las condiciones para el acceso a la Educación Preescolar. Básica y Media del Catatumbo por medio del mejoramiento de 66 sedes educativas en la región del Catatumbo | E122: 199345442083 | I122: =+E122+G122 -> 199345442083 | K122: MINISTERIO DE EDUCACIÓN NACIONAL
A123: EDUCACIÓN NACIONAL | B123: Construcción de la Universidad Nacional del Catatumbo (Fase I) en el Munciipio del Tarra | E123: 39073382061 | I123: =+E123+G123 -> 39073382061 | K123: FONDO DE PROGRAMAS ESPECIALES PARA LA PAZ -AGENCIA DE RENOVACIÓN DEL TERRITORIO; MINISTERIO DE EDUCACIÓN NACIONAL | L123: Fase 3 | M123: En ejecución | N123: Convenio 735-2025 consorcio FCP- FONDO pAZ Obra Contrato 1322 del 2023 - Fecha entrega 30 de mayo 2025 Avance a enero 2025 - 50%
A124: EDUCACIÓN NACIONAL | B124: Construcción de la Universidad Nacional del Catatumbo segunda etapa y dotación de la infraestructura de educación superior en la Subregión del Catatumbo | E124: 37000000000 | I124: =+E124+G124 -> 37000000000 | K124: MINISTERIO DE EDUCACIÓN NACIONAL | L124: Fase 3 | M124: No iniciado | N124: Proceso en estructuración recursos Min Educación
A125: TECNOLOGÍAS DE LA INFORMACIÓN Y LAS COMUNICACIONES | B125: Zonas comunitarias para la paz (soluciones de internet comunitario Wifi que carecen de conectividad. en municipios cobijados por los PDET) | E125: 24615530489 | I125: =+E125+G125 -> 24615530489 | K125: MINISTERIO DE TECNOLOGÍAS DE LA INFORMACIÓN Y COMUNICACIONES
A126: EDUCACIÓN NACIONAL | B126: Construcción Centro De Desarrollo Integral (CDI) El Tarra. Norte De Santander | E126: 5799183007 | I126: =+E126+G126 -> 5799183007 | K126: FONDO DE PROGRAMAS ESPECIALES PARA LA PAZ
A127: Total | B127: =+COUNTA(A122:A126) -> 5 | E127: =SUM(E122:F126) -> 305833537640 | G127: =SUM(G122:H126) -> 0 | I127: =SUM(I122:J126) -> 305833537640
A128: *Se entiende por entidad Responsable la encargada de la fuente de financiación.
A130: Eje estratégico: Eje 4. Transformación económica. agroindustrial y productiva para el desarrollo endógeno del Catatumbo
A131: Sector | B131: Nombre de la Iniciativa | E131: Aporte Nación | G131: Aporte Territorio | I131: Inversión Total | K131: Entidad Responsable* | N131: Observaciones
A132: MINAS Y ENERGÍA | B132: Implementación de comunidades energéticas en la región del Catatumbo - 61 comunidades energéticas (2024 - 2026) - | E132: 77216000000 | I132: =+E132+G132 -> 77216000000 | K132: MINISTERIO DE MINAS Y ENERGÍA
A133: AMBIENTE Y DESARROLLO SOSTENIBLE | B133: Fomento de Prácticas Productivas Sostenibles para la Restauración en la Cuenca del Catatumbo | E133: 34877914235 | I133: =+E133+G133 -> 34877914235 | K133: MINISTERIO DE AMBIENTE Y DESARROLLO SOSTENIBLE
A134: PRESIDENCIA | B134: Fortalecimiento el sector cacaotero en los municipios pdet de la zona de catatumbo en el departamento de Norte de Santander | E134: 24977825339 | I134: 24977825339 | K134: AGENCIA DE RENOVACIÓN DEL TERRITORIO
A135: AGRICULTURA Y DESARROLLO RURAL | B135: PIDAR PAZ - Fortalecimiento de las capacidades técnicas. Organizacionales y comerciales de los productores de cebolla de 8 municipios de la región del Catatumbo. | E135: 10840158795 | G135: 9753978000 | I135: 20594136795 | K135: AGENCIA DE DESARROLLO RURAL / Territorio (Comunidades) | L135: Fase 3 | M135: En ejecución | N135: Avance 80% - Informacipon ADR consejo Direectivo Extraordinario No. 1
A136: AGRICULTURA Y DESARROLLO RURAL | B136: PIDAR PAZ - Proyecto productivos de fortalecimiento de la línea de café en los municipios de la subregión del Catatumbo. | E136: 13000000000 | G136: 3250000000 | I136: 16250000000 | K136: AGENCIA DE DESARROLLO RURAL / Territorio (Comunidades) | L136: Fase 3 | M136: No iniciado | N136: Avamce; estructuración de asociaciones, realizado el consejo directivo en el cual se distribuye los recursos- Informacipon ADR consejo Direectivo Extraordinario No. 1 - Recursos Asignados
A137: AGRICULTURA Y DESARROLLO RURAL | B137: PIDAR PAZ - Proyecto productivos de fortalecimiento de la línea de cacao en los municipios de la subregión del Catatumbo. | E137: 13000000000 | G137: 3250000000 | I137: 16250000000 | K137: AGENCIA DE DESARROLLO RURAL / Territorio (Comunidades) | L137: Fase 3 | M137: Terminado | N137: Avance 100% - Informacipon ADR consejo Direectivo Extraordinario No. 1
A138: MINAS Y ENERGÍA | B138: Construcción para la electrificación rural por medio de redes eléctricas en la zona rural del municipio de Abrego. Norte de Santander | E138: 11892523345 | I138: 11892523345 | K138: MINISTERIO DE MINAS Y ENERGÍA
A139: PRESIDENCIA | B139: Fortalecimiento de capacidades técnicas productivas y comerciales a mujeres rurales víctimas del conflicto armado en el municipio de El Carmen Norte de Santander | E139: 8942924565 | I139: 8942924565 | K139: AGENCIA DE RENOVACIÓN DEL TERRITORIO
A140: IGUALDAD Y EQUIDAD | B140: Construcción del Centro Regional de Abastecimiento en el marco del programa Hambre Cero (agrologística) | E140: 8000000000 | I140: 8000000000 | K140: MINISTERIO DE IGUALDAD Y EQUIDAD
A141: INCLUSIÓN SOCIAL Y RECONCILIACIÓN | B141: Implementación del programa generación de ingresos y oportunidades sostenibles para las personas. familias y micronegocios de la economía popular. comunitaria y solidaria- Genios de la economía popular. | E141: 5000000000 | I141: 5000000000 | K141: DEPARTAMENTO PARA LA PROSPERIDAD SOCIAL
A142: AGRICULTURA Y DESARROLLO RURAL | B142: Construcción de sistema de riego comunitario para impactar 42 familias | E142: 1019971997 | I142: 1019971997 | K142: AGENCIA DE DESARROLLO RURAL
A143: AGRICULTURA Y DESARROLLO RURAL | B143: PROMOVER EL FORTALECIMIENTO DE LAS CAPACIDADES COMERCIALES DE ORGANIZACIONES DE PEQUEÑOS Y MEDIANOS PRODUCTORES DE LA REGIÓN DEL CATATUMBO, CON MIRAS A LA INCURSIÓN EN LOS DIFERENTES MERCADOS | E143: 18497659272 | I143: 18497659272 | K143: AGENCIA DE DESARROLLO RURAL | N143: Revisar Programa de Canastas Familiares y Comercialización
A144: AMBIENTE Y DESARROLLO SOSTENIBLE | B144: Disminuir la degradación de los ecosistemas de la Ecorregión Catatumbo: 1. Servicio de restauración de ecosistemas - de áreas continentales 2. Servicio de restauración multifuncional productiva 3. Infraestructura funcional para la Bioeconomía construida y dotada | E144: 72170900781 | I144: 72170900781 | K144: MINISTERIO DE AMBIENTE Y DESARROLLO SOSTENIBLE
A145: PRESIDENCIA | B145: Programa de Sustitución de Cultivos de Uso Ilícito | E145: 325787775196 | I145: 325787775196 | K145: AGENCIA DE RENOVACIÓN DEL TERRITORIO - DIRECCIÓN DE SUSTITUCIÓN DE CULTIVOS DE USO ILICITO
A146: AGRICULTURA Y DESARROLLO RURAL | B146: Sistemas agroforestales sostenibles. resilientes y justos | E146: 12000000000 | I146: 12000000000 | K146: MINISTERIO DE AGRICULTURA Y DESARROLLO RURAL
A147: AGRICULTURA Y DESARROLLO RURAL | B147: Apoyo asistencia técnica / Extensión agropecuaria | E147: 683860320 | I147: 683860320 | K147: AGENCIA DE DESARROLLO RURAL
A148: IGUALDAD Y EQUIDAD | B148: Fomentar el arraigo territorial de la población del Catatumbo mediante la formalización de la tenencia de la tierra. a través del fortalecimiento de la Oficina Municipal de Tierras (OMT) de Teorama como instancia de articulación interinstitucional. orientada a consolidar la seguridad jurídica sobre la propiedad rural. | E148: 2620786151 | I148: 2620786151 | K148: MINISTERIO DE IGUALDAD Y EQUIDAD
A149: PRESIDENCIA | B149: PIDAR PAZ - Aunar esfuerzos para la implementación de proyectos en la Subregión del Catatumbo. mediante la estructuración de estudios y diseños e implementación de Infraestructura Productiva como alternativa de reconversión hacia las economías lícitas (Plantas de Transformación) | E149: 73336856042 | I149: 73336856042 | K149: AGENCIA DE RENOVACIÓN DEL TERRITORIO - DIRECCIÓN DE SUSTITUCIÓN DE CULTIVOS DE USO ILICITO
A150: PRESIDENCIA | B150: IMPLEMENTACIÓN DE HUERTAS FAMILIARES INTEGRALES PARA LA DIVERSIFICACIÓN DE LA PRODUCCIÓN DE ALIMENTOS BAJO UN MODELO AGROECOLÓGICO. DIRIGIDO A LAS MUJERES PRODUCTORAS DEL CORREGIMIENTO LA VICTORIA Y ZONA CENTRO EN EL MUNICIPIO DE SARDINATA. NORTE DE SANTANDER | E150: 1256000000 | I150: 1256000000 | K150: AGENCIA DE RENOVACIÓN DEL TERRITORIO
A151: PRESIDENCIA | B151: FORTALECIMIENTO DE LA PRODUCCIÓN Y EL MANEJO POSTCOSECHA DEL CULTIVO DE FRIJOL EN EL MUNICIPIO DE EL CARMEN. DEPARTAMENTO DE NORTE DE SANTANDER | E151: 2150960692 | I151: 2150960692 | K151: AGENCIA DE RENOVACIÓN DEL TERRITORIO | L151: Fase 3 | M151: En ejecución | N151: Recursos ART - Requiere informaxion de avance
A152: Total | B152: =+COUNTA(B132:D151) -> 20 | E152: =SUM(E132:F151) -> 717272116730 | G152: =SUM(G132:H151) -> 16253978000 | I152: =SUM(I132:J151) -> 733526094730
A153: *Se entiende por entidad Responsable la encargada de la fuente de financiación.
A155: Eje estratégico: Eje 5. Conectividad. infraestructura vial y transporte intermodal – caminos comunitarios para la paz
A156: Sector | B156: Nombre de la Iniciativa | E156: Aporte Nación | G156: Aporte Territorio | I156: Inversión Total | K156: Entidad Responsable* | N156: Observaciones
A157: TRANSPORTE | B157: Transversal del Catatumbo (Tibú.- Convención 123 km) | E157: =+(945413000000+20299000000) -> 965712000000 | I157: =+E157+G157 -> 965712000000 | K157: INSTITUTO NACIONAL DE VÍAS / DNP | N157: El DNP aportará $20.299 millones a través del FRPT y corresponde al tramo Tibú - El Tarra (4 km). INVIAS cuenta con recursos por valor de $305.727 millones que estan en ejecución, gatantizados con VF hata el 2030. INVIAS gestiona $639.000 a traves de CONPES..
A158: TRANSPORTE | B158: Troncal del Catatumbo (Astilleros - El Tablazo - Santa Rosa - Petrolea - Campo Dos - Tibú - La Gabarra) | E158: =+(84130000000) -> 84130000000 | G158: 60000000000 | I158: =+E158+G158 -> 144130000000 | K158: INVIAS / DNP / Gobernación Norte de Santander | N158: Se encuentran financiados 21 km aproximadamante con recursos SGR VF y recursos propios del departamento por $60.000 millones. INVIAS asignó recursos por $84.130 millones al departamento mediante convenio el cual se encuentra en ejecución. Se debe verificar todos los recursos asignados por el departamento en el tramo Tibú - La Florida por otras fuentes de finanicación (OCAD PAZ y crédito departamental).
A159: TRANSPORTE | B159: Programa Caminos Comunitarios de la Paz Total (CCPT) en la región del Catatumbo | E159: 78319000000 | I159: =+E159+G159 -> 78319000000 | K159: INSTITUTO NACIONAL DE VÍAS | N159: Se cuenta con 1 billón para todo el país en 2026. Se estima inicialmente entre 60.000 y 70.000 millones para la vigencia 2026.
A160: TRANSPORTE | B160: Corredor Convención - La Mata | E160: 250048537466 | I160: 250048537466 | K160: INSTITUTO NACIONAL DE VÍAS | N160: El INVIAS tramitará los recursos a través de un CONPES
A161: TRANSPORTE | B161: Mejoramiento de la infraestructura aeroportuaria de Tibú | E161: 81621000000 | I161: 81621000000 | K161: AERONÁUTICA CIVIL
A162: PRESIDENCIA | B162: Construcción de pavimento rígido en la carrera 8 entre calles 03 y 04s y la calle 04s intercepción con carrera 8 y carrera 11. del barrio Villa Esperanza. municipio El Tarra. departamento Norte de Santander El Tarra | E162: 2692025282 | I162: 2692025282 | K162: AGENCIA DE RENOVACIÓN DEL TERRITORIO | L162: Fase 3 | M162: No iniciado | N162: Proyecto financiado por obras por impuestos VALOR $4,000 MILLONES
A163: PRESIDENCIA | B163: Mejoramiento de la vía principal que comunica Río de Oro on El Carmen departamento de Norte de Santander | E163: 23269587832 | I163: 23269587832 | K163: AGENCIA DE RENOVACIÓN DEL TERRITORIO | L163: Fase 3 | M163: No iniciado | N163: Proyecto financiado por obras por impuestos
A164: PRESIDENCIA | B164: Mejoramiento de la via terciaria entre Pinzon Castilla casco urbano del municipio de Hacarí corregimiento San Jose del Tarra en el marco de la implementacion de los acuerdos de paz en el municipio de Hacarí - Norte de Santander | E164: 7636572749 | I164: 7636572749 | K164: AGENCIA DE RENOVACIÓN DEL TERRITORIO | L164: Fase 3 | M164: No iniciado | N164: Proyecto financiado por obras por impuestos
A165: PRESIDENCIA | B165: Mejoramiento en la vía terciaria a la vereda caño victoria. municipio de Tibú. departamento de Norte de Santander | E165: 6089859599 | I165: 6089859599 | K165: AGENCIA DE RENOVACIÓN DEL TERRITORIO | L165: Fase 3 | M165: No iniciado | N165: Proyecto financiado por obras por impuestos
A166: TECNOLOGÍAS DE LA INFORMACIÓN Y LAS COMUNICACIONES | B166: IMPLEMENTACIÓN SOLUCIONES DE ACCESO COMUNITARIO A LAS TECNOLOGÍAS DE LA INFORMACIÓN Y LAS COMUNICACIONES NACIONAL (CENTROS DIGITALES) | E166: 44089391459 | I166: 44089391459 | K166: MINISTERIO DE TECNOLOGÍAS DE LA INFORMACIÓN Y COMUNICACIONES
A167: TECNOLOGÍAS DE LA INFORMACIÓN Y LAS COMUNICACIONES | B167: Comunidades de Conectividad en municipios priorizados de la región del Catatumbo | E167: 34563747014 | I167: 34563747014 | K167: MINISTERIO DE TECNOLOGÍAS DE LA INFORMACIÓN Y COMUNICACIONES
A168: Total | B168: =+COUNTA(B157:D167) -> 11 | E168: =SUM(E157:F167) -> 1578171721401 | G168: =SUM(G157:H167) -> 60000000000 | I168: =SUM(I157:J167) -> 1638171721401
A169: *Se entiende por entidad Responsable la encargada de la fuente de financiación.
A171: Eje estratégico: Eje transversal - Paz total. implementación del acuerdo y reparación integral
A172: Sector | B172: Nombre de la Iniciativa | E172: Aporte Nación | G172: Aporte Territorio | I172: Inversión Total | K172: Entidad Responsable* | N172: Observaciones
A173: INCLUSIÓN SOCIAL Y RECONCILIACIÓN | B173: Implementación de un esquema especial de acompañamiento dirigido a los hogares víctimas de desplazamiento forzado retornados o reubicados en condiciones de vulnerabilidad. a nivel nacional-FIP NACIONAL. | E173: 42128771618 | I173: =+E173+G173 -> 42128771618 | K173: Departamento de Prosperidad Social
A174: PRESIDENCIA | B174: Impulso a la estrategia de consolidación de los ETCR | E174: 26212000000 | I174: =+E174+G174 -> 26212000000 | K174: AGENCIA PARA LA REINCORPORACIÓN Y LA NORMALIZACIÓN
A175: PRESIDENCIA | B175: Plan Regional de búsqueda de personas dadas por desaparecidas | E175: 1835670000 | I175: =+E175+G175 -> 1835670000 | K175: UNIDAD DE BUSQUEDA DE PERSONAS DADAS POR DESAPARECIDAS
A176: IGUALDAD Y EQUIDAD | B176: Implementación de Jóvenes en Paz | E176: 8849625696 | I176: =+E176+G176 -> 8849625696 | K176: DEPARTAMENTO PARA LA PROSPERIDAD SOCIAL
A177: PRESIDENCIA | B177: Construcción de centro multipropósito casa de la familia y la juventud en el casco urbano del municipio de el Tarra Norte de Santander | E177: 2125606819 | I177: =+E177+G177 -> 2125606819 | K177: MINISTERIO DE IGUALDAD Y EQUIDAD
A178: Total | B178: =+COUNTA(B173:D177) -> 5 | E178: =SUM(E173:F177) -> 81151674133 | G178: =SUM(G173:H177) -> 0 | I178: =SUM(I173:J177) -> 81151674133
A179: *Se entiende por entidad Responsable la encargada de la fuente de financiación.
A181: 5. VISION DEL DESARROLLO REGIONAL
A182: El Plan Estratégico de Inversiones del Pacto Catatumbo constituye la hoja de ruta que orienta la consolidación de una visión compartida de desarrollo territorial, articulada con las prioridades regionales y nacionales. En este marco, el componente 5 de Visión del Desarrollo Regional integra proyectos e iniciativas estratégicas identificadas en el proceso de construcción del pacto, y consolidado en el documento denominado "listado indicativo de proyectos priorizados" el cual se constituye en una base inicial de los proyectos a tener en cuenta en la elaboración del Plan Estratégico de Inversiones. A continuación, se presenta el listado de proyectos que fueron identificados en el marco de la construcción del Pacto y que no cuentan de manera parcial o total con aportante o fuente de financiación, lo cual requerirá la gestión institucional para identificar y concretar la fuente de financiación durante la vigencia del Pacto Territorial.
A187: Eje o Línea Estratégica | C187: Nº Iniciativas | E187: =+H198 -> Valor Total Indicativo | H187: =+I198 -> Aporte Parcial Indicativo* | K187: Valor Indicativo por Gestionar Aportantes
A188: Capítulo Transversal Bari | C188: 3 | E188: =+H199+H200+H201 -> 53357500000 | H188: =+I199+I200+I201 -> 0 | K188: =+E188-H188 -> 53357500000
A189: Eje 1. Ordenamiento territorial participativo y popular | C189: 8 | E189: =+H202+H203+H204+H205+H206+H207+H208+H209 -> 2.715394088e+11 | H189: =+I202+I203+I204+I205+I206+I207+I208+I209 -> 0 | K189: =+E189-H189 -> 2.715394088e+11
A190: Eje 2. Modelo regional de Salud | C190: 1 | E190: =+H210 -> 12705000000 | H190: =+I210 -> 0 | K190: 12705000000
A191: Eje 3. Red educativa regional y universidad del Catatumbo | C191: 5 | E191: =+H211+H212+H213+H214+H215 -> 6921956543 | H191: =+I211+I212+I213+I214+I215 -> 0 | K191: 6921956543
A192: Eje 4. Transformación económica. agroindustrial y productiva para el desarrollo endógeno del Catatumbo | C192: 3 | E192: =+H216+H217+H218 -> 67929282116 | H192: =+I216 -> 0 | K192: 67929282116
A193: Eje 5. Conectividad. infraestructura vial y transporte intermodal – caminos comunitarios para la paz | C193: 9 | E193: =+H219+H220+H221+H222+H223+H224+H225+H226+H227 -> 2254931589619 | H193: =+I219+I220+I221+I222+I223+I224+I225+I226+I227 -> 0 | K193: 2254931589619
A194: Total Proyectos con Necesidad de Gestión | C194: =SUM(C188:D193) -> 29 | E194: =SUM(E188:G193) -> 2.667384737e+12 | H194: =SUM(H188:J193) -> 0 | K194: =SUM(K188:N193) -> 2.667384737e+12
A197: PROYECTOS PRIORIZADOS DE LA VISION REGIONAL DEL TERRITORIO
A198: Eje o Línea Estratégica | B198: Sector | C198: Nombre de la Iniciativa | H198: Valor Total Indicativo | I198: Aporte Parcial Indicativo* | J198: Valor Por Gestionar Fuente de Financiación | K198: Observaciones
A199: Capítulo Transversal Bari | B199: VIVIENDA. CIUDAD Y TERRITORIO | C199: Soluciones integrales de hábitat para las comunidades del resguardo Motilón Barí y del Resguardo Catalaura que tenga en cuenta sus sistemas de conocimiento propio | H199: 50000000000 | J199: =+H199-I199 -> 50000000000
A200: Capítulo Transversal Bari | B200: DEPORTE | C200: AUNAR ESFUERZOS ENTRE EL MINISTERIO DEL DEPORTE Y 6 ORGANISMOS DE ACCIÓN COMUNAL UBICADOS EN TERRITORIOS INDÍGENAS DE LOS RESGUARDOS MOTILÓN BARÍ Y CATALAURA LA GABARRA. PARA LA RECUPERACIÓN Y/O MEJORAMIENTO DE ESCENARIOS RECREO DEPORTIVOS. | H200: 900000000 | J200: 900000000
A201: Capítulo Transversal Bari | B201: CULTURA | C201: Construcción de 14 Bohíos Ancestrales del Pueblo Barí presente en los municipios de Convención. El Carmen. El Tarra. Tibú y Teorama. | H201: 2457500000 | J201: 2457500000
A202: Eje 1. Ordenamiento territorial participativo y popular | B202: INFORMACIÓN ESTADÍSTICA | C202: Actualización del Catastro Multipropósito en los 10 municipios de la región del Catatumbo | H202: 52670524198 | J202: 52670524198
A203: Eje 1. Ordenamiento territorial participativo y popular | B203: AMBIENTE Y DESARROLLO SOSTENIBLE | C203: Desarrollar acciones para el ordenamiento alrededor del agua en la ecorregión Catatumbo. en el Departamento Norte de Santander | H203: 56924495278 | J203: 56924495278
A204: Eje 1. Ordenamiento territorial participativo y popular | B204: AMBIENTE Y DESARROLLO SOSTENIBLE | C204: Implementación de un Sistema de Monitoreo y Control de la Deforestación en la Región del Catatumbo en Norte de Santander | H204: 9010050000 | J204: 9010050000
A205: Eje 1. Ordenamiento territorial participativo y popular | B205: PRESIDENCIA | C205: Construcción del sistema de alcantarillado emisario final municipio de Tibú - Incluye PTAR | H205: 33773578840 | J205: 33773578840
A206: Eje 1. Ordenamiento territorial participativo y popular | B206: VIVIENDA. CIUDAD Y TERRITORIO | C206: Construcción unidades sanitarias y sistema de tratamiento en zona rural dispersa en los municipios de El Carmen. Convención y Tibú en el departamento Norte de Santander | H206: 29407612682 | J206: 29407612682
A207: Eje 1. Ordenamiento territorial participativo y popular | B207: VIVIENDA. CIUDAD Y TERRITORIO | C207: Construcción del Sistema de Acueducto Municipio de Tibú Fase II | H207: 7184320029 | J207: 7184320029
A208: Eje 1. Ordenamiento territorial participativo y popular | B208: VIVIENDA. CIUDAD Y TERRITORIO | C208: Optimización de sistema de acueducto casco urbano municipio de La Playa. departamento Norte de Santander | H208: 6527699985 | J208: 6527699985
A209: Eje 1. Ordenamiento territorial participativo y popular | B209: PRESIDENCIA | C209: Implementación de la estrategia de contratos de conservación natural como una solución ambiental y sostenible a familias de los municipios de convención El Carmen. el Tarra y Teorama departamento Norte de Santander | H209: 7.604112778e+10 | J209: 7.604112778e+10
A210: Eje 2. Modelo regional de Salud | B210: SALUD Y PROTECCIÓN SOCIAL | C210: FORTALECIMIENTO DE SERVICIOS A LAS E.S.E. DE LA REGIÓN DEL CATATUMBO. | H210: 12705000000 | J210: 12705000000
A211: Eje 3. Red educativa regional y universidad del Catatumbo | B211: DEPORTE | C211: AUNAR ESFUERZOS ENTRE EL MINISTERIO DEL DEPORTE CON 28 ORGANISMOS DE ACCIÓN COMUNAL UBICADOS EN LOS MUNICIPIOS DE LA SUBREGIÓN CATATUMBO. PARA LA RECUPERACIÓN Y/O MEJORAMIENTO DE ESCENARIOS RECREO DEPORTIVOS. | H211: 4200000000 | J211: 4200000000
A212: Eje 3. Red educativa regional y universidad del Catatumbo | B212: DEPORTE | C212: CONSTRUCCIÓN DE CANCHA MULTIFUNCIONAL EN EL CORREGIMIENTO DE AGUAS CLARAS. MUNICIPIO DE OCAÑA. NORTE DE SANTANDER | H212: 1565522539 | J212: 1565522539
A213: Eje 3. Red educativa regional y universidad del Catatumbo | B213: DEPORTE | C213: Jornada deportiva-escolar complementaria en la Subregión del Catatumbo. | H213: 1074434004 | J213: 1074434004
A214: Eje 3. Red educativa regional y universidad del Catatumbo | B214: DEPORTE | C214: Programa Escuela de Talentos. Esta proyectada la implementación de una Escuela en Ocaña. en la modalidad deportiva de Natación Carreras. | H214: 41000000 | J214: 41000000
A215: Eje 3. Red educativa regional y universidad del Catatumbo | B215: DEPORTE | C215: Programa Escuela de Talentos. Esta proyectada la implementación de una Escuela en Tibú. en la modalidad deportiva de Atletismo. | H215: 41000000 | J215: 41000000
A216: Eje 4. Transformación económica. agroindustrial y productiva para el desarrollo endógeno del Catatumbo | B216: PRESIDENCIA | C216: PNIS RECONVERSIÓN PRODUCTIVA | H216: 36212224804 | J216: 36212224804
A217: Eje 4. Transformación económica. agroindustrial y productiva para el desarrollo endógeno del Catatumbo | B217: PRESIDENCIA | C217: Formulación, estructuración e implementación de proyectos productivos para el desarrollo económico, así como el fortalecimiento de capacidades organizacionales en el marco del eje 4 del Pacto Catatumbo. | H217: 18717057312 | J217: =+H217-I217 -> 18717057312
A218: Eje 4. Transformación económica. agroindustrial y productiva para el desarrollo endógeno del Catatumbo | B218: PRESIDENCIA | C218: Formulación, estructuración e implementación de proyectos productivos para el desarrollo económico las líneas de palma, piña, tomate, procicultura, platano, del proyecto. | H218: 13000000000 | J218: =+H218-I218 -> 13000000000
A219: Eje 5. Conectividad. infraestructura vial y transporte intermodal – caminos comunitarios para la paz | B219: TRANSPORTE | C219: Mejoramientos de las vias Terciarias Estructuradas por los Municipios de Convención. Hacari. SanCalixto. Tibu. El Carmen. Teorama. | H219: 90930235265 | J219: 90930235265
A220: Eje 5. Conectividad. infraestructura vial y transporte intermodal – caminos comunitarios para la paz | B220: TRANSPORTE | C220: San Calixto - Teorama (K0+000-K5+000) | H220: 45763354354 | J220: 45763354354
A221: Eje 5. Conectividad. infraestructura vial y transporte intermodal – caminos comunitarios para la paz | B221: TRANSPORTE | C221: Variante El Zulia | H221: 30000000000 | J221: 30000000000
A222: Eje 5. Conectividad. infraestructura vial y transporte intermodal – caminos comunitarios para la paz | B222: TRANSPORTE | C222: Anillo Vial para la Paz (Hacarí - San Calixto - El Tarra) | H222: 650000000000 | J222: 650000000000
A223: Eje 5. Conectividad. infraestructura vial y transporte intermodal – caminos comunitarios para la paz | B223: TRANSPORTE | C223: La Gran Alianza "Sardinata – Pacelli – Orú – Versalles – Puerto Las Palmas" | H223: 546000000000 | J223: 546000000000
A224: Eje 5. Conectividad. infraestructura vial y transporte intermodal – caminos comunitarios para la paz | B224: TRANSPORTE | C224: Transversal del Catatumbo (Tibú.- El Tarra 100km) | H224: 80000000000 | J224: 80000000000
A225: Eje 5. Conectividad. infraestructura vial y transporte intermodal – caminos comunitarios para la paz | B225: TRANSPORTE | C225: Programa Caminos Comunitarios de la Paz Total (CCPT) en la región del Catatumbo | H225: 276238000000 | J225: 276238000000
A226: Eje 5. Conectividad. infraestructura vial y transporte intermodal – caminos comunitarios para la paz | B226: TRANSPORTE | C226: Corredor Convención - La Mata | H226: 156000000000 | J226: 156000000000
A227: Eje 5. Conectividad. infraestructura vial y transporte intermodal – caminos comunitarios para la paz | B227: TRANSPORTE | C227: Mejoramiento. mantenimiento y atención de sitios críticos de la ruta nacional Cúcuta - Ocaña | H227: 380000000000 | J227: 380000000000
A228: Total a gestionar | C228: =+COUNTA(C199:G227) -> 29 | H228: =+SUM(H199:H227) -> 2.667384737e+12 | I228: =SUM(I193:I227) -> 0 | J228: =SUM(J199:J227) -> 2.667384737e+12
A231: 6. APROBACIÓN DEL PLAN ESTRATÉGICO DE INVERSIONES.
A233: El Plan Estratégico de Inversiones se presenta ante el Consejo Directivo para su aprobación en la Sesión n.°1 del 26 de agosto de 2025. Es importante mencionar que el Plan Estratégico de Inversiones incluye valores indicativos que podrán modificarse o actualizarse de acuerdo con la dinámica de implementación de cada Pacto Territorial, los cuales también deben contar con la aprobación del Consejo Directivo.
A238: 7. VALIDACIÓN DEL PLAN ESTRATÉGICO DE INVERSIONES.
A240: En constancia de las decisiones tomadas por el Consejo Directivo. firman:
A241: Firma: | G241: Firma:
A242: Natalia Irene Molina Posso | G242: Sandra Yaneth Tibamosca Villamarín
... 2 more rows

Sheet VIVIENDA 5 (hidden)
A2: EJES O LÍNEAS ESTRATÉGICAS | B2: Nombre de la Iniciativa | C2: Entidad Responsable | D2: Etapa del Proyecto * | E2: Fase del Proyecto * | F2: Aporte Sector | K2: Aporte Territorio | R2: Otros recursos | S2: Aportes Territorio / Otros | T2: Inversión Total | U2: Entidad Responsable ejecución proyecto | V2: Observaciones / Acciones | W2: Actividades a ejecutar | AA2: Entidad Responsable de actividad
F3: 2025 | G3: 2026 | H3: 2027 | I3: 2028 | J3: Total | K3: Propios | L3: SGR | M3: Otros | N3: 2025 | O3: 2026 | P3: 2027 | Q3: 2028 | W3: Trimestre 2 -2026 | X3: Trimestre 3 - 2026 | Y3: Trimestre 4 -2026 | Z3: Trimestre 1 -2027
A4: 1. Vivienda Digna y Agua Potable y Saneamiento Básico | B4: =+'Formato PAS'!B31 -> Conexiones- 872 conexiones intradomiciliarias para el municipio de Puerto Tejada | C4: =+'Formato PAS'!L31 -> Ministerio de Vivienda, Ciudad y Territorio | D4: Inversión | E4: Ejecución | F4: N.A. | G4: N.A. | H4: N.A. | I4: N.A. | J4: =SUM(F4:I4) -> 0 | K4: N.A. | L4: N.A. | M4: N.A. | N4: N.A. | O4: N.A. | P4: N.A. | Q4: N.A. | R4: N.A. | S4: =SUM(N4:R4) -> 0 | T4: =+J4+S4 -> 0 | U4: ENTerritorio S.A. | V4: 27/04/2026. $5.804.480.331. Ejecución. Proyecto viabilizado en el año 2023, con recursos PGN, por valor de $5.804.480.331, proyecto que es esta ejecutando en el marco del Contrato Interadministrativo de Gerencia de Proyectos No 1632 de 2023. Trimestre 3-2026: Entregar 160 conexiones intradomiciliarias. Trimestre 4-2026: Entregar 427 conexiones intradomiciliarias | W4: N.A. | X4: Entregar 160 conexiones intradomiciiarias | Y4: Entregar 427 conexiones intradomiciiarias | Z4: N.A. | AA4: ENTerritorio S.A. | AD4: Trimestre 2 -2026 Trimestre 3 – 2026 Trimestre 4 -2026 Trimestre 1 -2027
A5: 1. Vivienda Digna y Agua Potable y Saneamiento Básico | B5: =+'Formato PAS'!B32 -> Construcción unidades sanitarias con saneamiento básico para vivienda rural dispersa en el municipio de López de Micay | C5: =+'Formato PAS'!L32 -> Ministerio de Vivienda, Ciudad y Territorio | D5: Inversión | E5: Ejecución | F5: 0 | G5: 0 | H5: 0 | I5: 0 | J5: =SUM(F5:I5) -> 0 | K5: 0 | L5: 0 | M5: 0 | N5: 0 | O5: 0 | P5: 0 | Q5: 0 | R5: 0 | S5: =SUM(N5:R5) -> 0 | T5: =+J5+S5 -> 0 | U5: LÓPEZ DE MICAY (Cauca)(Obra y Suministros,Interventoría de Obra y Suministros) | V5: 27/04/2026. $6.015.778.891. Ejecución. Proyecto con recursos de la Nación de 2024 $6.015.778.891 Trimestre 2 -2026: está revisando y tramitando la solicitud de suspensión de los contratos derivados, ajustes en cantidades Trimestre 3 – 2026: prórroga contratación derivada Trimestre 4 -2026: prórroga al lconvenio de uso de recursos Trimestre 1 -2027: entrega 100% | W5: De acuerdo con el seguimiento mensual, el ejecutor (Municipio de López de Micay) está revisando y tramitando la solicitud de suspensión de los contratos derivados de obra e interventoría debido a situaciones de orden público y logísitica (la sequía del Río Naya ha generado dificultades para el transporte de materiales y personal a la zona de ejecución del proyecto). Adicionalmente, se ha manifestado la necesidad de una reformulación al proyecto atendiendo a los ajustes en cantidades de las unidades sanitarias. | X5: Se estima Realizar prorroga a la contratación derivada | Y5: se estima Realizar prorroga al convenio de uso de recursos | Z5: Se estima la terminación y entrega de las unidades sanitarias y el avance al 100% de la contratación derivada | AA5: Ejecutor y el MVCT como seguimiento al convenio
A6: 1. Vivienda Digna y Agua Potable y Saneamiento Básico | B6: =+'Formato PAS'!B33 -> Construcción Etapa II línea de conducción Río Palace y planta de tratamiento de agua potable Palace, municipio de Popayán | C6: =+'Formato PAS'!L33 -> Ministerio de Vivienda, Ciudad y Territorio | D6: Inversión | E6: Ejecución, Contratación | F6: 78679875084 | G6: 0 | H6: 0 | I6: 0 | J6: =SUM(F6:I6) -> 78679875084 | K6: 0 | L6: 12000000000 | M6: 0 | N6: 12000000000 | O6: 0 | P6: 0 | Q6: 0 | R6: 0 | S6: =SUM(N6:R6) -> 12000000000 | T6: =+J6+S6 -> 90679875084 | U6: Sociedad Acueducto y Alcantarillado de Popayán SA ESP (AAPSA) | V6: 27/04/2026. $90.679 millones. Ejecución-Contratación. En proceso de contratación derivada | W6: Actualmente el municipio se encuentra en la elaboración de los pliegos tipo para iniciar con la respectiva contratación derivada | X6: Se estima la Firma del acta de inicio de la contratación derivada | Y6: Ejecución del proyecto | Z6: Ejecución del proyecto | AA6: Ejecutor y el MVCT como seguimiento al convenio
A7: 1. Vivienda Digna y Agua Potable y Saneamiento Básico | B7: =+'Formato PAS'!B34 -> Mejoramiento de 320 viviendas en El Tambo, López de Micay y Timbiquí | C7: =+'Formato PAS'!L34 -> Ministerio de Vivienda, Ciudad y Territorio | D7: Inversión | E7: Ejecución | F7: 1235598000 | G7: 1106571960 | J7: =SUM(F7:I7) -> 2342169960 | K7: 0 | L7: 0 | M7: 0 | N7: 0 | O7: 0 | P7: 0 | Q7: 0 | R7: 0 | S7: =SUM(N7:R7) -> 0 | T7: =+J7+S7 -> 2342169960 | U7: MVCT-FONVIVIENDA | V7: 27/04/2026. $8.469.031.617. Ejecución. -El Tambo: 213 cupos en zona (90) urbana y (123) rural con una inversión de $5.187 millones de pesos. - Lopez de Micay: 71 cupos en zona urbana (4) y (67) rural con una inversión de $1.799 millones de pesos. - Timbiquí: 90 cupos, en zona urbana (78) y (12) rural con una inversión de $1.483 millones de pesos. -Total de cupos asignados: 374 cupos (172 urbanos y 202 rurales) -Del total de cupos se han asignado 243 subsidios, de los cuales 211 ya estan terminados. -Se tiene en gestión 163 mejoramientos de vivienda. Trimestre 2 -2026: Alistamiento - convocatorias, acuerdos sociales Trimestre 3 – 2026: proyecto arquitectonico - convocatorias, acuerdos sociales Trimestre 4 -2026: ejecución - convocatorias, acuerdos sociales Trimestre 1 -2027: ejecución acuerdos sociales El valor total de una inversión asciende a la suma de $8.469.031.617 MCTE, de los cuales se encuentran distibuidos en las vigencias así: 2022-2023: $4.054.661.657 MCTE 2024:$2.072.200.000 MCTE 2025: $1.235.598.000 MCTE 2026: $1.106.571.960 MCTE | W7: convocatorias: Proyecto Arquitectónico y alistamiento de los cupos faltantes El Tambo: 178 cupos López de Micay: 90 cupos Timbiquí: 70 cupos Acuerdos sociales: Alistamiento: El Tambo: 9 en (ANUC) López de Micay: 19 (NARP) Timbiquí: 12 (NARP) | X7: Convocatorias: Ejecución - Proyecto arquitectonico El Tambo: 178 López de Micay: 90 Timbiquí: 70 Acuerdos sociales: Proyecto arquitectonico El Tambo: 9 (ANUC) López de Micay: 19 en (NARP) Timbiquí: 12 en (NARP) | Y7: Convocatorias: Ejecución El Tambo: 178 López de Micay: 90 Timbiquí: 70 Acuerdos sociales: Ejecución El Tambo: 9 en (ANUC) López de Micay: 19 en (NARP) Timbiquí: 12 en (NARP) | Z7: Acuerdos sociales: Ejecución El Tambo: 9 en (ANUC) López de Micay: 19 en (NARP) Timbiquí: 12 en (NARP) | AA7: MVCT - DIVIS
A8: 1. Vivienda Digna y Agua Potable y Saneamiento Básico | B8: =+'Formato PAS'!B35 -> Mejoramiento de vivienda urbanos y rurales (2.228 urbanos y 2.101 rurales) para el Departamento del Cauca – varios municipios. | C8: Ministerio de Vivienda, Ciudad y Territorio /Municipios Cauca | D8: Inversión | E8: Ejecución | F8: 11513575080 | G8: 16255749495 | J8: =SUM(F8:I8) -> 27769324575 | K8: 0 | L8: 0 | M8: 0 | N8: 0 | O8: 0 | P8: 0 | Q8: 0 | S8: =SUM(N8:R8) -> 0 | T8: 27769324575 | U8: MVCT-FONVIVIENDA | V8: 27/04/2026. $112.609.694.200. Ejecución. Se tienen financiados 4.906 cupos de mejoramientos de los cuales (2.361 son urbanos y 2.545 rurales) y cuya inversión es de $112.610 millones Se tienen asignados 2.075 (urbanos 699 y 1.376 rurales) subsidios de los cuales 1.262 ( 361 urbanos y 901 rurales) se encuentran terminados. Trimestre 2 -2026: Alistamiento - convocatorias, acuerdos sociales Trimestre 3 – 2026: Proyecto arquitectonico - convocatorias502, acuerdos sociales Trimestre 4 -2026: ejecición convocatorias, acuerdos sociales Trimestre 1 -2027: ejecición acuerdos sociales El valor total de una inversión asciende a la suma de $112.609.694.200 MCTE, de los cuales se encuentran distibuidos en las vigencias así: 2022-2023: $30.997.878.105 MCTE 2024:$53.842.491.520 MCTE 2025: $11.513.575.080 MCTE 2026: $16.255.749.495 MCTE | W8: Convocatorias: 502 Cupos convocatorias regionales: Alistamiento (cupos pendientes) - Proyecto arquitectonico Convocatorias desiertas: Alistamiento - Proyecto arquitectonico Acuerdos sociales: 844 cupos Alistamiento | X8: Convocatorias: 502 Cupos convocatorias regionales: Proyecto arquitectonico - Ejecución Convocatorias desiertas: Proyecto arquitectonico - Ejecución Acuerdos sociales: 844 cupos Proyecto arquitectonico | Y8: Convocatorias: 502 Cupos convocatorias regionales: Ejecución Convocatorias desiertas: Ejecución Acuerdos sociales: 844 cupos Ejecución | Z8: Acuerdos sociales: 844 cupos Ejecución | AA8: MVCT - DIVIS
F9: =SUM(F4:F8) -> 91429048164 | G9: 17362321455 | H9: 0 | I9: 0 | J9: =SUM(J4:J8) -> 108791369619 | K9: =SUM(K4:K8) -> 0 | L9: 12000000000 | M9: 0 | N9: 12000000000 | O9: 0 | P9: 0 | Q9: 0 | R9: 0 | S9: =SUM(S4:S8) -> 12000000000 | T9: =SUM(T4:T8) -> 120791369619

Sheet IGUALDAD-FTSP 4 (hidden)
A2: EJES O LÍNEAS ESTRATÉGICAS | B2: Nombre de la Iniciativa | C2: Entidad Responsable | D2: Etapa del Proyecto * | E2: Fase del Proyecto * | F2: Aporte Sector | K2: Aporte Territorio | R2: Otros recursos | S2: Aportes Territorio / Otros | T2: Inversión Total | U2: Entidad Responsable ejecución proyecto | V2: Observaciones / Acciones | W2: Actividades a ejecutar | AA2: Entidad Responsable de actividad
F3: 2025 | G3: 2026 | H3: 2027 | I3: 2028 | J3: Total | K3: Propios | L3: SGR | M3: Otros | N3: 2025 | O3: 2026 | P3: 2027 | Q3: 2028 | W3: Trimestre 2 -2026 | X3: Trimestre 3 - 2026 | Y3: Trimestre 4 -2026 | Z3: Trimestre 1 -2027
A4: 1. Vivienda Digna y Agua Potable y Saneamiento Básico | B4: Estudios y diseños plan maestro de saneamiento Guapi | C4: Fondo Todos Somos PAZcífico | D4: Sin Información clara | E4: Sin Información clara | J4: =SUM(F4:I4) -> 0 | S4: =SUM(N4:R4) -> 0 | T4: =+J4+S4 -> 0 | V4: 0 No Iniciado, 0El contrato de interventoría se suscribirá con recursos propios de quien?(rendimientos financieros).
A5: 1. Vivienda Digna y Agua Potable y Saneamiento Básico | B5: Acueducto de Timbiquí | C5: Fondo Todos Somos PAZcífico | D5: Inversión | E5: Ejecución | J5: 0 | S5: 0 | T5: 0 | V5: 22013060490 En Ejecución, En ejecución de obra0,3867El contrato de redes de distribución se encuentra actualmente en proceso de liquidación. El nuevo proceso de contratación estará sujeto a la disponibilidad de recursos. Por su parte, el contrato correspondiente a las obras de captación, cuya finalización está prevista para abril, no permitirá culminar la totalidad del proyecto. Por tanto, se contempla una etapa adicional para su terminación, la cual dependerá de la obtención de una fuente de financiación diferente.
A6: 1. Vivienda Digna y Agua Potable y Saneamiento Básico | B6: Acueducto Guapi etapa I captación y redes | C6: Fondo Todos Somos PAZcífico | D6: Inversión | E6: Ejecución | J6: 0 | S6: 0 | T6: 0 | V6: 23854437790,7 En Ejecución, En ejecución de obra0,0223PRINCIPALES DIFICULTADES O CUELLOS DE BOTELLA IDENTIFICADOS: 1. Liberación aspectos pendientes de contratos anteriores que han derivados en acciones de corrección y atención de PQRs. Como son temas prediales, técnicos, sociales y ambientales. 2. Traslado de equipos y herramientas al municipio de Guapi. 3. Consecución de mano de obra calificada y no calificada. Por escasez, seguridad y minería 4. Aprobaciones de contratos y pólizas. 5. Consecución de materiales locales. 6. Gestión de anticipo. 7. Permisos locales. 8. Escasez de información base sobre el estado de infraestructura asociada, redes de acueducto, alcantarillado y gas, canalizaciones.. ACCIONES CORRECTIVAS O DE GESTIÓN ADELANTADAS PARA SU SUPERACIÓN1. Revisiones y mesas en sitio 2. Presencialidad de las personas con capacidad de definición o articulación. 3. Acompañamiento a la gestión de los elementos clave del contrato
A7: 1. Vivienda Digna y Agua Potable y Saneamiento Básico | B7: Consultoría para cierre del botadero a cielo abierto el Olímpico | C7: Fondo Todos Somos PAZcífico | D7: Sin Información clara | E7: Sin Información clara | J7: 0 | S7: 0 | T7: 0 | V7: 0 No Iniciado, 0,2Reporta una condición que no hace parte del estado del proyecto (No Iniciado). Aclarar con la entidad.
F8: =SUM(F4:F7) -> 0 | G8: 0 | H8: 0 | I8: 0 | J8: =SUM(J4:J7) -> 0 | K8: =SUM(K4:K7) -> 0 | L8: 0 | M8: 0 | N8: 0 | O8: 0 | P8: 0 | Q8: 0 | R8: 0 | S8: 0 | T8: 0

Sheet EDUCACIÓN 9 (hidden)
A2: EJES O LÍNEAS ESTRATÉGICAS | B2: Nombre de la Iniciativa | C2: Entidad Responsable | D2: Etapa del Proyecto * | E2: Fase del Proyecto * | H2: Aporte Sector | O2: Aporte Territorio | V2: Otros recursos | W2: Aportes Territorio / Otros | X2: Inversión Total | Y2: Entidad Responsable ejecución proyecto | Z2: Observaciones / Acciones | AA2: Actividades a ejecutar | AE2: Entidad Responsable de actividad
F3: 2023 | G3: 2024 | H3: 2025 | I3: 2026 | J3: 2027 | K3: 2028 | L3: 2029 | M3: 2030 | N3: Total | O3: Propios | P3: SGR | Q3: Otros | R3: 2025 | S3: 2026 | T3: 2027 | U3: 2028 | AA3: Trimestre 2 -2026 | AB3: Trimestre 3 - 2026 | AC3: Trimestre 4 -2026 | AD3: Trimestre 1 -2027 | AG3: CONPES DIE
A4: 2. Educación Integral | B4: Universidad en Guapi (Estudios y diseños Y OBRA) | C4: Ministerio de Educación Nacional | D4: Inversión | E4: Contratación | F4: 30000000000 | G4: 0 | H4: 0 | I4: 0 | J4: 0 | K4: 0 | L4: 0 | M4: 0 | N4: =SUM(F4:M4) -> 30000000000 | O4: 0 | P4: 0 | Q4: 0 | R4: 0 | S4: 0 | T4: 0 | U4: 0 | V4: 0 | W4: =SUM(R4:V4) -> 0 | X4: =+N4+W4 -> 30000000000 | Y4: Operador: Financiera de Desarrollo Territorial S.A. – FINDETER | Z4: $30.000 millones. En Proceso de Selección. Proyecto llave en mano (Estudios, diseños, licencias, permisos y obra). Se ha adelantado el proceso de selección de contratista e interventoría. | AE4: =+Y4 -> Operador: Financiera de Desarrollo Territorial S.A. – FINDETER
A5: 2. Educación Integral | B5: Estudios y diseños Universidad del Macizo | C5: Ministerio de Educación Nacional | D5: Preinversión | E5: Fase III | G5: 400000000 | N5: =SUM(F5:M5) -> 400000000 | W5: 0 | X5: 400000000 | Z5: $400 millones. Fase III. A la fecha se cuenta con el representante legal provisiona y transitorio de la Universidad, se radicó el proyecto de ley en septiembre de 2025 en el congreso de la república y se esta a la espera de la radicación de los documentos del estudio de factibilidad en el SACES con el fin de que sean revisados y aprobados, también de la programación de los debates del proyecto de Ley | AE5: Comité promotor de la Universidad (representante legal transitorio) | AG5: 4181 DE 2026
A6: 2. Educación Integral | B6: Programa de Tránsito Inmediato a la Educación Superior (PTIES) en la Institución Educativa Técnica Miguel Zapata | C6: Ministerio de Educación Nacional | D6: Operación | E6: Ejecución | H6: 505598500 | I6: 649950000 | J6: Por definir | K6: Por definir | N6: 1155548500 | O6: No aplica | P6: No aplica | Q6: No aplica | R6: No aplica | S6: No aplica | T6: No aplica | U6: No aplica | V6: No aplica | W6: 0 | X6: 1155548500 | Y6: Ministerio de Educación Nacional | Z6: $1.155 millones. Ejecución. Para el segundo trimestre se tiene prevista el diagnostico de las necesidades de nivelación, posterior al las pruebas diagnosticas que se realizaron en el mes de marzo y abril. De igual manera se estará trabajando en talleres con los padres y madres de familia y la comunidad y con las IEM beneficiada para el trabajo articulado. | AE6: El Ministerio de Educación Nacional contrato como Institución de Educación Superior - IES, implementadora a la Institutción Universitaria Digital de Antioqua - IUDigital
A7: 2. Educación Integral | B7: Culminación de obra Infraestructura física sede norte de la Universidad del Cauca en Santander de Quilichao | C7: Ministerio de Educación Nacional | D7: Inversión | E7: Fase III | F7: 0 | G7: 0 | H7: 2999215832 | I7: 0 | J7: 0 | K7: 0 | L7: 0 | M7: 0 | N7: 2999215832 | O7: 0 | P7: 0 | Q7: 0 | R7: 0 | S7: 0 | T7: 0 | U7: 0 | V7: 0 | W7: 0 | X7: 2999215832 | Y7: Universidad del Cauca | Z7: $2.999 millones. Fase III. Aperturar Contratación de obra. Proyecto finciado mediante transferencia directa a la IES No.: 018129 del 27 de agosto de 2025. Cuenta con la licencia de construcción, actualmente el área administrativa se encuentra realizando ajustes a los términos de referencia para procesos de selección del contratista de obra e interventoría. | AE7: Universidad del Cauca
A8: 2. Educación Integral | B8: Implementación Colegio Universidad en Guapi por UNICAUCA , adecuaciones de las IE La Normal y la IE San José | C8: Ministerio de Educación Nacional | D8: Inversión | E8: Ejecución | F8: 11158186367 | G8: 0 | H8: 0 | I8: 0 | J8: 0 | K8: 0 | L8: 0 | M8: 0 | N8: 11158186367 | O8: 0 | P8: 0 | Q8: 0 | R8: 0 | S8: 0 | T8: 0 | U8: 0 | V8: 0 | W8: =SUM(R8:V8) -> 0 | X8: =+N8+W8 -> 11158186367 | Y8: Financiera de Desarrollo Territorial S.A. – FINDETER | Z8: $11.158 millones. Ejecución. Proyectos desarrollado mediante la modalidad de intervención Educación Superior en tu Colegio, tiene un avance de obra del 13,19%, en curso adecuaciones en bloque No 6, 20, 11, 13, Cancha, BQ nuevo, 10 y 8. Agosto 2026. | AE8: Financiera de Desarrollo Territorial S.A. – FINDETER
A9: 2. Educación Integral | B9: Estudios, Diseños y Construcción Para La Ampliación E Implementación De Infraestructura Física Universitaria Proyectada En El Predio Belalcázar | C9: Ministerio de Educación Nacional | D9: Inversión | E9: Fase III | F9: 0 | G9: 0 | H9: 0 | I9: 5902698532 | J9: 4.793470528e+10 | K9: 0 | L9: 0 | M9: 0 | N9: 5.383740382e+10 | O9: 0 | P9: 0 | Q9: 0 | R9: 0 | S9: 0 | T9: 0 | U9: 0 | V9: 0 | W9: 0 | X9: 5.383740382e+10 | Y9: Operador designado por el MEN para Vigencias Futuras (Por definir) | Z9: $53.837 millones. Fase III. Proyecto incluido en el CONPES 4181. Proyecto en actualización por parte de la IES, del componente metodológico, con acompañamiento del MEN. | AE9: Operador designado por el MEN para Vigencias Futuras (Por definir)
A10: 2. Educación Integral | B10: Proyecto de infraestructura para el Nodo Suárez de la Universidad del Valle | C10: Ministerio de Educación Nacional | D10: Inversión | E10: Ejecución | F10: 52000000000 | G10: 0 | H10: 0 | I10: 0 | J10: 0 | K10: 0 | L10: 0 | M10: 0 | N10: 52000000000 | O10: 0 | P10: 0 | Q10: 0 | R10: 0 | S10: 0 | T10: 0 | U10: 0 | V10: 0 | W10: 0 | X10: 52000000000 | Y10: Universidad del Valle | Z10: $52.000 millones. Ejecución. Proyecto finciado mediante transferencia directa a la IES No.: 025392 del 21 de diciembre de 2023. Con el recurso asignado, la IES realizó la adquisición del predio de CELSIA por $16.929 millones, el resto del recursos se invierte en adecuaciones y consultorías sobre las instalaciones adquiridas a CELSIA. Se estima un avance del 48% para el componente de adecuaciones según informe remitido por la IES. El MEN solicitó ajustes en la información presentada. | AE10: Universidad del Valle
A11: 2. Educación Integral | B11: Estudios, Diseños y Construcción Para La Ampliación E Implementación De Infraestructura Física Universitaria Proyectada En La Sede Norte U Cauca S. Quilichao | C11: Ministerio de Educación Nacional | D11: Inversión | E11: Fase III | F11: 0 | G11: 0 | H11: 0 | I11: 0 | J11: 1611932848 | K11: 1702018733 | L11: 2.137519089e+10 | M11: 2.157181427e+10 | N11: 4.626095674e+10 | O11: 0 | P11: 0 | Q11: 0 | R11: 0 | S11: 0 | T11: 0 | U11: 0 | V11: 0 | W11: 0 | X11: 4.626095674e+10 | Y11: Operador designado por el MEN para Vigencias Futuras (Por definir) | Z11: $46.260 millones. Fase III. Proyecto incluido en el CONPES 4181. Proyecto en actualización por parte de la IES, del componente metodológico, con acompañamiento del MEN. | AE11: Operador designado por el MEN para Vigencias Futuras (Por definir)
A12: 2. Educación Integral | B12: Instalación de ambientes modulares en predio de la Normal Superior. Institución de Educación Superior del Cauca. | C12: Ministerio de Educación Nacional | D12: N/A | E12: N/A | F12: 0 | G12: 0 | H12: 0 | I12: 0 | J12: 0 | K12: 0 | L12: 0 | M12: 0 | N12: 0 | O12: 0 | P12: 0 | Q12: 0 | R12: 0 | S12: 0 | T12: 0 | U12: 0 | V12: 0 | W12: 0 | X12: 0 | Y12: Operador: Financiera de Desarrollo Territorial S.A. – FINDETER | Z12: La intervención de la Normal hace parte integral del desarrollo para la Eduucación Superior en el municipio de Guapi, que se relaciona en el proyecto indicado en la fila 3 de este archivo - En Universidad en Guapi (Estudios y diseños Y OBRA) | AE12: N/A | AH12: Modificación al PEI
A13: 2. Educación Integral | B13: (VDR) Implementación de educación básica, secundaria y media en 24 establecimientos en Argelia, El Tambo y Balboa* | C13: Ministerio de Educación Nacional | N13: 0 | W13: =SUM(R13:V13) -> 0 | X13: =+N13+W13 -> 0
H14: =SUM(H4:H13) -> 3504814332 | I14: 6552648532 | J14: 4.954663813e+10 | K14: 1702018733 | N14: =SUM(N4:N13) -> 1.978113113e+11 | O14: =SUM(O4:O13) -> 0 | P14: 0 | Q14: 0 | R14: 0 | S14: 0 | T14: 0 | U14: 0 | V14: 0 | W14: 0 | X14: 1.978113113e+11

Sheet ICBF 1 (hidden)
A2: EJES O LÍNEAS ESTRATÉGICAS | B2: Nombre de la Iniciativa | C2: Entidad Responsable | D2: Etapa del Proyecto * | E2: Fase del Proyecto * | F2: Aporte Sector | K2: Aporte Territorio | R2: Otros recursos | S2: Aportes Territorio / Otros | T2: Inversión Total | U2: Entidad Responsable ejecución proyecto | V2: Observaciones / Acciones | W2: Actividades a ejecutar | AA2: Entidad Responsable de actividad
F3: 2025 | G3: 2026 | H3: 2027 | I3: 2028 | J3: Total | K3: Propios | L3: SGR | M3: Otros | N3: 2025 | O3: 2026 | P3: 2027 | Q3: 2028 | W3: Trimestre 2 -2026 | X3: Trimestre 3 - 2026 | Y3: Trimestre 4 -2026 | Z3: Trimestre 1 -2027
A4: 2. Educación Integral | B4: Prevención y atención a la desnutrición a través de la adquisición de 9,7 toneladas de harina de chontaduro a la Asociación de Productores de Cacao y Chontaduro del Tambo (APACH) | C4: ICBF - Instituto Colombiano de Binestar Familiar | D4: Inversión | E4: Terminado | F4: 218578800 | G4: N/A | H4: N/A | I4: N/A | J4: =SUM(F4:I4) -> 218578800 | K4: N/A | L4: N/A | M4: N/A | N4: N/A | O4: N/A | P4: N/A | Q4: N/A | R4: N/A | S4: =SUM(N4:R4) -> 0 | T4: =+J4+S4 -> 218578800 | U4: Instituto Colombiano de Bienestar Familiar | V4: 22/04/2026 ICBF: $218 millones. En relación con el avance del compromiso, se informa que, con corte al 30 de septiembre de 2025, se logró la compra de 11.800 kilogramos de harina de chontaduro, equivalentes a 11,8 toneladas. De este total, 10.490 kilogramos (10,5 toneladas) fueron adquiridos al proveedor Asociación de Productores Agropecuarios de Cacao y Chontaduro de El Tambo, Cauca – APACH. Con el volumen total adquirido, el Instituto alcanzó el 100 % de la meta de compra. En el marco del contrato 01014512022 para la fabricación de Alimentos de Alto Valor Nutricional (AAVN). Para el periodo restante de 2025, está pendiente la confirmación de la inversión. | W4: Actualización información con soportes , Finalización, liquidación, | AA4: Instituto Colombiano de Bienestar Familiar
T5: =SUM(T4) -> 218578800

Sheet TICs 4 (hidden)
A2: EJES O LÍNEAS ESTRATÉGICAS | B2: Nombre de la Iniciativa | C2: Entidad Responsable | D2: Etapa del Proyecto * | E2: Fase del Proyecto * | F2: Aporte Sector | N2: Aporte Territorio | U2: Otros recursos | V2: Aportes Territorio / Otros | W2: Inversión Total | X2: Entidad Responsable ejecución proyecto | Y2: Observaciones / Acciones | Z2: Actividades a ejecutar | AD2: Entidad Responsable de actividad
F3: 2025 | G3: 2026 | H3: 2027 | I3: 2028 | J3: 2029 | K3: 2030 | L3: 2031 | M3: Total | N3: Propios | O3: SGR | P3: Otros | Q3: 2025 | R3: 2026 | S3: 2027 | T3: 2028 | Z3: Trimestre 2 -2026 | AA3: Trimestre 3 - 2026 | AB3: Trimestre 4 -2026 | AC3: Trimestre 1 -2027
A4: 2. Educación Integral | B4: Implementación de zonas/centros digitales de acceso público gratuito en Piendamó | C4: Ministerio de Tecnologías de la Información y las Comunicaciones+ | D4: Operación | E4: Ejecución | F4: 137591773.7 | G4: 147706119.2 | H4: 158563242.7 | I4: 170429665.8 | M4: =SUM(F4:L4) -> 614290801.3 | V4: =SUM(Q4:U4) -> 0 | W4: =+M4+V4 -> 614290801.3 | X4: MINTIC | Y4: 21/04/2026. $4.232.259.802 millones corresponden a estimaciones. Ejecución-Operación. Avance físico 100% instalación. Proyecto Centros Digitales. Inversion Estimada unicamente para los años 2025 a 2028. Programa con Vigencias Futuras. Meta: 26 Centros en Piendamó, actualmente instalados. Se encuentra en operación hasta 2031. | Z4: Reporte de avance de ejecución con soportes | AA4: Reporte de avance de ejecución con soportes | AB4: Reporte de avance de ejecución con soportes | AC4: Reporte de avance de ejecución con soportes | AD4: MINTIC
A5: Línea estratégica 3. Paz y Reconciliación | B5: Zonas Comunitarias para la Paz (soluciones de Internet comunitario WiFi a escuelas rurales oficiales que carecen de conectividad, en municipios cobijados por los Programas de Desarrollo con Enfoque Territorial – PDET) | C5: Ministerio de Tecnologías de la Información y las Comunicaciones | D5: Operación | E5: Ejecución | F5: 4173756611 | G5: 2504253967 | M5: =SUM(F5:L5) -> 6678010578 | V5: =SUM(Q5:U5) -> 0 | W5: =+M5+V5 -> 6678010578 | X5: MINTIC | Y5: 21/04/2026. $6.678 millones corresponden a estimaciones. Ejecución-Operación. Proyecto Zonas Comunitarias para la Paz. Inversion Estimada unicamente para los años 2025 a 2026. Meta: 159 zonas comunitarias para la PAZ (Cauca) y estan instaladas y en operación 158. Programa Finaliza ejecucion en julio de 2026. | Z5: Reporte de avance de ejecución con soportes | AA5: Reporte de avance de ejecución con soportes | AB5: Reporte de avance de ejecución con soportes | AC5: Finalización, liquidación, | AD5: MINTIC
A6: Línea estratégica 4. Desarrollo Rural y Transformación Productiva | B6: Servicio de asistencia técnica para proyectos TIC | C6: Ministerio de Tecnologías de la Información y las Comunicaciones | D6: Operación | E6: Ejecución | F6: =671000000+3877745000 -> 4548745000 | G6: =1671000000+3767000000 -> 5438000000 | M6: 9986745000 | V6: =SUM(Q6:U6) -> 0 | W6: =+M6+V6 -> 9986745000 | X6: MINTIC | Y6: 21/04/2026. $9.986 millones convenios. Ejecución-Operación. Convenios establecidos con el CRIC 1480-2024 y 1636-2024, se consideran adiciones para cada convenio en 2026, las cuales estan consideradas en la inversion estimada para ese año. Finaliza ejecucion en 2026. | Z6: Reporte de avance de ejecución con soportes, Adición de recursos sujeto a decisiones de la Entidad | AA6: Reporte de avance de ejecución con soportes | AB6: Reporte de avance de ejecución con soportes | AC6: Finalización, liquidación, | AD6: MINTIC
A7: Línea estratégica 4. Desarrollo Rural y Transformación Productiva | B7: Centros digitales para conectividad | C7: Ministerio de Tecnologías de la Información y las Comunicaciones | D7: Operación | E7: Ejecución | F7: =+'[1]Nuevos Proyectos MPIO'!$AU$422 -> 275183547.3 | G7: =+'[1]Nuevos Proyectos MPIO'!$AV$422 -> 295412238.3 | H7: =+'[1]Nuevos Proyectos MPIO'!$AW$422 -> 317126485.3 | I7: =+'[1]Nuevos Proyectos MPIO'!$AX$422 -> 340859331.5 | M7: 1228581603 | V7: 0 | W7: 1228581603 | X7: MINTIC | Y7: 21/04/2026. $3.255.584.463 millones corresponden a estimaciones. Ejecución-Operación. Proyecto Centros Digitales. Inversion Estimada unicamente para el municipio de Lopez de Micay en los años 2025 a 2028. Meta: 15 centros digitales, y ya se encuentran instalados. Programa con Vigencias Futuras. Se encuentra en operación hasta 2031. | Z7: Reporte de avance de ejecución con soportes | AA7: Reporte de avance de ejecución con soportes | AB7: Reporte de avance de ejecución con soportes | AC7: Reporte de avance de ejecución con soportes | AD7: MINTIC
F8: =SUM(F4:F7) -> 9135276932 | G8: 8385372324 | H8: 475689728 | I8: 511288997.3 | M8: 1.850762798e+10 | N8: 0 | O8: 0 | P8: 0 | Q8: 0 | R8: 0 | S8: 0 | T8: 0 | U8: 0 | V8: 0 | W8: 1.850762798e+10

Sheet JAMUNDÍ 1+ (hidden)
A2: EJES O LÍNEAS ESTRATÉGICAS | B2: Nombre de la Iniciativa | C2: Entidad Responsable | D2: Etapa del Proyecto * | E2: Fase del Proyecto * | F2: Aporte Sector | K2: Aporte Territorio | R2: Otros recursos | S2: Aportes Territorio / Otros | T2: Inversión Total | U2: Entidad Responsable ejecución proyecto | V2: Observaciones / Acciones | W2: Actividades a ejecutar | AA2: Entidad Responsable de actividad
F3: 2025 | G3: 2026 | H3: 2027 | I3: 2028 | J3: Total | K3: Propios | L3: SGR | M3: Otros | N3: 2025 | O3: 2026 | P3: 2027 | Q3: 2028 | W3: Trimestre 2 -2026 | X3: Trimestre 3 - 2026 | Y3: Trimestre 4 -2026 | Z3: Trimestre 1 -2027
A4: 2. Educación Integral | B4: Convocatoria de Mejoramiento de Infraestructura eductiva 2021 | C4: Departamento Nacional de Planeación (FRPT) / Municipio de Jamundí | D4: Preinversión | J4: =SUM(F4:I4) -> 0 | S4: =SUM(N4:R4) -> 0 | T4: =+J4+S4 -> 0 | U4: Municipio de Jamundí | V4: Presentar proyecto y avanzar con concepto favorable del MEN para presentar al DNP para solicitud de Cofinanciación.
A5: Línea estratégica 5. Salud | B5: (VDR) Ampliación de la capacidad instalada empresa social del estado hospital piloto del municipio de Jamundí | C5: Alcaldía Jamundí | D5: Preinversión | J5: 0 | S5: 0 | T5: 0
F6: =SUM(F4:F5) -> 0 | G6: 0 | H6: 0 | I6: 0 | J6: =SUM(J4:J5) -> 0 | K6: =SUM(K4:K5) -> 0 | L6: 0 | M6: 0 | N6: 0 | O6: 0 | P6: 0 | Q6: 0 | R6: 0 | S6: 0 | T6: 0

Sheet DSCI 3 (hidden)
A2: Línea estratégica | B2: Nombre de la Iniciativa | C2: Entidad Responsable | D2: Etapa del Proyecto * | E2: Fase del Proyecto * | F2: Aporte Sector | K2: Aporte Territorio | R2: Otros recursos | S2: Aportes Territorio / Otros | T2: Inversión Total | U2: Entidad Responsable ejecución proyecto | V2: Observaciones / Acciones | W2: Actividades a ejecutar | AA2: Entidad Responsable de actividad
F3: 2025 | G3: 2026 | H3: 2027 | I3: 2028 | J3: Total | K3: Propios | L3: SGR | M3: Otros | N3: 2025 | O3: 2026 | P3: 2027 | Q3: 2028 | W3: Trimestre 2 -2026 | X3: Trimestre 3 - 2026 | Y3: Trimestre 4 -2026 | Z3: Trimestre 1 -2027 | AC3: Avance
A4: Línea estratégica 3. Paz y Reconciliación | B4: Programa de sustitución de economías ilegalizadas en el departamento del cauca- RENACEMOS | C4: Dirección Sustitución de Cultivos Ilícitos - Fondo Programas Especiales para la Paz (Fondo Paz) | D4: Inversión | E4: Ejecución | F4: =20018447865+4836923868 -> 24855371733 | J4: =SUM(F4:I4) -> 24855371733 | R4: 8686791882 | S4: =SUM(N4:R4) -> 8686791882 | T4: =+J4+S4 -> 33542163615 | U4: Dirección de sustitución de cultivos de uso ilícito - UNODC - FINDETER | V4: 23/04/2026. Ejecución. $33.542 millones. Socios implementadores : Naciones Unidas contra las drogas y el delito ($8.686.791.882 ) y FINDETER ($4.836.923.868-DAPRE) $28 mil millones UNODC - Avance 69.16% a diciembre 2025. Finaliza ejecución en agosto de 2026. $4 mil millones - FINDETER - Avance alrededor 40%. Finaliza en junio de 2025 posible prórroga hasta agosto 2026. | W4: Reporte de avance de ejecución con soportes, Prorroga, | X4: Reporte de avance de ejecución con soportes | Y4: Finalización, liquidación, | AA4: DSCI
A5: Línea estratégica 4. Desarrollo Rural y Transformación Productiva | B5: Transformación ecológica y productiva de zonas degradadas por cultivos de uso ilícito en áreas de especial importancia ambiental en los departamentos de Nariño, Cauca y Chocó (Sistemas agroforestales de cacao). | C5: Dirección Sustitución de Cultivos Ilícitos - Fondo Programas Especiales para la Paz (Fondo Paz) | D5: Inversión | E5: Ejecución | F5: 9945101499 | J5: =SUM(F5:I5) -> 9945101499 | S5: 0 | T5: =+J5+S5 -> 9945101499 | U5: Dirección de sustitución de cultivos de uso ilícito - UNODC | V5: 23/04/2026. Ejecución. $9.945 millones. Socios implementadores: Naciones unidas contra las frogas y el delito - UNODC. Inicio enero 2026 hasta (24 meses) Finaliza en 13 enero de 2028. | W5: Reporte de avance de ejecución con soportes | X5: Reporte de avance de ejecución con soportes | Y5: Reporte de avance de ejecución con soportes | Z5: Reporte de avance de ejecución con soportes | AA5: DSCI
F6: =SUM(F4:F5) -> 34800473232 | G6: 0 | H6: 0 | I6: 0 | J6: 34800473232 | K6: 0 | L6: 0 | M6: 0 | N6: 0 | O6: 0 | P6: 0 | Q6: 0 | R6: 8686791882 | S6: 8686791882 | T6: 43487265114

Sheet INTERIOR 2 (hidden)
A2: Línea estratégica | B2: Nombre de la Iniciativa | C2: Entidad Responsable | D2: Etapa del Proyecto * | E2: Fase del Proyecto * | H2: Aporte Sector | M2: Aporte Territorio | T2: Otros recursos | U2: Aportes Territorio / Otros | V2: Inversión Total | W2: Entidad Responsable ejecución proyecto | X2: Observaciones / Acciones | Y2: Actividades a ejecutar | AC2: Entidad Responsable de actividad
F3: 2023 | G3: 2024 | H3: 2025 | I3: 2026 | J3: 2027 | K3: 2028 | L3: Total | M3: Propios | N3: SGR | O3: Otros | P3: 2025 | Q3: 2026 | R3: 2027 | S3: 2028 | Y3: Trimestre 2 -2026 | Z3: Trimestre 3 - 2026 | AA3: Trimestre 4 -2026 | AB3: Trimestre 1 -2027
A4: Línea estratégica 3. Paz y Reconciliación | B4: Construcción de Alcaldía de Argelia | C4: Ministerio del Interior | D4: Inversión | E4: Ejecución | F4: =4634357449 -> 4634357449 | G4: 2985973832 | L4: =SUM(F4:K4) -> 7620331281 | M4: 817827785 | U4: =SUM(M4:T4) -> 817827785 | V4: =+L4+U4 -> 8438159066 | W4: Municipio de Argelia | X4: Ejecución. Avance 56,83%. Convenio $8.438.159.066; Finaliza 31 de julio de 2026.
A5: Línea estratégica 3. Paz y Reconciliación | B5: Construcción de Alcaldía de Guapi | C5: Ministerio del Interior | D5: Inversión | E5: Ejecución | G5: 1689945353 | H5: 1689945353 | I5: =1689945353*2 -> 3379890706 | L5: =SUM(F5:K5) -> 6759781412 | M5: =1194353703+1283652994 -> 2478006697 | U5: =SUM(M5:T5) -> 2478006697 | V5: =+L5+U5 -> 9237788109 | W5: Municipio de Guapi | X5: Ejecución. Avance 21,61%. Convenio $9.237.788.109; Finaliza 30 de abril de 2026.
H6: =SUM(H4:H5) -> 1689945353 | I6: =SUM(I4:I5) -> 3379890706 | J6: 0 | K6: 0 | L6: =SUM(L4:L5) -> 14380112693 | M6: =SUM(M4:M5) -> 3295834482 | N6: 0 | O6: 0 | P6: 0 | Q6: 0 | R6: 0 | S6: 0 | T6: 0 | U6: 3295834482 | V6: 17675947175

Sheet CULTURA 3 (hidden)
A2: Línea estratégica | B2: Nombre de la Iniciativa | C2: Entidad Responsable | D2: Etapa del Proyecto * | E2: Fase del Proyecto * | G2: Aporte Sector | L2: Aporte Territorio | S2: Otros recursos | T2: Aportes Territorio / Otros | U2: Inversión Total | V2: Entidad Responsable ejecución proyecto | W2: Observaciones / Acciones | X2: Actividades a ejecutar | AB2: Entidad Responsable de actividad
F3: 2024 | G3: 2025 | H3: 2026 | I3: 2027 | J3: 2028 | K3: Total | L3: Propios | M3: SGR | N3: Otros | O3: 2025 | P3: 2026 | Q3: 2027 | R3: 2028 | X3: Trimestre 2 -2026 | Y3: Trimestre 3 - 2026 | Z3: Trimestre 4 -2026 | AA3: Trimestre 1 -2027
A4: Línea estratégica 3. Paz y Reconciliación | B4: Construcción casa de saberes municipio de Guachené Cauca. | C4: Ministerio de Cultura, las Artes y los Saberes | D4: Inversión | E4: Ejecución | F4: 0 | G4: =1143256185+143730558 -> 1286986743 | H4: 0 | I4: 0 | J4: 0 | K4: =SUM(F4:J4) -> 1286986743 | L4: 0 | M4: 0 | N4: 0 | O4: 0 | P4: 0 | Q4: 0 | R4: 0 | S4: 0 | T4: =SUM(O4:S4) -> 0 | U4: =+K4+T4 -> 1286986743 | V4: Ministerio de las culturas, las artes y los saberes. | W4: MinCultura 20/04/2026: Actualmente se están llevando a cabo actividades de ejecución de la obra. No obstante, es importante señalar que debido a temas de orden público en la zona del Cauca el avance de este proyecto ha tenido dificultades en el cumplimiento del cronograma. Por esa razón el 29 de diciembre se suscribió prórroga que extiendió el plazo de terminación de las obras hasta el 3/06/2026. Actualmente el avance de obra se encuentra en 6% y se proyecta que el segundo y tercer trimestre se continue con el proceso de ejecución del proyecto. El contrato tiene previsto la finalización en el segundo trimestre de 2026, pero se prevé la ampliación del mismo al tercer trimestre de este mismo año Valores comprometidos | X4: Reporte de avance de ejecución con soportes | Y4: Reporte de avance de ejecución con soportes | Z4: Reporte de avance de ejecución con soportes | AB4: Ministerio de las Culturas, las Artes y los Saberes
A5: Línea estratégica 3. Paz y Reconciliación | B5: Adecuación y dotación de la Casa de la Cultura de Guapi | C5: Ministerio de Cultura, las Artes y los Saberes | D5: Inversión | E5: Ejecución | F5: =723515223 -> 723515223 | G5: 91528466.13 | H5: 0 | I5: 0 | J5: 0 | K5: =SUM(F5:J5) -> 815043689.1 | L5: 137820827 | O5: 137820827 | P5: 0 | Q5: 0 | R5: 0 | T5: =SUM(O5:S5) -> 137820827 | U5: =+K5+T5 -> 952864516.1 | V5: Ministerio de las culturas, las artes y los saberes. | W5: Comprometidos y obligados/desembolso $recursos del municipio MinCultura 20/04/2026: El 16 de diciembre de 2024 se emitió la resolución No. 1587 mediante la cual se autoriza el aporte a la escuela taller de Popayán para la realización de proceso de formación en construcción especializada para el mantenimiento e intervenciones menores y adecuaciones de espacios culturales, en la cual se incluyó el mejoramiento de la casa de cultura. Las actividades prácticas en la casa de cultura se iniciaron el 1 de octubre de 2025 y actualmente ese proceso cuenta con un avance del 50%. La ejecución de actividades debió suspenderse pues era necesario emitir resolución de redistribución de recursos y la entidad territorial debía enviar el certificado de estabilidad estructural de esta infraestructura. Finalmente el certificado fue enviado el 10 de abril de 2026, actualmente ese documento se encuentra en validación por parte del Grupo de Infraestructura Cultural de este Ministerio. Es importante señalar que los recursos de la resolución corresponden a la vigencia 2024. Se suscribió contrato de dotación por un valor de $91.528.466,13 y esta entrega se realizó en diciembre de 2025. Los recursos dispuesto por la alcaldía corresponden a reforzamiento estructural de la edificación, compromiso adquirido en diciembre de 2024 el cual se ejecutó entre mayo y septiembre de 2025. Las actividades proyectadas para continuar con este proyecto son: la revisión del certificado de estabilidad enviado por la alcaldía del municipio, emitir la resolución de redistribución de recursos y levantar la suspensión de actividades para continuar con el proceso de formación adelantado por la Escuela Taller. Esto ocurrirá entre el segundo y tercer trimestre del año 2026. Adicionalmente se espera continuar con la obra en el tercer y cuarto trimestre de este mismo año. Finalización 3er trimestre. 2026 | X5: Tramites para la suscripción de convenios | Y5: Reporte de avance de ejecución con soportes | AB5: Ministerio de las Culturas, las Artes y los Saberes
A6: Línea estratégica 3. Paz y Reconciliación | B6: Construcción casa de saberes municipio de Villa Rica, Cauca | C6: Ministerio de Cultura, las Artes y los Saberes | D6: Inversión | E6: Ejecución | F6: 0 | G6: =1135252799+143730558 -> 1278983357 | H6: 0 | I6: 0 | J6: 0 | K6: =SUM(F6:J6) -> 1278983357 | L6: 0 | M6: 0 | N6: 0 | O6: 0 | P6: 0 | Q6: 0 | R6: 0 | S6: 0 | T6: 0 | U6: 1278983357 | V6: Ministerio de las culturas, las artes y los saberes. | W6: MinCultura 20/04/2026: Actualmente se están llevando a cabo actividades de ejecución de la obra. No obstante, es importante señalar que debido a temas de orden público en la zona del Cauca el avance de este proyecto ha tenido dificultades en el cumplimiento del cronograma. Por esa razón el 29 de diciembre se suscribió prórroga que extiendió el plazo de terminación de las obras hasta el 3/06/2026. Actualmente el avance de obra se encuentra en 8% y se prevé que en el segundo y tercer trimestre se continue con el proceso de ejecución del proyecto. El contrato tiene previsto finalizarse en el segundo trimestre, pero se prevé la ampliación del mismo al tercer trimestre de 2026 Valores comprometidos | X6: Reporte de avance de ejecución con soportes | Y6: Reporte de avance de ejecución con soportes | Z6: Reporte de avance de ejecución con soportes | AB6: Ministerio de las Culturas, las Artes y los Saberes
G7: =SUM(G4:G6) -> 2657498566 | H7: =SUM(H4:H6) -> 0 | I7: 0 | J7: 0 | K7: 3381013789 | L7: =SUM(L4:L6) -> 137820827 | M7: 0 | N7: 0 | O7: 137820827 | P7: 0 | Q7: 0 | R7: 0 | S7: 0 | T7: 137820827 | U7: 3518834616

Sheet PRESIDENCIA (hidden)
A2: Línea estratégica | B2: Nombre de la Iniciativa | C2: Entidad Responsable | D2: Etapa del Proyecto * | E2: Fase del Proyecto * | F2: Aporte Sector | K2: Aporte Territorio | R2: Otros recursos | S2: Aportes Territorio / Otros | T2: Inversión Total | U2: Entidad Responsable ejecución proyecto | V2: Observaciones / Acciones | W2: Actividades a ejecutar | AA2: Entidad Responsable de actividad
F3: 2025 | G3: 2026 | H3: 2027 | I3: 2028 | J3: Total | K3: Propios | L3: SGR | M3: Otros | N3: 2025 | O3: 2026 | P3: 2027 | Q3: 2028 | W3: Trimestre 2 -2026 | X3: Trimestre 3 - 2026 | Y3: Trimestre 4 -2026 | Z3: Trimestre 1 -2027
A4: Línea estratégica 3. Paz y Reconciliación | B4: Trece incentivos para la paz territorial . Fortalecer organizaciones comunales, étnicas, sociales, productivas, comunitarias, de jóvenes y de mujeres, entre otras, que estén legalmente constituidas, mediante una estrategia de incentivos para la implementación de proyectos de ejecución comunitaria. | C4: Fondo de Programas Especiales para la Paz | D4: Inversión | E4: Ejecución | J4: =SUM(F4:I4) -> 0 | S4: =SUM(N4:R4) -> 0 | T4: =+J4+S4 -> 0 | V4: 751941570 En Ejecución, En ejecución de obra0,35El presupuesto total comprometido corresponde a la implementación integral de la Estrategia de Incentivos Comunitarios para la Paz Total en los tres municipios del departamento del Cauca donde se desarrolla la intervención. Este monto incluye: - El valor de los incentivos entregados a cada organización beneficiaria. - Los costos del equipo técnico encargado de la implementación, el seguimiento y el fortalecimiento de la estrategia en el departamento. -La cuota de administración y gerencia a cargo del socio implementador. De esta manera, y en consonancia con la modalidad de administración de recursos, se reporta al aliado el 100% de la ejecución financiera comprometida. Posteriormente, dicho aliado realiza los desembolsos conforme avanza la ejecución programada.
A5: Línea estratégica 3. Paz y Reconciliación | B5: Complementación de estudios y diseños y la adecuación y mejoramiento del centro de desarrollo infantil - CDI en granito de oro | C5: Fondo de Programas Especiales para la Paz | D5: Inversión | E5: Terminado | J5: =SUM(F5:I5) -> 0 | S5: =SUM(N5:R5) -> 0 | T5: =+J5+S5 -> 0 | V5: 1698933967 Terminado, Ejecutado1Proyecto finalizado, con financiación del Fondo de Programas Especiales para la Paz bajo Recursos Entregados en Administración en el marco del convenio FP-558-2021 suscrito con FINDETER.
F6: =SUM(F4:F5) -> 0 | G6: 0 | H6: 0 | I6: 0 | J6: =SUM(J4:J5) -> 0 | K6: =SUM(K4:K5) -> 0 | L6: 0 | M6: 0 | N6: 0 | O6: 0 | P6: 0 | Q6: 0 | R6: 0 | S6: 0 | T6: 0

Sheet ART 1 (hidden)
A2: Línea estratégica | B2: Nombre de la Iniciativa | C2: Entidad Responsable | D2: Etapa del Proyecto * | E2: Fase del Proyecto * | F2: Aporte Sector | K2: Aporte Territorio | R2: Otros recursos | S2: Aportes Territorio / Otros | T2: Inversión Total | U2: Entidad Responsable ejecución proyecto | V2: Observaciones / Acciones | W2: Actividades a ejecutar | AA2: Entidad Responsable de actividad
F3: 2025 | G3: 2026 | H3: 2027 | I3: 2028 | J3: Total | K3: Propios | L3: SGR | M3: Otros | N3: 2025 | O3: 2026 | P3: 2027 | Q3: 2028 | W3: Trimestre 2 -2026 | X3: Trimestre 3 - 2026 | Y3: Trimestre 4 -2026 | Z3: Trimestre 1 -2027
A4: Línea estratégica 4. Desarrollo Rural y Transformación Productiva | B4: Proyecto Integrador de la Cadena de Coco: Programa Integral para el fortalecimiento de la cadena del coco (Coco+Pacífico, departamentos Cauca y Nariño) Fortalecer los cultivos de coco en la costa pacífica nariñense, mediante el trampeo para control del picudo, erradicación de cultivos y resiembra, estudio de mercado y acompañamiento técnico. | C4: Agencia de Renovación del Territorio / Comunidad | D4: Inversión | E4: Ejecución | F4: 1582573107 | G4: 6191575156 | J4: =SUM(F4:I4) -> 7774148263 | K4: =+N4+O4 -> 4530240000 | N4: 793600000 | O4: 3736640000 | S4: =SUM(N4:R4) -> 4530240000 | T4: =+J4+S4 -> 1.230438826e+10 | U4: FEDECOCO | V4: 21/04/2026. $12.304 Ejecución. El proyecto tiene actividad principal en el departamento del Cauca y cierre financiero para las actividades en Nariño, que serán financiadas por el MADR. 10/03/2026. A cargo de la ART por un valor de $14.530.240 que ya está en ejecución. Correspondiente a Cauca que está a cargo de la ART. Municipios: Guapi, Timbiquí y López de Micay (Departamento del Cauca). En ejecución a través del Convenio 2288-2024 suscrito entre el FCP y FeDECOCO, con un aporte en Cauca como se reportó en esta matriz, tiene una ejecución técnica del 35,78% según informe del mes de enero de 2026. | W4: Reporte de avance de ejecución con soportes, Actualización información con soportes | X4: Reporte de avance de ejecución con soportes | Y4: Reporte de avance de ejecución con soportes | AA4: ART/FEDECOCO
T5: =+T4 -> 1.230438826e+10

Sheet ADR 8+ (hidden)
A2: Línea estratégica | B2: Nombre de la Iniciativa | C2: Entidad Responsable | D2: Etapa del Proyecto * | E2: Fase del Proyecto * | F2: Aporte Sector | K2: Aporte Territorio | R2: Otros recursos | S2: Aportes Territorio / Otros | T2: Inversión Total | U2: Entidad Responsable ejecución proyecto | V2: Observaciones / Acciones | W2: Actividades a ejecutar | AA2: Entidad Responsable de actividad
F3: 2025 | G3: 2026 | H3: 2027 | I3: 2028 | J3: Total | K3: Propios | L3: SGR | M3: Otros | N3: 2025 | O3: 2026 | P3: 2027 | Q3: 2028 | W3: Trimestre 2 -2026 | X3: Trimestre 3 - 2026 | Y3: Trimestre 4 -2026 | Z3: Trimestre 1 -2027
A4: Línea estratégica 4. Desarrollo Rural y Transformación Productiva | B4: Modernización de 1 distrito de riego de pequeña escala del municipio de Balboa en el Departamento de Cauca | C4: Agencia de Desarrollo Rural - Fondo Nacional de Adecuación de Tierras | D4: Preinversión | E4: Fase I | J4: 278302508 | S4: 0 | T4: =+J4+S4 -> 278302508 | U4: AGENCIA DE DESARROLLO RURAL | V4: $289 millones. El proyecto de modernización del Distrito de Adecuación de Tierras de Pequeña Escala El Vijal, ubicado en el municipio de Balboa (Cauca), será nuevamente postulado ante el Comité Técnico del Fondo Nacional de Adecuación de Tierras (FONAT), incorporando las subsanaciones y ajustes técnicos y documentales requeridos, así como la indexación presupuestal ($289.601.590). Lo anterior, con el propósito de avanzar en su priorización, financiación y posterior ejecución en la vigencia 2026. | W4: Presentación al FONAT una vez se realice Comité Técnico de Priorización | X4: Viabilidad y Posible expedición de resolución de financiación del proyecto por parte de la Secretaría Técnica del FONAT | Y4: Posible contratación de obra e interventoría para la modernización del distrito El Vijal | Z4: Posible ejecución | AA4: AGENCIA DE DESARROLLO RURAL
A5: Línea estratégica 4. Desarrollo Rural y Transformación Productiva | B5: Fortalecimiento de las capacidades productivas de café, mora, ganadería de leche y gallinas ponedoras de acuerdo con los usos y costumbres del pueblo Nasa en el municipio de Páez. | C5: Agencia de Desarrollo Rural / Comunidad | D5: Inversión | E5: Ejecución | J5: 3743625098 | S5: 0 | T5: =+J5+S5 -> 3743625098 | U5: AGENCIA DE DESARROLLO RURAL | V5: Resolución de cofinanciación 201 suscrita el 28 de mayo de 2025 | AA5: AGENCIA DE DESARROLLO RURAL
A6: Línea estratégica 4. Desarrollo Rural y Transformación Productiva | B6: Fortalecimiento de las actividades económicas propias de las comunidades indígenas del oriente caucano de las familias pertenecientes a la Asociación De Autoridades Indígenas Del Oriente Caucano Totoguampa en los municipios de Silvia, Totoró, Piendamó y Morales | C6: Agencia de Desarrollo Rural / Comunidades | D6: Inversión | E6: Ejecución | F6: 4626371046 | J6: =SUM(F6:I6) -> 4626371046 | M6: 2273240968 | O6: 2273240968 | S6: =+N6+O6+P6+Q6+R6 -> 2273240968 | T6: 6899612014 | U6: AGENCIA DE DESARROLLO RURAL | V6: $6.899 millones. Ejecución. Mediante la Resolución No. 200 de 2025 de la Agencia de Desarrollo Rural (ADR), el proyecto se encuentra actualmente en fase de ejecución y tiene como propósito fortalecer las actividades productivas de las comunidades indígenas, así como mejorar la productividad de sus sistemas económicos propios. En este marco, se proyecta beneficiar a distintos grupos de productores a través de varias líneas productivas, a saber: 71 productores en café, 14 en fresa, 23 en cultivos tradicionales (maíz y frijol), 40 en producción ovina, 78 en aves de postura y 62 en cerdos de ceba, además del establecimiento de una granja avícola biosegura. Estas intervenciones impactarán a familias adscritas a la Asociación de Autoridades Indígenas del Oriente Caucano Totoguampa. Cada una de estas líneas contempla la provisión de insumos, materiales, equipos, el mejoramiento de infraestructura productiva y el acompañamiento técnico especializado, con el fin de garantizar la sostenibilidad y eficiencia de los procesos productivos. En cuanto al avance del proyecto, ya se han adjudicado los contratos correspondientes a la prestación del servicio de asistencia técnica y, con corte al 30 de marzo de 2026, se realizó la adjudicación de los términos de referencia para el suministro de materiales destinados al mejoramiento de infraestructura. Lo anterior evidencia un progreso concreto en la fase operativa y el avance efectivo en la implementación del proyecto. Si quieres, puedo ajustarlo aún más al formato que pide SINERGIA (más corto, con enfoque en avance vs. meta y sin tanto contexto). | W6: Ejecución | X6: Ejecución | Y6: Ejecución | Z6: Ejecución y cierre | AA6: AGENCIA DE DESARROLLO RURAL
A7: Línea estratégica 4. Desarrollo Rural y Transformación Productiva | B7: Impulsar la productividad y competitividad del grano de café, mediante la producción primaria y el beneficio como una apuesta al mejoramiento de la calidad del grano, atendiendo la integralidad técnica, organizacional, ambiental y comercial de los caficultores de la ANUC en el departamento de Cauca | C7: Agencia de Desarrollo Rural / Comunidades | D7: Preinversión | E7: Fase I | J7: 12000000000 | M7: 3000000000 | S7: 3000000000 | T7: =+J7+S7 -> 15000000000 | U7: AGENCIA DE DESARROLLO RURAL | V7: El proyecto registra avances significativos en la etapa de estructuración, evidenciando un desarrollo sólido en los componentes técnico-productivo, jurídico y ambiental, en los cuales se han consolidado documentos base, paquetes técnicos y procesos de validación de la información. No obstante, el proceso continúa en fase de ajuste y consolidación en los componentes asociativo, comercial y técnico-financiero, los cuales requieren mayor articulación y cierre para completar la estructuración integral del proyecto. En este sentido, se evidencia un proceso activo de construcción técnica orientado a garantizar su viabilidad y futura implementación. | W7: Finalizar la estructuración | X7: Revisión de disponibilidad de recursos para cofinanciación | Y7: Posible ejecución | Z7: Posible ejecución | AA7: AGENCIA DE DESARROLLO RURAL
A8: Línea estratégica 4. Desarrollo Rural y Transformación Productiva | B8: Modernización de 2 distrito de riego de pequeña escala del municipio de Totoró y Mercaderes en el Departamento de Cauca | C8: Agencia de Desarrollo Rural | D8: Preinversión | E8: Fase I | J8: 923792530 | S8: 0 | T8: =+J8+S8 -> 923792530 | U8: AGENCIA DE DESARROLLO RURAL | V8: $923.millones. Fase I. Los proyectos de modernización de los distritos de riego de pequeña escala Chuscales (Totoró) y Mercaderes (Mercaderes) serán nuevamente postulados ante el Comité Técnico del Fondo Nacional de Adecuación de Tierras (FONAT), incorporando las subsanaciones y ajustes técnicos y documentales requeridos, así como la indexación presupuestal ($923.792.530). Lo anterior, con el fin de avanzar en su eventual priorización, financiación y ejecución durante la vigencia 2026. Cabe mencionar que no es posible informar la duración de la ejecución del proyecto, dado que, aunque la ADR ya realizó las subsanaciones correspondientes y el proyecto se encuentra listo para ser presentado nuevamente ante el Fondo Nacional de Adecuación de Tierras (FONAT) para su priorización y financiación, no es posible avanzar hasta tanto no se lleve a cabo el respectivo comité. Una vez este se realice, se podrá proceder con la priorización, financiación y contratación de la obra y su interventoría. | W8: Presentación al FONAT una vez se realice Comité Técnico de Priorización | X8: Posible expedición de resoluciones de financiación de los proyectos por parte de la Secretaría Técnica del FONAT | Y8: Posible contratación de obra e interventoría para la modernización de los distritos Chuscales y Mercaderes | Z8: Posible inicio de actividades y ejecución | AA8: AGENCIA DE DESARROLLO RURAL
A9: Línea estratégica 4. Desarrollo Rural y Transformación Productiva | B9: Fortalecimiento de las capacidades productivas, organizacionales y comerciales de los productores de café, cítricos y cacao; en comunidades campesinas, afro e indígenas ubicados en los municipios de Miranda, Padilla, Puerto Tejada, Corinto, Caloto, Guachené, Villa Rica, Santander de Quilichao, Buenos Aires, Suarez y Caldono, en el Norte del Departamento del Cauca- BP 3694 | C9: Agencia de Desarrollo Rural / Comunidad | D9: Preinversión | E9: Fase I | J9: 14998603924 | M9: 3765713040 | S9: 3765713040 | T9: =+J9+S9 -> 18764316964 | U9: AGENCIA DE DESARROLLO RURAL | V9: El proyecto, actualmente en fase de estructuración – etapa de factibilidad (Banco de Proyectos No. 3694), está orientado al fortalecimiento de las capacidades productivas, organizacionales y comerciales de productores de café, cítricos y cacao en municipios del norte del departamento del Cauca. A la fecha, el proyecto se encuentra en proceso de evaluación y calificación por parte de los equipos técnicos a nivel central, registrando avances significativos en los componentes técnico, comercial y asociativo, los cuales se encuentran consolidados. No obstante, el proceso se encuentra condicionado al cierre del componente jurídico, particularmente en lo relacionado con la verificación de potenciales beneficiarios y el cumplimiento de requisitos habilitantes, así como en la atención de subsanaciones puntuales de carácter formal. | W9: Finalizar la estructuración, Viabilidad | X9: Revisión de disponibilidad de recursos para cofinanciación | Y9: Posible ejecución | Z9: Posible ejecución | AA9: AGENCIA DE DESARROLLO RURAL
A10: Línea estratégica 4. Desarrollo Rural y Transformación Productiva | B10: Fortalecimiento de las capacidades productivas a través de bancos de maquinaria para los resguardos Huellas y Páez de Corinto en los predios de Liberación Emperatriz y García Arriba en los municipios de Caloto y Corinto en el marco de la Reforma Rural Integral | C10: Agencia de Desarrollo Rural / Comunidad | D10: Preinversión | E10: Fase I | J10: 5000000000 | M10: 1250000000 | S10: 1250000000 | T10: 6250000000 | U10: AGENCIA DE DESARROLLO RURAL | V10: Proyecto en estructuración en fase de factibilidad (número de Banco de Proyectos - BP No. 3693). Se está a la espera de disponibilidad de recursos para cofinanciación. | W10: Avanzar en la estructuración | X10: Finalizar estructuración, Viabilidad | Y10: Revisión disponibilidad de recursos para cofinanciación | Z10: Ejecución | AA10: AGENCIA DE DESARROLLO RURAL
A11: Línea estratégica 4. Desarrollo Rural y Transformación Productiva | B11: Fortalecimiento a la capacidad productiva agroindustrial de la empresa procesadora y comercializadora de café tostado y molido “Nasa Café” orientada a mejorar la economía en el Territorio Indígena de la Parcialidad de Huellas Caloto - Norte del Cauca, con el fortalecimiento a caficultores, construcción y dotación de infraestructura y comercialización | C11: Agencia de Desarrollo Rural / Comunidad | D11: Preinversión | E11: Fase I | J11: 1450000000 | M11: 500000000 | S11: 500000000 | T11: =+J11+S11 -> 1950000000 | U11: AGENCIA DE DESARROLLO RURAL | V11: El proyecto cuenta con concepto jurídico favorable tanto para la organización como para el predio. En el componente ambiental, se avanza en la gestión del uso del suelo del predio “La Emperatriz”, mediante la radicación de la justificación técnica de viabilidad ante la Secretaría de Planeación Municipal de Caloto, encontrándose actualmente en espera de respuesta. De manera paralela, el equipo técnico de la ADR, en articulación con el resguardo, adelanta el rediseño de la planta de proceso, con el propósito de optimizar la infraestructura y garantizar la eficiencia del componente agroindustrial, en coherencia con las necesidades del proyecto. | W11: Avanzar en la estructuración | X11: Finalizar estructuración, Viabilidad | Y11: Revisión disponibilidad de recursos para cofinanciación | Z11: Ejecución | AA11: AGENCIA DE DESARROLLO RURAL
A12: Línea estratégica 4. Desarrollo Rural y Transformación Productiva | B12: (VDR)BP 3713 Impulsar la productividad y competitividad del grano de café, mediante la producción primaria y el beneficio como una apuesta al mejoramiento de la calidad del grano, atendiendo la integralidad técnica, organizacional, ambiental y comercial de los caficultores de la ANUC en el departamento de Cauca, los municipios beneficiarios serian: Argelia, Cajibío, Caldono, El Tambo, La Sierra, Morales, Popayán, Puracé, Rosas, Sotará, Sucre y Timbio. | C12: Agencia de Desarrollo Rural /Comunidades | D12: Inversión | E12: Ejecución / Alistamiento | J12: 15509023746 | M12: 13006394116 | S12: 13006394116 | T12: 28515417862 | U12: AGENCIA DE DESARROLLO RURAL | V12: BP 3713 - Resolución 101 de 2026. 31/03/2026: El PIDAR se encuentra en fase de alistamiento. El proyecto contempla el fortalecimiento de 24 organizaciones cafeteras en 11 municipios del Cauca mediante la dotación de equipos y maquinaria para centros de acopio y laboratorios de calidad, incluyendo kits para análisis físico y organoléptico del café, equipos de catación y métodos de extracción; además, incorpora la entrega de 9 vehículos de carga y la instalación de sistemas de energía renovable fotovoltaica para mejorar la agro logística. Igualmente, incluye la dotación de equipos y maquinaria para 4 plantas de procesamiento de café tostado y molido, con equipos como tostadoras, máquinas de espresso y otros implementos para tecnificar la transformación; la construcción de 3 centros de acopio y bodegas de café y la adecuación de 4 infraestructuras de mediana complejidad para almacenamiento, análisis y comercialización de café pergamino seco; y, de forma complementaria, asistencia técnica y formación integral. Se notificó por parte de la Dirección de Acceso a Activos Productivos a la Unidad Técnica Territorial #9 el 9 de marzo de 2026. Se cuenta con Certificado de Disponibilidad de Recursos desde el fondo Colombia en Paz. En cuanto al proyecto: Fortalecimiento de la caficultura especial, sostenible, regenerativa y diversa, con articulación social e incluyente en el departamento del Cauca. $28.515.417.862 $15.509.023.746 ADR excusivos para esta resolución. | W12: Etapa de Alistamiento | X12: Inicio de estructuración, evaluacion y adjudicación de TDR | Y12: Etapa Contractual | Z12: Etapa Contractual y Entregas | AA12: AGENCIA DE DESARROLLO RURAL
F13: =SUM(F4:F12) -> 4626371046 | G13: 0 | H13: 0 | I13: 0 | J13: =SUM(J4:J12) -> 58529718852 | K13: =SUM(K4:K12) -> 0 | L13: 0 | M13: 23795348124 | N13: =SUM(N4:N12) -> 0 | O13: =SUM(O4:O12) -> 2273240968 | P13: =SUM(P4:P12) -> 0 | Q13: =SUM(Q4:Q12) -> 0 | R13: =SUM(R4:R12) -> 0 | S13: =SUM(S4:S12) -> 23795348124 | T13: =SUM(T4:T12) -> 82325066976
V16: Hace parte de los 8 proyectos asociados al Proyecto Integrador de Café en VDR, sube ya que cuenta con $ y viabilidad. Proyecto Integrador de Café "BP 3713 - Resolución 101 de 2025, ADR correo Febrero 2026. Con la anotación de que esta resolución esta todavía en proceso de notificación y tiempo de recursos si los hubiere de acuerdo con al articulo decimo segundo de la misma resolución. En cuanto al proyecto: Impulsar la productividad y competitividad del grano de café, mediante la producción primaria y el beneficio como una apuesta al mejoramiento de la calidad del grano, atendiendo la integralidad técnica, organizacional, ambiental y comercial de los caficultores de la ANUC en el departamento de Cauca, los municipios beneficiarios serian: Argelia, Cajibío, Caldono, El Tambo, La Sierra, Morales, Popayán, Puracé, Rosas, Sotará, Sucre y Timbio. $28.515.417.862 $15.509.023.746 ADR - $13.006.394.116 - COOPERATIVA DEL SUR DEL CAUCA “COSURCA, en nombre propio y en representación de las otras 23 organizaciones beneficiarias.

Sheet MCIT 7 (hidden)
A2: Línea estratégica | B2: Nombre de la Iniciativa | C2: Entidad Responsable | D2: Etapa del Proyecto * | E2: Fase del Proyecto * | H2: Aporte Sector | M2: Aporte Territorio | U2: Otros recursos | V2: Aportes Territorio / Otros | W2: Inversión Total | X2: Entidad Responsable ejecución proyecto | Y2: Observaciones / Acciones | Z2: Actividades a ejecutar | AD2: Entidad Responsable de actividad
F3: 2023 | G3: 2024 | H3: 2025 | I3: 2026 | J3: 2027 | K3: 2028 | L3: Total | M3: Propios | N3: SGR | O3: Otros | P3: 2023 | Q3: 2025 | R3: 2026 | S3: 2027 | T3: 2028 | Z3: Trimestre 2 -2026 | AA3: Trimestre 3 - 2026 | AB3: Trimestre 4 -2026 | AC3: Trimestre 1 -2027
A4: Línea estratégica 4. Desarrollo Rural y Transformación Productiva | B4: Fomento del sistema económico propio e intercultural que promueve la conservación cultural, la sostenibilidad productiva y el fortalecimiento de los espacios de vida y el buen vivir de las familias indígenas del CRIC desde el turismo indígena. | C4: FONTUR | D4: Inversión | E4: Ejecución | L4: =SUM(F4:K4) -> 0 | V4: =SUM(Q4:U4) -> 0 | W4: =+L4+V4 -> 0 | X4: Ministerio de Comercio, Industria y Turismo - FONTUR | Y4: 28/04/2026. Ejecución. Este proyecto corresponde a al fase II del proyecto por valor de $1.090 millones. Trimestre II se realizarán capacitaciones y 4 intercambios. De la fase II de este proyecto, avanzar con los compromisos con las comunidades. | Z4: Reporte de avance de ejecución con soportes | AA4: Reporte de avance de ejecución con soportes | AB4: Reporte de avance de ejecución con soportes | AC4: Reporte de avance de ejecución con soportes | AD4: Ministerio de Comercio, Industria y Turismo - FONTUR
A5: Línea estratégica 4. Desarrollo Rural y Transformación Productiva | B5: Centros de Reindustrialización - ZASCAS | C5: Ministerio de Comercio, Industria y Turismo | D5: Inversión | E5: Ejecución | F5: 3016949670 | L5: 3016949670 | M5: N/A | N5: N/A | O5: N/A | Q5: N/A | R5: N/A | S5: N/A | T5: N/A | U5: N/A | V5: =SUM(Q5:U5) -> 0 | W5: =+L5+V5 -> 3016949670 | X5: Ministerio de Comercio, Industria y Turismo a través de su patrimonio autónomo iNNpulsa Colombia | Y5: 22/04/2026. $3.016 comprometidos. Ejecución-Operación. Avance técnico 53% Financiero 39% febrero 2026. Este programa se ejecuta mediante un aporte realizado en la vigencia 2023 por valor de $3.016.949.670 ejecutado por el PA; este recurso permite mantener el programa en operación hasta el 2026. Su financiación para vigencias posteriores esta en función de los procesos de discusión de los anteproyectos de presupuesto nacional para esas vigencias. No corresponde a un proyecto si no a un programa del Ministerio/Misionalidad. | Z5: Reporte de avance de ejecución con soportes | AA5: Reporte de avance de ejecución con soportes | AB5: Reporte de avance de ejecución con soportes | AC5: Finalización, liquidación, | AD5: Ministerio de Comercio, Industria y Turismo a través de su patrimonio autónomo iNNpulsa Colombia
A6: Línea estratégica 4. Desarrollo Rural y Transformación Productiva | B6: Empretur - Litoral Pacífico | C6: Ministerio de Comercio, Industria y Turismo - FONTUR | D6: Operación | E6: Ejecución | F6: 2265810107 | H6: 0 | I6: 0 | J6: 0 | K6: 0 | L6: 2265810107 | M6: N/A | N6: N/A | O6: N/A | Q6: N/A | R6: N/A | S6: N/A | T6: N/A | U6: N/A | V6: =SUM(Q6:U6) -> 0 | W6: =+L6+V6 -> 2265810107 | X6: Ministerio de Comercio, Industria y Turismo a través de su patrimonio autónomo iNNpulsa Colombia | Y6: 22/04/2026. $2.265 millones comprometido. Ejecución-Operación. Avance tecnico 67% y 35% financiero diciembre 2025. Este programa se ejecuta mediante un aporte realizado en la vigencia 2023 por valor de $2.265.810.107; este recurso permite mantener el programa en operación hasta el 2026. Su financiación para vigencias posteriores esta en función de los procesos de discusión de los anteproyectos de presupuesto nacional para esas vigencias. No corresponde a un proyecto si no a un programa del Ministerio/Misionalidad. | Z6: Reporte de avance de ejecución con soportes | AA6: Reporte de avance de ejecución con soportes | AB6: Reporte de avance de ejecución con soportes | AC6: Finalización, liquidación, | AD6: Ministerio de Comercio, Industria y Turismo a través de su patrimonio autónomo iNNpulsa Colombia
A7: Línea estratégica 4. Desarrollo Rural y Transformación Productiva | B7: Estudios, diseños complementarios y construccion de obras de infraestructura turística para el PNN - Gorgona | C7: Ministerio de Comercio, Industria y Turismo - FONTUR | D7: Inversión | E7: Ejecución | H7: 8179834165 | I7: 646017680 | J7: 0 | K7: 0 | L7: 8825851845 | M7: N/A | N7: N/A | O7: N/A | Q7: N/A | R7: N/A | S7: N/A | T7: N/A | U7: N/A | V7: =SUM(Q7:U7) -> 0 | W7: =+L7+V7 -> 8825851845 | X7: Ministerio de Comercio, Industria y Turismo a través de su patrimonio autónomo Fontur | Y7: 22/04/2026. $8.825 millones comprometidos. Ejecución, avance financiero 5%. De acuerdo con el Convenio de Cooperación FNTC-422-2024 la contratación derivada esta a Cargo de Patrimonio Natural Fondo para la Biodiversidad y áreas protegidas. Finaliza ejecución en diciembre 2026. | Z7: Reporte de avance de ejecución con soportes | AA7: Reporte de avance de ejecución con soportes | AB7: Reporte de avance de ejecución con soportes | AC7: Reporte de avance de ejecución con soportes | AD7: Ministerio de Comercio, Industria y Turismo a través de su patrimonio autónomo Fontur
A8: Línea estratégica 4. Desarrollo Rural y Transformación Productiva | B8: Construcción del CentroTematico Chicao en el municipio de Santander de Quilichao, Departamento del Cauca | C8: Ministerio de Comercio, Industria y Turismo | D8: Inversión | E8: Ejecución | H8: 13174195226 | I8: 0 | J8: 0 | K8: 0 | L8: 13174195226 | M8: N/A | N8: N/A | O8: N/A | Q8: 1944070000 | R8: 0 | S8: 0 | T8: 0 | U8: 0 | V8: =SUM(P8:U8) -> 1944070000 | W8: 15118265226 | X8: Ministerio de Comercio, Industria y Turismo a través de su patrimonio autónomo Fontur | Y8: 22/04/2026. $15.118 millones (Fontur y Municipio de Sandanter de Quilichao). Por Iniciar Actividades. A la fecha esta pendiente el inicio de la contratación derivada. Plazo 7 meses. | Z8: Inicio de Actividades, , Reporte de avance de ejecución con soportes | AA8: Reporte de avance de ejecución con soportes | AB8: Reporte de avance de ejecución con soportes | AC8: Finalización, liquidación, | AD8: Ministerio de Comercio, Industria y Turismo a través de su patrimonio autónomo Fontur
A9: Línea estratégica 4. Desarrollo Rural y Transformación Productiva | B9: Construcción y adecuación de la plazoleta regional de la Paz como escenario de promoción intercultural, turístico y de emprendimiento en el municipio de Miranda Cauca. | C9: Ministerio de Comercio, Industria y Turismo | D9: Inversión | E9: Terminado | F9: 12271839706 | H9: 0 | I9: 0 | J9: 0 | K9: 0 | L9: =SUM(F9:K9) -> 12271839706 | M9: N/A | N9: N/A | O9: N/A | P9: 2662060474 | Q9: 0 | R9: N/A | S9: N/A | T9: N/A | U9: N/A | V9: =SUM(P9:U9) -> 2662060474 | W9: 14933900180 | X9: Ministerio de Comercio, Industria y Turismo a través de su patrimonio autónomo Fontur | Y9: 22/04/2026. $14.933 millones ejecutados (Fontur y Municipio Miranda). Terminado. Proyecto entregado y recibido a satisfacción por el Municipio de Miranda (Cauca) el 11 de septiembre de 2025, actualmente se encuentra en proceso de cierre y posterior liquidación | Z9: Actualización información con soportes | AA9: Finalización, liquidación, | AD9: Ministerio de Comercio, Industria y Turismo a través de su patrimonio autónomo Fontur
A10: Línea estratégica 4. Desarrollo Rural y Transformación Productiva | B10: Línea de crédito de agroindustria para empresas con códigos de actividades económicas específicas del sector económico agroindustrial / municipios del Cañón del Micay. | C10: Ministerio de Comercio, Industria y Turismo | D10: Operación | E10: Ejecución | H10: 4645703939 | I10: 0 | J10: 0 | K10: 0 | L10: =SUM(F10:K10) -> 4645703939 | M10: N/A | N10: N/A | O10: N/A | Q10: N/A | R10: N/A | S10: N/A | T10: N/A | U10: N/A | V10: 0 | W10: 4645703939 | X10: Ministerio de Comercio, Industria y Turismo a través de Bancóldex | Y10: 22/04/2026. $4.645 millones. Operación. La línea de crédito esta dispuesta desde abril de 2025 (Bamcoldex) y su vigencia es hasta agotar recursos, con corte al mes de marzo de 2026 no se han presentado solicitudes de crédito con cargo a esta línea para los municipios de Argelia, El Tambo, López de Micay, Guapi y Timbiquí. No corresponde a un proyecto, se considera un programa. | Z10: Reporte de avance de ejecución con soportes | AA10: Reporte de avance de ejecución con soportes | AB10: Reporte de avance de ejecución con soportes | AC10: Reporte de avance de ejecución con soportes | AD10: Ministerio de Comercio, Industria y Turismo
H11: =SUM(H4:H10) -> 25999733330 | I11: 646017680 | J11: 0 | K11: 0 | L11: 44200350493 | M11: 0 | N11: 0 | O11: 0 | Q11: 1944070000 | R11: 0 | S11: 0 | T11: 0 | U11: 0 | V11: 4606130474 | W11: =SUM(W4:W10) -> 48806480967

Sheet DPS 23 (hidden)
A2: Línea estratégica | B2: Nombre de la Iniciativa | C2: Entidad Responsable | D2: Etapa del Proyecto * | E2: Fase del Proyecto * | F2: Aporte Sector | K2: Aporte Territorio | R2: Otros recursos | S2: Aportes Territorio / Otros | T2: Inversión Total | U2: Entidad Responsable ejecución proyecto | V2: Observaciones / Acciones | W2: Actividades a ejecutar | AA2: Entidad Responsable de actividad
F3: 2025 | G3: 2026 | H3: 2027 | I3: 2028 | J3: Total | K3: Propios | L3: SGR | M3: Otros | N3: 2025 | O3: 2026 | P3: 2027 | Q3: 2028 | W3: Trimestre 2 -2026 | X3: Trimestre 3 - 2026 | Y3: Trimestre 4 -2026 | Z3: Trimestre 1 -2027
A4: Línea estratégica 4. Desarrollo Rural y Transformación Productiva | B4: Plaza De Mercado de Puerto Tejada | C4: Departamento Administrativo de Prosperidad Social | D4: Inversión | E4: Contratación | J4: =SUM(F4:I4) -> 0 | S4: =SUM(N4:R4) -> 0 | T4: =+J4+S4 -> 0 | V4: No Iniciado, En viabilidadPROYECTO PRIORIZADO MEDIANTE CONVENIO # 911-FIP-2024 . Estado Convenio: Suscrito con el municipio A 30 de septiembre del 2025, el proceso de obra y consultaría se encuentran en proceso de evaluación y observaciones, se sacó a publicación con las plazas de Tumaco y Argelia. Respecto a la contratación derivada de la Interventoría el estado es el siguiente: El proceso de estructuración, se declaro fallido y se debe publicar nuevamente.
A5: Línea estratégica 4. Desarrollo Rural y Transformación Productiva | B5: Plaza De Mercado Argelia | C5: Departamento Administrativo de Prosperidad Social | D5: Inversión | E5: Contratación | J5: =SUM(F5:I5) -> 0 | S5: =SUM(N5:R5) -> 0 | T5: =+J5+S5 -> 0 | V5: 0 No Iniciado, En viabilidadPROYECTO PRIORIZADO MEDIANTE CONVENIO # 911-FIP-2024 . Estado Convenio: Suscrito con el municipio A 30 de septiembre del 2025, el proceso de obra y consultaría se encuentran en proceso de evaluación y observaciones, se sacó a publicación con las plazas de Tumaco y Puerto Tejada. Respecto a la contratación derivada de la Interventoría el estado es el siguiente: Se recomienda adjudicar el 22 de agosto de 2025 con ALIANZA INTEGRAL DE PROYECTOS SAS BIC por la suma de Mil ciento ochenta y tres millones trescientos ochenta y cuatro mil ochocientos sesenta y dos pesos con noventa centavos M/CTE ($1.183.384.862,90), el proceso se suspendió el 25 de agosto de 2025,
A6: Línea estratégica 4. Desarrollo Rural y Transformación Productiva | B6: Plaza De Mercado de El Tambo | C6: Departamento Administrativo de Prosperidad Social | D6: Inversión | E6: Contratación | J6: =SUM(F6:I6) -> 0 | S6: 0 | T6: 0 | V6: 0 No Iniciado, En viabilidadPROYECTO PRIORIZADO MEDIANTE CONVENIO # 911-FIP-2024 . Estado Convenio: Suscrito con el municipio La Contratación derivada de la Consultaría, obra e interventoría , en procesos precontractuales, documentación Técnica en estructuración para publicación en SECOP II. Se requiere surtir modificación del contrato de fiducia para poder tener el soporte presupuestal.
A7: Línea estratégica 4. Desarrollo Rural y Transformación Productiva | B7: Punto de Abastecimiento Solidario en Argelia | C7: Departamento Administrativo de Prosperidad Social | D7: Preinversión | E7: Fase III | J7: =SUM(F7:I7) -> 0 | S7: 0 | T7: 0 | V7: 0 No Iniciado, En viabilidadEl proyecto se encuentra viabilizado, en proceso de ESTUDIOS Y DISEÑOS y un avance de obra de 0%
A8: Línea estratégica 4. Desarrollo Rural y Transformación Productiva | B8: Punto de Abastecimiento Solidario en Balboa | C8: Departamento Administrativo de Prosperidad Social | D8: Preinversión | E8: Fase III | S8: 0 | T8: 0 | V8: 0 No Iniciado, En estructuraciónEl proyecto se encuentra viabilizado, en proceso de ESTUDIOS Y DISEÑOS y un avance de obra de 0%
A9: Línea estratégica 4. Desarrollo Rural y Transformación Productiva | B9: Punto de Abastecimiento Solidario en Cajibío | C9: Departamento Administrativo de Prosperidad Social | D9: Inversión | E9: Ejecución | S9: 0 | T9: 0 | V9: 0 No Iniciado, En estructuraciónEl proyecto se encuentra viabilizado, en proceso de ESTUDIOS Y DISEÑOS y un avance de obra de 0%, se inició la ejecución y se proyecta terminación para abril de 2026
A10: Línea estratégica 4. Desarrollo Rural y Transformación Productiva | B10: Punto de Abastecimiento Solidario en Caldono | C10: Departamento Administrativo de Prosperidad Social | D10: Inversión | E10: Ejecución | S10: 0 | T10: 0 | V10: 0 No Iniciado, En estructuraciónEl proyecto se encuentra viabilizado, en proceso de ESTUDIOS Y DISEÑOS y un avance de obra de 0%, se inició la ejecución y se proyecta terminación para abril de 2026
A11: Línea estratégica 4. Desarrollo Rural y Transformación Productiva | B11: Punto de Abastecimiento Solidario en Caloto | C11: Departamento Administrativo de Prosperidad Social | D11: Preinversión | E11: Sin información clara | S11: 0 | T11: 0 | V11: 0 No Iniciado, En estructuración
A12: Línea estratégica 4. Desarrollo Rural y Transformación Productiva | B12: Punto de Abastecimiento Solidario en Corinto | C12: Departamento Administrativo de Prosperidad Social | D12: Preinversión | E12: Fase III | S12: 0 | T12: 0 | V12: 0 No Iniciado, En estructuraciónEl proyecto se encuentra viabilizado, en proceso de ESTUDIOS Y DISEÑOS y un avance de obra de 0%
A13: Línea estratégica 4. Desarrollo Rural y Transformación Productiva | B13: Punto de Abastecimiento Solidario en El Tambo | C13: Departamento Administrativo de Prosperidad Social | D13: Preinversión | E13: Fase III | S13: 0 | T13: 0 | V13: 0 No Iniciado, En estructuraciónEl proyecto se encuentra viabilizado, en proceso de ESTUDIOS Y DISEÑOS y un avance de obra de 0%
A14: Línea estratégica 4. Desarrollo Rural y Transformación Productiva | B14: Punto de Abastecimiento Solidario en Guapi | C14: Departamento Administrativo de Prosperidad Social | D14: Preinversión | E14: Fase III | S14: 0 | T14: 0 | V14: 0 No Iniciado, En estructuraciónEl proyecto se encuentra viabilizado, en proceso de ESTUDIOS Y DISEÑOS y un avance de obra de 0%, se inició la ejecución y se proyecta terminación para abril de 2026
A15: Línea estratégica 4. Desarrollo Rural y Transformación Productiva | B15: Punto de Abastecimiento Solidario en Jámbalo | C15: Departamento Administrativo de Prosperidad Social | D15: Inversión | E15: Ejecución | S15: 0 | T15: 0 | V15: 0 No Iniciado, En estructuración El proyecto se encuentra viabilizado, en proceso de ESTUDIOS Y DISEÑOS y un avance de obra de 0%, se inició la ejecución y se proyecta terminación para abril de 2026
A16: Línea estratégica 4. Desarrollo Rural y Transformación Productiva | B16: Punto de Abastecimiento Solidario en Mercaderes | C16: Departamento Administrativo de Prosperidad Social | D16: Inversión | E16: Ejecución | S16: 0 | T16: 0 | V16: 0 No Iniciado, En estructuraciónEl proyecto se encuentra viabilizado, en proceso de ESTUDIOS Y DISEÑOS y un avance de obra de 0%, se inició la ejecución y se proyecta terminación para abril de 2026
A17: Línea estratégica 4. Desarrollo Rural y Transformación Productiva | B17: Punto de Abastecimiento Solidario en Miranda | C17: Departamento Administrativo de Prosperidad Social | D17: Inversión | E17: Ejecución | S17: 0 | T17: 0 | V17: 0 No Iniciado, En estructuraciónEl proyecto se encuentra viabilizado, en proceso de ESTUDIOS Y DISEÑOS y un avance de obra de 0%, se inició la ejecución y se proyecta terminación para abril de 2026
A18: Línea estratégica 4. Desarrollo Rural y Transformación Productiva | B18: Punto de Abastecimiento Solidario en Morales | C18: Departamento Administrativo de Prosperidad Social | D18: Inversión | E18: Ejecución | S18: 0 | T18: 0 | V18: 0 No Iniciado, En estructuraciónEl proyecto se encuentra viabilizado, en proceso de ESTUDIOS Y DISEÑOS y un avance de obra de 0%, se inició la ejecución y se proyecta terminación para abril de 2026
A19: Línea estratégica 4. Desarrollo Rural y Transformación Productiva | B19: Punto de Abastecimiento Solidario en Patía | C19: Departamento Administrativo de Prosperidad Social | D19: Inversión | E19: Ejecución | S19: 0 | T19: 0 | V19: 0 No Iniciado, En estructuraciónEl proyecto se encuentra viabilizado, en proceso de ESTUDIOS Y DISEÑOS y un avance de obra de 0%, se inició la ejecución y se proyecta terminación para abril de 2026
A20: Línea estratégica 4. Desarrollo Rural y Transformación Productiva | B20: Punto de Abastecimiento Solidario en Popayán | C20: Departamento Administrativo de Prosperidad Social | D20: Preinversión | E20: Fase III | S20: 0 | T20: 0 | V20: 0 No Iniciado, En estructuraciónEl proyecto se encuentra viabilizado, en proceso de ESTUDIOS Y DISEÑOS y un avance de obra de 0%
A21: Línea estratégica 4. Desarrollo Rural y Transformación Productiva | B21: Punto de Abastecimiento Solidario en Santander de Quilichao | C21: Departamento Administrativo de Prosperidad Social | D21: Preinversión | E21: Fase III | S21: 0 | T21: 0 | V21: 0 No Iniciado, En estructuraciónEl proyecto se encuentra viabilizado, en proceso de ESTUDIOS Y DISEÑOS y un avance de obra de 0%
A22: Línea estratégica 4. Desarrollo Rural y Transformación Productiva | B22: Punto de Abastecimiento Solidario en Timbiquí | C22: Departamento Administrativo de Prosperidad Social | D22: Preinversión | E22: Sin información clara | S22: 0 | T22: 0 | V22: 0 No Iniciado, En estructuración
A23: Línea estratégica 4. Desarrollo Rural y Transformación Productiva | B23: Punto de Abastecimiento Solidario en Toribio | C23: Departamento Administrativo de Prosperidad Social | D23: Inversión | E23: Ejecución | S23: 0 | T23: 0 | V23: 0 No Iniciado, En estructuraciónEl proyecto se encuentra viabilizado, en proceso de ESTUDIOS Y DISEÑOS y un avance de obra de 0%, se inició la ejecución y se proyecta terminación para abril de 2026
A24: Línea estratégica 4. Desarrollo Rural y Transformación Productiva | B24: Malecón Sobre El Rio Suárez | C24: Departamento Administrativo de Prosperidad Social | D24: Inversión | E24: Contratación | J24: =SUM(F24:I24) -> 0 | S24: 0 | T24: 0 | V24: 0 No Iniciado, En viabilidadPROYECTO PRIORIZADO MEDIANTE CONVENIO # 911-FIP-2024 . Convenio Suscrito con el municipio Documentación Técnica en estructuración para publicación en SECOP II. Se requiere surtir modificación del contrato de fiducia para poder tener el soporte presupuestal.
A25: Línea estratégica 4. Desarrollo Rural y Transformación Productiva | B25: Construcción Plaza de Mercado de López de Micay Cauca | C25: Departamento Administrativo de Prosperidad Social | D25: Inversión | E25: Contratación | J25: =SUM(F25:I25) -> 0 | S25: 0 | T25: 0 | V25: 0 No Iniciado, En viabilidadPROYECTO PRIORIZADO MEDIANTE CONVENIO # 911-FIP-2024 . Estado Convenio: Suscrito con el municipio La Contratación derivada de la Consultaría, obra e interventoría , en procesos precontractuales, documentación Técnica en estructuración para publicación en SECOP II. Se requiere surtir modificación del contrato de fiducia para poder tener el soporte presupuestal.
A26: 7. Infraestructura de Transporte | B26: Placa Huella en Suárez​ | C26: Departamento Administrativo de Prosperidad Social | J26: 0 | S26: 0 | T26: 0 | V26: 9/12/2025. PROYECTO PRIORIZADO MEDIANTE CONVENIO # 911-FIP-2024. 30 de septiembre del 2025, con convenio suscrito con el municipio de Suarez. Para la contratación derivada para la Consultoría y 0bra el proceso de contratación derivada se ha publicado dos veces y se ha declarado fallido, se encuentra nuevamente en proceso de publicación. Respecto a la contratación derivada de interventoría, el estado es el siguiente: No se cuenta con contratistas seleccionados se espera publicar los procesos de selección durante el mes de diciembre de 2025.
F27: =SUM(F24:F26) -> 0 | G27: 0 | H27: 0 | I27: 0 | J27: 0 | K27: 0 | L27: 0 | M27: 0 | N27: 0 | O27: 0 | P27: 0 | Q27: 0 | R27: 0 | S27: 0 | T27: =SUM(T24:T26) -> 0

Sheet IGAC 13 (hidden)
A2: Línea estratégica | B2: Nombre de la Iniciativa | C2: Entidad Responsable | D2: Etapa del Proyecto * | E2: Fase del Proyecto * | F2: Aporte Sector | K2: Aporte Territorio | R2: Otros recursos | S2: Aportes Territorio / Otros | T2: Inversión Total | U2: Entidad Responsable ejecución proyecto | V2: Observaciones / Acciones | W2: Actividades a ejecutar | AA2: Entidad Responsable de actividad
F3: 2025 | G3: 2026 | H3: 2027 | I3: 2028 | J3: Total | K3: Propios | L3: SGR | M3: Otros | N3: 2025 | O3: 2026 | P3: 2027 | Q3: 2028 | W3: Trimestre 2 -2026 | X3: Trimestre 3 - 2026 | Y3: Trimestre 4 -2026 | Z3: Trimestre 1 -2027
A4: Línea estratégica 4. Desarrollo Rural y Transformación Productiva | B4: Actualización catastral Almaguer | C4: IGAC - Instituto Geográfico Agustín Codazzi | D4: Inversión | E4: Contratación | J4: =SUM(F4:I4) -> 0 | S4: =SUM(N4:R4) -> 0 | T4: =+J4+S4 -> 0 | V4: 0 No Iniciado, En estructuración0,0911Actualmente se encuentra en proceso de evaluación las propuestas remitidas por los oferentes
A5: Línea estratégica 4. Desarrollo Rural y Transformación Productiva | B5: Actualización catastral El Tambo | C5: IGAC - Instituto Geográfico Agustín Codazzi | D5: Inversión | E5: Ejecución | J5: 0 | S5: 0 | T5: 0 | V5: 9009284952 En Ejecución, En ejecución de obra0,749194425394139Lo correspondiente a la zona urbana entró en vigencia en 2025. Por otra parte, lo correspondiente a la información en zona rural fuera de territorios étnicos formalizados está previsto que entre en vigencia en 2026.
A6: Línea estratégica 4. Desarrollo Rural y Transformación Productiva | B6: Actualización catastral Mercaderes | C6: IGAC - Instituto Geográfico Agustín Codazzi | D6: Inversión | E6: Ejecución | J6: 0 | S6: 0 | T6: 0 | V6: 5622405454 En Ejecución, En ejecución de obra0,1845Actualmente en ejecución en el marco del Convenio de Cooperación Técnica entre IGAC y FAO.
A7: Línea estratégica 4. Desarrollo Rural y Transformación Productiva | B7: Actualización catastral Inzá | C7: IGAC - Instituto Geográfico Agustín Codazzi | D7: Inversión | E7: Ejecución | J7: 0 | S7: 0 | T7: 0 | V7: 5564125714 En Ejecución, En ejecución de obra0,18066Actualmente en ejecución en el marco del Convenio de Cooperación Técnica entre IGAC y FAO.
A8: Línea estratégica 4. Desarrollo Rural y Transformación Productiva | B8: Actualización catastral Piamonte | C8: IGAC - Instituto Geográfico Agustín Codazzi | D8: Inversión | E8: Ejecución | J8: 0 | S8: 0 | T8: 0 | V8: 5447394451 En Ejecución, En ejecución de obra0,321200367602498El municipio se ejecuta por modelo de operación tercerizado y está previsto que la información resultado del proceso de actualización catastral se ponga en vigencia en 2026.
A9: Línea estratégica 4. Desarrollo Rural y Transformación Productiva | B9: Actualización catastral Cajibío | C9: IGAC - Instituto Geográfico Agustín Codazzi | D9: Inversión | E9: Ejecución | J9: 0 | S9: 0 | T9: 0 | V9: 4190085530 En Ejecución, En ejecución de obra0,58464917285456El municipio se ejecuta por modelo de operación directa y está previsto que la información resultado del proceso de actualización catastral se ponga en vigencia en 2026.
A10: Línea estratégica 4. Desarrollo Rural y Transformación Productiva | B10: Actualización catastral Patía | C10: IGAC - Instituto Geográfico Agustín Codazzi | D10: Inversión | E10: Ejecución | J10: 0 | S10: 0 | T10: 0 | V10: 4090286067 En Ejecución, En ejecución de obra0,244735468102033El municipio se ejecuta por modelo de operación directa y está previsto que la información resultado del proceso de actualización catastral se ponga en vigencia en 2027.
A11: Línea estratégica 4. Desarrollo Rural y Transformación Productiva | B11: Actualización catastral Argelia | C11: IGAC - Instituto Geográfico Agustín Codazzi | D11: Inversión | E11: Terminación anticipada | J11: 0 | S11: 0 | T11: 0 | V11: 0 No Iniciado, Desistido/caducado0,178869445751066El municipio se retira del Plan Operativo de Formación y/o actualización catastral con enfoque multipropósito 2025-2026 teniendo condiciones de seguridad en ekl municipio
A12: Línea estratégica 4. Desarrollo Rural y Transformación Productiva | B12: Actualización catastral Sucre | C12: IGAC - Instituto Geográfico Agustín Codazzi | D12: Inversión | E12: Contratación | J12: 0 | S12: 0 | T12: 0 | V12: 0 No Iniciado, En estructuración0,114Actualmente se encuentra en proceso de evaluación las propuestas remitidas por los oferentes
A13: Línea estratégica 4. Desarrollo Rural y Transformación Productiva | B13: Actualización catastral Florencia | C13: IGAC - Instituto Geográfico Agustín Codazzi | D13: Inversión | E13: Ejecución | J13: 0 | S13: 0 | T13: 0 | V13: 3261334360 En Ejecución, En ejecución de obra0,185308619260724Actualmente en ejecución en el marco del Convenio de Cooperación Técnica entre IGAC y FAO.
A14: Línea estratégica 4. Desarrollo Rural y Transformación Productiva | B14: Actualización catastral Miranda | C14: IGAC - Instituto Geográfico Agustín Codazzi | D14: Inversión | E14: Terminado | J14: 0 | S14: 0 | T14: 0 | V14: 3250675512 Terminado, Ejecutado0,963621382027131Lo correspondiente a la zona urbana y rural fuera de Territorios Étnicos Formalizados entró en vigencia en 2025.
A15: Línea estratégica 4. Desarrollo Rural y Transformación Productiva | B15: Actualización catastral Guachené | C15: IGAC - Instituto Geográfico Agustín Codazzi | D15: Inversión | E15: Ejecución | J15: 0 | S15: 0 | T15: 0 | V15: 3115836458 En Ejecución, En ejecución de obra0,561280652555065El municipio se ejecuta por modelo de operación directa y está previsto que la información resultado del proceso de actualización catastral se ponga en vigencia en 2026.
A16: Línea estratégica 4. Desarrollo Rural y Transformación Productiva | B16: Actualización catastral Padilla | C16: IGAC - Instituto Geográfico Agustín Codazzi | D16: Inversión | E16: Ejecución | J16: 0 | S16: 0 | T16: 0 | V16: 2111434549 En Ejecución, En ejecución de obra0,704394328795725El municipio se ejecuta por modelo de operación directa y está previsto que la información resultado del proceso de actualización catastral se ponga en vigencia en 2026.
F17: =SUM(F4:F16) -> 0 | G17: 0 | H17: 0 | I17: 0 | J17: =SUM(J4:J16) -> 0 | K17: =SUM(K4:K16) -> 0 | L17: 0 | M17: 0 | N17: 0 | O17: 0 | P17: 0 | Q17: 0 | R17: 0 | S17: 0 | T17: 0

Sheet MADR 1 (hidden)
A2: Nombre de la Iniciativa | B2: Entidad Responsable | C2: Etapa del Proyecto * | D2: Fase del Proyecto * | E2: Aporte Sector | J2: Aporte Territorio | Q2: Otros recursos | R2: Aportes Territorio / Otros | S2: Inversión Total | T2: Entidad Responsable ejecución proyecto | U2: Observaciones / Acciones | V2: Actividades a ejecutar | Z2: Entidad Responsable de actividad
E3: 2025 | F3: 2026 | G3: 2027 | H3: 2028 | I3: Total | J3: Propios | K3: SGR | L3: Otros | M3: 2025 | N3: 2026 | O3: 2027 | P3: 2028 | V3: Trimestre 2 -2026 | W3: Trimestre 3 - 2026 | X3: Trimestre 4 -2026 | Y3: Trimestre 1 -2027
A4: Implementación de sistemas agroforestales sostenibles con componentes de asistencia técnica, transformación industrial y procesos de comercialización | B4: Ministerio de Agricultura y Desarrollo Rural - FRISCO | I4: =SUM(E4:H4) -> 0 | R4: =SUM(M4:Q4) -> 0 | S4: =+I4+R4 -> 0 | U4: Corresponde al proyecto en DSCI
U5: =+'DSCI 3'!B5 -> Transformación ecológica y productiva de zonas degradadas por cultivos de uso ilícito en áreas de especial importancia ambiental en los departamentos de Nariño, Cauca y Chocó (Sistemas agroforestales de cacao).

Sheet SALUD 10+ (hidden)
A2: Línea estratégica | B2: Nombre de la Iniciativa | C2: Entidad Responsable | D2: Etapa del Proyecto * | E2: Fase del Proyecto * | G2: Aporte Sector | N2: Aporte Territorio | V2: Otros recursos | W2: Aportes Territorio / Otros | X2: Inversión Total | Y2: Entidad Responsable ejecución proyecto | Z2: Observaciones / Acciones | AA2: Actividades a ejecutar | AE2: Entidad Responsable de actividad
F3: 2024 | G3: 2025 | H3: 2026 | I3: 2027 | J3: 2028 | K3: 2029 | L3: 2030 | M3: Total | N3: Propios | O3: SGR | P3: Otros | Q3: 2024 | R3: 2025 | S3: 2026 | T3: 2027 | U3: 2028 | AA3: Trimestre 2 -2026 | AB3: Trimestre 3 - 2026 | AC3: Trimestre 4 -2026 | AD3: Trimestre 1 -2027
A4: Línea estratégica 5. Salud | B4: Hospital del segundo nivel del Patía | C4: Ministerio de Salud y Protección Social /Gobernación | D4: Inversión | E4: Fase I | F4: 0 | G4: 0 | H4: 11100000000 | I4: 5000000000 | J4: 5350000000 | K4: 8550000000 | L4: 7000000000 | M4: =SUM(F4:L4) -> 37000000000 | N4: 0 | O4: 0 | P4: 0 | Q4: 0 | R4: 0 | S4: 0 | T4: 0 | U4: 0 | V4: 0 | W4: =SUM(R4:V4) -> 0 | X4: =+M4+W4 -> 37000000000 | Y4: HOSPITAL SUSANA LOPEZ DE VALENCIA EMPRESA SOCIAL DEL ESTADO | Z4: $37.000 millones. Fase I - Con Asignación de Recursos. Desde el MSPS se realiza asignación de resursos mediante RESOLUCIÓN 2733_2806 DEL 2025. CONPES 4169 del 2025. Nombre del proyecto: HOSPITAL DEL SEGUNDO NIVEL DEL PATÍA​ El proyecto se encuentra en etapa de iniciativa. Actualmente no cuenta con cofinanciación. | AA4: Presentación del proyecto ante la fuente de financiación | AB4: Estructuración del proyecto | AC4: Viabilización del proyecto ante la cabeza del sector | AD4: Revisión y aprobación del proyecto por la fuente de financiación | AE4: HOSPITAL SUSANA LOPEZ DE VALENCIA EMPRESA SOCIAL DEL ESTADO
A5: Línea estratégica 5. Salud | B5: Reposición de la unidad de atención en salud Suárez – Cauca | C5: Ministerio de Salud y Protección Social | D5: Inversión | E5: Fase I | F5: 0 | G5: 0 | H5: 2750170869 | I5: 4000000000 | J5: 6580756778 | K5: 5749861875 | L5: 15000000000 | M5: =SUM(F5:L5) -> 34080789522 | N5: 0 | O5: 0 | P5: 0 | Q5: 0 | R5: 0 | S5: 0 | T5: 0 | U5: 0 | V5: 0 | W5: =SUM(R5:V5) -> 0 | X5: =+M5+W5 -> 34080789522 | Y5: EMPRESA SOCIAL DEL ESTADO NORTE 1 E.S.E | Z5: $34.080 millones. Evaluación Técnica Fase I- Con Recursos asignados. ESE NORTE 1. Desde el MSPS se realiza asignación de resursos mediante RESOLUCIÓN 2733 DEL 2025. CONPES 4169 del 2025. Nombre del proyecto: REPOSICIÓN DE LA UNIDAD DE ATENCIÓN EN SALUD DE SUÁREZ – ESE NORTE 1 El proyecto se encuentra en etapa de evaluación | AA5: Revisión técnica del proyecto por Sector | AB5: Actualización información con soportes | AC5: Revisión y aprobación del proyecto por la fuente de financiación | AD5: Viabilización del proyecto ante la cabeza del sector | AE5: EMPRESA SOCIAL DEL ESTADO NORTE 1 E.S.E en conjunto con el MINISTERIO DE SALUD Y PROTECCIÓN SOCIAL
A6: Línea estratégica 5. Salud | B6: Construcción De La Unidad De Atención En Salud El Plateado, E.S.E. Suroccidente Cauca | C6: Ministerio de Salud y Protección Social | D6: Inversión | E6: Ejecución | F6: 22458423926 | G6: 0 | H6: 0 | I6: 0 | J6: 0 | K6: 0 | L6: 0 | M6: 22458423926 | N6: 0 | O6: 0 | P6: 0 | Q6: 0 | R6: 0 | S6: 0 | T6: 0 | U6: 0 | V6: 0 | W6: =SUM(R6:V6) -> 0 | X6: =+M6+W6 -> 22458423926 | Y6: E.S.E. Suroccidente Cauca | Z6: $22.458 millones comprometido. Ejecución/Suspendido. Avance 31.50%. Desde el MSPS se realiza asignación de resursos mediante RESOLUCIÓN 898 DEL 2024 Nombre del proyecto: CONSTRUCCIÓN DE LA UNIDAD DE ATENCIÓN EN SALUD EL PLATEADO, ESE SUROCCIDENTE CAUCA El proyecto se encuentra en etapa de ejecución, sin embargo se encuentra suspendido. Avance físico de obra 31.50%. | AA6: Reporte de avance de ejecución con soportes, Actualización información con soportes | AB6: Reporte de avance de ejecución con soportes | AC6: Reporte de avance de ejecución con soportes | AD6: Finalización, liquidación, | AE6: E.S.E. Suroccidente Cauca
A7: Línea estratégica 5. Salud | B7: Reposición de la infraestructura física de la unidad nivel 1 López de Micay, unidad de atención de la E.S.E. occidente, departamento del Cauca | C7: Ministerio de Salud y Protección Social | D7: Inversión | E7: Ejecución | F7: 0 | G7: 44165636109 | H7: 0 | I7: 0 | J7: 0 | K7: 0 | L7: 0 | M7: 44165636109 | N7: 0 | O7: 0 | P7: 0 | Q7: 0 | R7: 0 | S7: 0 | T7: 0 | U7: 0 | V7: 0 | W7: =SUM(R7:V7) -> 0 | X7: =+M7+W7 -> 44165636109 | Y7: EMPRESA SOCIAL DEL ESTADO OCCIDENTE E.S.E | Z7: $44.165 millones. Ejecución. Avance 2%. Desde el MSPS se realiza asignación de resursos mediante RESOLUCIÓN 1023 DEL 2025 Nombre del proyecto: REPOSICIÓN DE LA INFRAESTRCUTURA FISICA DE LA UNIDAD NIVEL I LOPEZ DE MICAY, PUNTO DE ATENCIÓN DE LA ESE OCCIDENTE, DEPARTAMENTO DEL CAUCA El proyecto se encuentra en etapa de ejecución. Avance 2% iniciaron obra el 12 febrero de 2026. | AA7: Reporte de avance de ejecución con soportes, Actualización información con soportes | AB7: Reporte de avance de ejecución con soportes | AC7: Reporte de avance de ejecución con soportes | AD7: Finalización, liquidación, | AE7: EMPRESA SOCIAL DEL ESTADO OCCIDENTE E.S.E
A8: Línea estratégica 5. Salud | B8: Construcción de la planta física para la reubicación de servicios de consulta externa y áreas administrativas Hospital Susana López de Valencia E.S.E. | C8: Ministerio de Salud y Protección Social | D8: Inversión | E8: Ejecución | F8: 16497522812 | G8: 0 | H8: 0 | I8: 0 | J8: 0 | K8: 0 | L8: 0 | M8: 16497522812 | N8: 0 | O8: 0 | P8: 0 | Q8: 0 | R8: 0 | S8: 0 | T8: 0 | U8: 0 | V8: 0 | W8: =SUM(R8:V8) -> 0 | X8: =+M8+W8 -> 16497522812 | Y8: HOSPITAL SUSANA LOPEZ DE VALENCIA EMPRESA SOCIAL DEL ESTADO | Z8: $16.497 millones. Ejecución. Avance 3.5%. Desde el MSPS se realiza asignación de resursos mediante RESOLUCIÓN 1221 DEL 2024. Nombre del proyecto: CONSTRUCCIÓN DE LA PLANTA FÍSICA PARA LA REUBICACIÓN DE SERVICIOS DE CONSULTA EXTERNA Y ÁREAS ADMINSITRATIVAS HOSPITAL SUSANA LÓPEZ DE VALENCIA ESE El proyecto se encuentra en etapa de ejecución. Avance 3.5% inicio de actividades 9 de marzo 2026. | AA8: Reporte de avance de ejecución con soportes, Actualización información con soportes | AB8: Reporte de avance de ejecución con soportes | AC8: Reporte de avance de ejecución con soportes | AD8: Reporte de avance de ejecución con soportes | AE8: HOSPITAL SUSANA LOPEZ DE VALENCIA EMPRESA SOCIAL DEL ESTADO
A9: Línea estratégica 5. Salud | B9: Construcción hospital nivel 1 de Padilla | C9: Ministerio de Salud y Protección Social | D9: Inversión | E9: Terminado | F9: 14550608204 | G9: 0 | H9: 0 | I9: 0 | J9: 0 | K9: 0 | L9: 0 | M9: 14550608204 | N9: 0 | O9: 0 | P9: 0 | Q9: 0 | R9: 0 | S9: 0 | T9: 0 | U9: 0 | V9: 0 | W9: 0 | X9: 14550608204 | Y9: EMPRESA SOCIAL DEL ESTADO NORTE 3 - ESE | Z9: $14.550 millones. Ejecución. Avance 13.15%. Desde el MSPS se realiza asignación de resursos mediante RESOLUCIÓN 1221 DEL 2024 Nombre del proyecto: CONSTRUCCIÓN HOSPITAL NIVEL 1 DE PADILLA El proyecto se encuentra en etapa de ejecución. Avance 13.15%. | AA9: Reporte de avance de ejecución con soportes, Actualización información con soportes | AB9: Reporte de avance de ejecución con soportes | AC9: Reporte de avance de ejecución con soportes | AD9: Reporte de avance de ejecución con soportes | AE9: EMPRESA SOCIAL DEL ESTADO NORTE 3 - ESE
A10: Línea estratégica 5. Salud | B10: Adecuaciones menores de 4 unidades de atención en salud | C10: Ministerio de Salud y Protección Social | D10: Inversión | E10: Terminado | F10: 0 | G10: 1218590954 | H10: 0 | I10: 0 | J10: 0 | K10: 0 | L10: 0 | M10: 1218590954 | N10: 0 | O10: 0 | P10: 0 | Q10: 0 | R10: 0 | S10: 0 | T10: 0 | U10: 0 | V10: 0 | W10: =SUM(R10:V10) -> 0 | X10: =+M10+W10 -> 1218590954 | Y10: ESE SUR OCCIDENTE | Z10: $1.218 millones. 4-Terminados. - 1 Proyecto: ADECUACIÓN MENOR EN LA UNIDAD DE ATENCIÓN EN SALUD DEL MUNICIPIO DE ARGELIA, CAUCA. - MSPS recursos RESOLUCIÓN 209_623 del 2025. Se encuentra en etapa de terminación. - 2 Proyecto: ADECUACIÓN MENOR EN LA UNIDAD DE ATENCIÓN EN SALUD DE OLAYA BALBOA, CAUCA MSPS resursos RESOLUCIÓN 209_623 del 2025. Se encuentra en etapa de terminación. - 3 Proyecto: ADECUACIÓN MENOR PARA LA UNIDAD DE ATENCIÓN EN SALUD EL MANGO MUNICIPIO DE ARGELIA CAUCA, ESE SUROCCIDENTE - MSPS resursos RESOLUCIÓN 209_623 del 2025. Se encuentra en etapa de terminación - 4 Proyecto: ADECUACIÓN MENOR EN LA UNIDAD DE ATENCION EN SALUD DE ARBOLEDAS, MERCADERES, CAUCA - MSPS resursos RESOLUCIÓN 209_623 del 2025. Se encuentra en etapa de terminación | AA10: Actualización información con soportes, Finalización, liquidación, | AB10: Actualización información con soportes; Finalización, liquidación, | AE10: ESE SUR OCCIDENTE
A11: Línea estratégica 5. Salud | B11: Construir, mejorar, ampliar y dotar cinco puestos de salud de los corregimientos de Mojarras, San Joaquín, Arboledas, Cajamarca y en la vereda Esperanzas del Mayo para mejorar la cobertura y calidad de los servicios de salud de 8000 personas en el Municipios de Mercaderes | C11: Ministerio de Salud y Protección Social | D11: Preinversión, Inversión | E11: Fase I, Terminado | F11: 0 | G11: 329933688 | H11: 0 | I11: 0 | J11: 0 | K11: 0 | L11: 0 | M11: 329933688 | N11: 0 | O11: 0 | P11: 0 | Q11: 0 | R11: 0 | S11: 0 | T11: 0 | U11: 0 | V11: 0 | W11: =SUM(R11:V11) -> 0 | X11: =+M11+W11 -> 329933688 | Y11: ESE SUR OCCIDENTE | Z11: $329 millones. 1-Terminado, 2-en Viabilización, 2-No presentados. 1. ADECUACIÓN PARA EL MEJORAMIENTO DE LA INFRAESTRUCTURA FÍSICA DE LA UNIDAD DE ATENCIÓN EN SALUD DE SAN JOAQUÍN DEL MUNICIPIO DE MERCADERES DEPARTAMENTO DEL CAUCA. Valor: $361.681.589. En evaluación tecnica con recursos MSPS RESOLUCIÓN 209_623 del 2025. 2. ADECUACIÓN MENOR EN LA UNIDAD DE ATENCION EN SALUD DE ARBOLEDAS, MERCADERES, CAUCA. En etapa de terminación, obra terminó el 20 de dicembre de 2025. 3. ADECUACIÓN PARA EL MEJORAMIENTO DE LA INFRAESTRUCTURA FÍSICA EN SALUD DE LA UNIDAD DE ATENCIÓN EN SALUD DE CAJAMARCA DEL MUNICIPIO DE MERCADERES DEL DEPARTAMENTO DE CAUCA. Valor: $262.773.419. Se encuentra con CAAR, cuenta con viabilización para asignación de recursos. 4 y 5. Los 2 proyectos (Mojarras y vereda Esperanzas del Mayo) corresponden a proyectos de dotación y las ESE no han radicado al ministerio. | AA11: Revisión técnica del proyecto por Sector | AB11: Actualización información con soportes | AC11: Revisión y aprobación del proyecto por la fuente de financiación | AD11: Viabilización del proyecto ante la cabeza del sector | AE11: ESE SUR OCCIDENTE
A12: Línea estratégica 5. Salud | B12: Adecuación y dotación de (3) puestos de salud (apoyan resguardo indígena de Ambaló) en zona rural que beneficiará a 700 habitantes del municipio de Silvia, departamento del cauca | C12: Ministerio de Salud y Protección Social | D12: Inversión | E12: Terminado, Fase I | F12: 535260922 | G12: 0 | H12: 0 | I12: 0 | J12: 0 | K12: 0 | L12: 0 | M12: 535260922 | N12: 0 | O12: 0 | P12: 0 | Q12: 0 | R12: 0 | S12: 0 | T12: 0 | U12: 0 | V12: 0 | W12: =SUM(R12:V12) -> 0 | X12: =+M12+W12 -> 535260922 | Y12: EMPRESA SOCIAL DEL ESTADO NORTE 1 E.S.E. | Z12: $535 millones. 1-Terminado, 1-Evaluación técnica, 1 sin presentar. 1. ADECUACIÓN MENOR DE LA UNIDAD DE ATENCIÓN EN SALUD DE SILVIA DEPARTAMENTO DEL CAUCA, EMPRESA SOCIAL DEL ESTADO CENTRO 1 E.S.E. resursos MSPS RESOLUCIÓN 1984 DEL 2024. El proyecto se encuentra en etapa de terminación. 2. REPOSICIÓN DEL PUESTO DE SALUD PARA LA ATENCIÓN DE LA POBLACIÓN DEL CORREGIMIENTO DE USENDA MUNICIPIO DE SILVIA CAUCA. Valor: $3.244.596.490. En etapa de evaluación. 3. La subdirección de Infraestructura en Salud del MSPS no cuenta con mas proyectos radicados por parte de la ESE para ser viabilizados en el Municipio de Silvia, departamento del Cauca
A13: Línea estratégica 5. Salud | B13: Construir centros de salud, en los centros poblados de Guachicono, San Miguel, Altamira y Pancitará del municipio de La Vega para garantizar el servicio de salud a la población rural del municipio de La Vega | C13: Ministerio de Salud y Protección Social | D13: Preinversión, Inversión | E13: Terminado, Fase I | F13: 458144029 | G13: 0 | H13: 0 | I13: 0 | J13: 0 | K13: 0 | L13: 0 | M13: 458144029 | N13: 0 | O13: 0 | P13: 0 | Q13: 0 | R13: 0 | S13: 0 | T13: 0 | U13: 0 | V13: 0 | W13: 0 | X13: 458144029 | Y13: EMPRESA SOCIAL DEL ESTADO SURORIENTE E.S.E | Z13: $458 millones. 1-Terminado, 1-Estructuración, 2-Sin presentar. 1.ADECUACIÓN MENOR UNIDAD DE ATENCIÓN EN SALUD SAN MIGUEL. El proyecto se encuentra en etapa de terminación. Resursos MSPS RESOLUCIÓN 1906 DEL 2024 2. ADECUACIÓN MENOR UNIDAD DE ATENCIÓN EN SALUD DE ALTAMIRA. Valor: $601.197.846. El proyecto se encuentra en etapa de estructuración. 3 y 4 (Guachicono y Pancitará) no se han preentado. | AA13: Actualización información con soportes | AB13: Actualización información con soportes | AE13: ESE SUR OCCIDENTE
